{"text_format":"1","workbook":"xlsx","n_sheets":11,"sheets":["Tables","ContractWriter","CheckList","Cover","Contract","Draws","Allowances","Warranty","Right of Rescission","Legal Notices","Instructions"],"not_rendered":{"charts":0,"images":0,"macros":1,"external_links":0,"defined_names":200,"comments":1,"pivot_tables":0},"unopened":[],"bounds":{"document_bytes":16777216,"sheet_cells":100000,"rows_first":2000,"rows_last":500,"rows_between":2000,"halvings":0,"cell_chars":16384,"cell_head_chars":4096},"cells_cut":0,"cells_raw":0,"read":"whole","date_system":"1900"}

{"sheet":"Tables","index":0,"n_rows":184,"n_cols":8,"rows_kept":184,"cut":false,"hidden":true,"merged":[]}
["CheckList Ranges","Range Name"]
["Beginning of List","agreement"]
["Access to Project","access"]
["Additional Costs","extracosts"]
["Agreement","agreement"]
["Allowances","allowancesSec"]
["Arbritation","arbitrate"]
["Architect or Designer","archinfo"]
["Bank Information","bankinfo"]
["Bank Financing","bankfin"]
["Basic Contract Price","basicprice"]
["Builder Information","builderinfo"]
["Builder's Insurance","builderins"]
["Builders Limited Warranty","warrantySec"]
["Cancellation","cancel"]
["Changes and Additional Work","changes"]
["Compliance","comp"]
["Conflict","conflict"]
["Construction Plans","plans"]
["Contract Documents","documents"]
["Control","control"]
["Cost Plus Fee","costplusfee"]
["Cost Plus Payments","costpluspmt"]
["Damage to Work","damage"]
["Definations","define"]
["Delay","delay"]
["Disposal of Debris","debris"]
["Draws","drawsSec"]
["Entire Agreement","entire"]
["Final Paymnet","punchlist"]
["Fixed Cost Allowances","fcallow"]
["General Conditions","gencond"]
["Governance","govern"]
["Guideline","guide"]
["Handwritten Changes","handwrit"]
["Hazardous Materials","hazmat"]
["Items to be Performed by Owner","byowner"]
["Liens","liens"]
["Maintenance by Owner","maintain"]
["Matching Existing Finishes","extfinish"]
["Materials Selections by Builder","matbuilder"]
["Materials Selections by Owner","matowner"]
["Mediation","mediate"]
["Non-Reimbursable Costs","nonreimexp"]
["Non Warrantable Conditions","nonwarranty"]
["Notary","notary"]
["Notice","notice"]
["Overdue Accounts","overdue"]
["Owner Information","ownerinfo"]
["Pass-thru Warranties","wpassthru"]
["Payments","payments"]
["Permission to Build","permission"]
["Plans by Others","plansother"]
["Pre-Existing Conditions","precondition"]
["Progress Payment Schedule","drawschedule"]
["Progress Payments","drawsSec"]
["Project Information","projectinfo"]
["Property Insurance","ownerins"]
["Protection of Property","protectprop"]
["Quality of Work","quality"]
["Radon","radon"]
["Reimbursable Costs","reimexp"]
["Reusing Existing Materials","reuse"]
["Right of Rescission/Cancellation","ror"]
["Right to Cure","righttocure"]
["Right to Stop Work","stopwork"]
["Signage","sign"]
["Signatures","signature"]
["Subcontractors and Employees","subs"]
["Substitution of Materials","substitute"]
["Telephone","telephone"]
["Time of Completion","time"]
["Total Contract Price","totalprice"]
["Utilities","utilities"]
["Warranty","warrantySec"]
["Warranty Coverage","wcoverage"]
["Warranry Disclaimer","wdisclaim"]
["Warranty Exclusions","wexclude"]
["Warranty Limitations","wlimit"]
["Warranty Period","wperiod"]
["Warranty Remedies","wremedies"]
["Warranty Service","wservice"]
["When Complete","complete"]
["Witness","witness"]
[]
["File Name","ContractWriter 365 Master File"]
[]
["Master Filename","ContractWriter 365 Master File"]
["Default Directory","C:\\PowerTools\\ContractWriter"]
["Sample File",false]
["Cripple Password","red6060bull"]
["Hidden Sheet Password","black3030fly"]
["Title","ContractWriter"]
["Version","ContractWriter 365"]
["Upgrade","ContractWriter 365 v1.6"]
["User Title","OWNER"]
["Print Delay",30]
["Display Format Column",false]
["Display Caution Messages",true]
["Use Letterhead Cover Sheet",false]
["DistMode",true]
[]
["Separate Addendums"]
["Draw",true]
["Allowance",true]
["Warranty",true]
[]
["Templates","Range"]
["All Sections Checked","All_Sections_Checked"]
["All Sections Unchecked","All_Sections_Unchecked"]
["Basic Setup for a Fixed Price Contract","Basic_Setup_for_a_Fixed_Price_Contract"]
["Commercial Project using a Schedule of Values","Commercial_Project_using_a_Schedule_of_Values"]
["Cost Plus Fixed Fee Contract","Cost_Plus_Fixed_Fee_Contract"]
["Design Build Cost Plus New Home on Owners Lot","Design_Build_Cost_Plus_New_Home_on_Owners_Lot"]
["Fixed Price New Home on Builders Lot","Fixed_Price_New_Home_on_Builders_Lot"]
["Standard Cost Plus Percent Contract","Standard_Cost_Plus_Percent_Contract"]
["Standard Fixed Price Remodeling Contract","Standard_Fixed_Price_Remodeling_Contract"]
["Standard New Home on Owners Lot","Standard_New_Home_on_Owners_Lot"]
[]
[]
[]
["Splash text line 1",{"$f":"Version & \" for Microsoft Excel\"","v":"ContractWriter 365 for Microsoft Excel"}]
["Splash text line 2","Copyright © 2020 by PowerTools Software, Inc."]
["Splash text line 3","Licensed to"]
[]
["Contractors Info"]
["Business Name","Street Address","City, State, Zip","Business Phone","Fax Phone","Contact Person","Title","License Number"]
["Contractor Business Name","Contractor Mailing Address","Contractor City, St, Zip","Contractor Phone","Contractor Fax","Contractor Contact","Contactor's Title","License Number"]
[]
["Contractor Business Name","Contractor Mailing Address","Contractor City, St, Zip","Contractor Phone","Contractor Fax","Contractor Contact","Contactor's Title","License Number"]
[]
["Active Configuration Name","All Sections Unchecked"]
["Active Configuration Range","All_Sections_Unchecked"]
[]
["Document Grouping",null,null,"Scroll Area"]
["Cover","Standard Cover Sheet",true,"$A$1:$E$51"]
["Cover","Letterhead Cover Sheet",true,{"$f":"CoverArea","v":"$A$1:$E$51"}]
["Contract","Contract",true,"$A$1:$G$11"]
["Draws","Draw Schedule",true,"$A$1:$G$10"]
["Allowances","Allowance Schedule",true,"$A$1:$G$10"]
["Warranty","Warranty",true,"$A$1:$G$10"]
["Right of Rescission","Right of Rescission",true,"$A$1:$G$61"]
["Legal Notices","Legal Notices",true,"$A$1:$G$51"]
["Instructions","Instructions",true,"$A$1:$O$70"]
[]
[]
[null,"SPECIAL ADDED SECTION"]
[null,null,"S","x",null,"NOTE:  THIS is a SPECIAL CUSTOMIZED SECTION"]
[null,null,"P",{"$f":"D148","v":"x"},null,null,"Begin writing your new paragraph here."]
[null,null,null,{"$f":"D149","v":"x"},null,null,"Use as many lines as necessary."]
[null,null,null,{"$f":"D149","v":"x"},null,null,"Don't forget to change the title of the new section! "]
[null,null,null,{"$f":"D149","v":"x"},null,null,"Delete all the unneeded rows!!!"]
[null,null,null,{"$f":"D149","v":"x"},null,null,"                  \""]
[null,null,null,{"$f":"D149","v":"x"},null,null,"                  \""]
[null,null,null,{"$f":"D149","v":"x"},null,null,"                  \""]
[null,null,null,{"$f":"D149","v":"x"},null,null,"                  \""]
[null,null,null,{"$f":"D149","v":"x"},null,null,"Delete all the unneeded rows!!!"]
[null,null,"P",{"$f":"D148","v":"x"},null,null,"Begin writing a new paragraph here."]
[null,null,null,{"$f":"D158","v":"x"}]
[null,null,null,{"$f":"D158","v":"x"}]
[null,null,null,{"$f":"D158","v":"x"}]
[null,null,null,{"$f":"D158","v":"x"}]
[null,null,null,{"$f":"D158","v":"x"}]
[null,null,null,{"$f":"D158","v":"x"}]
[null,null,null,{"$f":"D158","v":"x"}]
[null,null,null,{"$f":"D158","v":"x"},null,null,"Delete all the unneeded rows!!!"]
[null,null,"P",{"$f":"D148","v":"x"},null,null,"Begin writing a new paragraph here."]
[null,null,null,{"$f":"D167","v":"x"}]
[null,null,null,{"$f":"D167","v":"x"},null,null,"Delete all the unneeded rows!!!"]
[null,null,"P",{"$f":"D148","v":"x"},null,null,"Begin writing a new paragraph here."]
[null,null,null,{"$f":"D170","v":"x"}]
[null,null,null,{"$f":"D170","v":"x"}]
[null,null,null,{"$f":"D170","v":"x"},null,null,"Delete all the unneeded rows!!!"]
[]
[]
["x",null,"PROGRESS PAYMENT SCHEDULE"]
["x",null,null,"The Progress payments shall be made as indicated in the Draw Schedule Addendum."]
[]
["x",null,"ALLOWANCE SCHEDULE"]
["x",null,null,"The allowances included in this contract are itemized in the Allowance Schedule."]
[null,null,null,"The allowances included in this contract are itemized in the Construction Specifications.  (attached)"]
[]
["x",null,"BUILDER'S LIMITED WARRANTY"]
["x",null,null,"The Builder's Limited Warranty will be as described in the Warranty Addendum included in this Contract."]

{"sheet":"ContractWriter","index":1,"n_rows":0,"n_cols":0,"rows_kept":0,"cut":false,"hidden":false,"merged":[]}

{"sheet":"CheckList","index":2,"n_rows":1490,"n_cols":26,"rows_kept":1490,"cut":false,"hidden":true,"merged":[]}
[]
[null,"CHECKLIST"]
[]
[null,"This is the Checklist where you \"tag\" the clauses and items you want included in the contract."]
[null,"Please review the color coding to understand their signifigance in the Checklist."]
[null,"Get started quickly by using the Templates feature to quickly \"tag\" a previously configured contract."]
[]
[null,"Project Name  (Please use Project Menu to enter Project name)",null,null,null,null,null,null,"Date Last Generated"]
[]
[null,"Current Template"]
[null,null,null,null,null,null,null,null,null,null,null,null,null,null,null,null,"Fixed Price New Home on Builders Lot","Design Build Cost Plus New Home on Owners Lot","Standard New Home on Owners Lot","Cost Plus Fixed Fee Contract","Standard Cost Plus Percent Contract","Basic Setup for a Fixed Price Contract","Commercial Project using a Schedule of Values","Standard Fixed Price Remodeling Contract","All Sections Unchecked","All Sections Checked"]
[]
[null,"BLUE INDICATES SECTIONS NEEDED to CREATE a LEGAL CONTRACT and/or REQUIRED by LAW"]
[null,"YELLOW INDICATES SECTIONS that are OPTIONAL"]
[null,"RED INDICATES SECTIONS WHERE YOU SELECT ONE of the CHOICES PRESENTED"]
[null,"GREEN INDICATES SECTIONS that are EXCLUSIVELY for COST-PLUS CONTRACTS"]
[null,"AQUA INDICATES SECTIONS that are EXCLUSIVELY for DESIGN-BUILD CONTRACTS"]
[]
[null,"BASIC AGREEMENT"]
[null,null,"S",null,null,"AGREEMENT",null,null,null,null,null,null,null,null,null,null,"x","x","x","x","x","x","x","x",null,"x"]
[null,null,"P",{"$f":"D20","v":0},null,null,"This agreement, made this day and date written herein by and between the OWNER and the BUILDER to",null,null,null,null,null,null,null,null,null,{"$f":"Q20","v":"x"},"x","x","x","x","x","x","x",0,"x"]
[null,null,null,{"$f":"D21","v":0},null,null,"facilitate the construction of the Project, for good and valuable consideration, both parties agreeing as follows:",null,null,null,null,null,null,null,null,null,"x","x","x","x","x","x","x","x",0,"x"]
[null,"S","P",null,null,null,"This is a Fixed Cost Contract wherein the OWNER will pay the BUILDER a specific price for performing the work",null,null,null,null,null,null,null,null,null,"x",null,"x",null,null,"x","x","x",null,"x"]
[null,"E",null,{"$f":"D23","v":0},null,null,"described herein, said price to be modified by the OWNER's allowance decisions, authorized changes, and",null,null,null,null,null,null,null,null,null,{"$f":"Q23","v":"x"},0,"x",0,0,"x","x","x",0,"x"]
[null,"L",null,{"$f":"D23","v":0},null,null,"any potential unknown conditions itemized in this contract.",null,null,null,null,null,null,null,null,null,{"$f":"Q23","v":"x"},0,"x",0,0,"x","x","x",0,"x"]
[null,"E","P",null,null,null,"This is a Cost Plus Percentage Contract wherein the OWNER will reimburse the BUILDER for expenses incurred",null,null,null,null,null,null,null,null,null,null,"x",null,null,"x",null,null,null,null,"x"]
[null,"C",null,{"$f":"D26","v":0},null,null,"in constructing the project plus pay the BUILDER an additional percentage of those expenses for the BUILDER's",null,null,null,null,null,null,null,null,null,{"$f":"Q26","v":0},"x",0,0,"x",0,0,0,0,"x"]
[null,"T",null,{"$f":"D26","v":0},null,null,"overhead and compensation.",null,null,null,null,null,null,null,null,null,{"$f":"Q26","v":0},"x",0,0,"x",0,0,0,0,"x"]
[null,null,"P",null,null,null,"This is a Cost Plus Fixed Fee Contract wherein the OWNER will reimburse the BUILDER for expenses incurred",null,null,null,null,null,null,null,null,null,null,null,null,"x",null,null,null,null,null,"x"]
[null,"O",null,{"$f":"D29","v":0},null,null,"in constructing the project plus pay the BUILDER an additional fixed fee for the BUILDER's overhead and",null,null,null,null,null,null,null,null,null,{"$f":"Q29","v":0},0,0,"x",0,0,0,0,0,"x"]
[null,"N",null,{"$f":"D29","v":0},null,null,"compensation.",null,null,null,null,null,null,null,null,null,{"$f":"Q29","v":0},0,0,"x",0,0,0,0,0,"x"]
[null,"E","P",null,null,null,"This is a Design/Build Contract wherein the OWNER and the BUILDER will collaborate in the design of the project",null,null,null,null,null,null,null,null,null,null,null,null,null,null,null,null,null,null,"x"]
[null,null,null,{"$f":"D32","v":0},null,null,"prior to establishing a fixed price the OWNER will pay the BUILDER for constructing the project, said price to be",null,null,null,null,null,null,null,null,null,{"$f":"Q32","v":0},0,0,0,0,0,0,0,0,"x"]
[null,null,null,{"$f":"D32","v":0},null,null,"modified by the OWNER's allowance decisions, authorized changes, and any potential unknown conditions",null,null,null,null,null,null,null,null,null,{"$f":"Q32","v":0},0,0,0,0,0,0,0,0,"x"]
[null,null,null,{"$f":"D32","v":0},null,null,"itemized in this contract.",null,null,null,null,null,null,null,null,null,{"$f":"Q32","v":0},0,0,0,0,0,0,0,0,"x"]
[null,null,"P",{"$f":"D20","v":0},null,null,"The BUILDER agrees to perform the work described in the Contract Documents, in accordance with the terms",null,null,null,null,null,null,null,null,null,{"$f":"Q20","v":"x"},"x","x","x","x","x","x","x",0,"x"]
[null,null,null,{"$f":"D36","v":0},null,null,"and conditions herein, in exchange for the remuneration described herein.",null,null,null,null,null,null,null,null,null,{"$f":"Q36","v":"x"},"x","x","x","x","x","x","x",0,"x"]
[]
[null,"PROJECT INFORMATION"]
[null,null,"S",null,null,"PROJECT",null,null,null,null,null,null,null,null,null,null,"x","x","x","x","x","x","x","x",null,"x"]
[null,null,"P",null,null,null,"Project Name:","Project Name",null,null,null,null,null,null,null,null,"x","x","x","x","x","x","x","x",null,"x"]
[null,null,"P",null,null,null,"Project Address:","Project Address",null,null,null,null,null,null,null,null,"x","x","x","x","x","x","x","x",null,"x"]
[null,null,"P",null,null,null,"City, State, Zip:","City, State, Zip Code",null,null,null,null,null,null,null,null,"x","x","x","x","x","x","x","x",null,"x"]
[null,null,"P",null,null,null,"Subdivision Name:","Subdivision",null,null,null,null,null,null,null,null,null,null,null,null,null,null,null,null,null,"x"]
[null,null,"P",null,null,null,"Legal Description: ","Legal Description",null,null,null,null,null,null,null,null,null,null,null,null,null,null,null,null,null,"x"]
[null,null,"P",null,null,null,"Property ID #:","Property ID Number",null,null,null,null,null,null,null,null,null,null,null,null,null,null,null,null,null,"x"]
[null,null,"P",null,null,null,"County & State:","County & State",null,null,null,null,null,null,null,null,null,null,null,null,null,null,null,null,null,"x"]
[null,null,"P",null,null,null,"Permit Jurisdiction:","Permit Jurisdiction",null,null,null,null,null,null,null,null,null,null,null,null,null,null,null,null,null,"x"]
[null,null,"P",null,null,null,"Project Number:","Project Number",null,null,null,null,null,null,null,null,null,null,null,null,null,null,null,null,null,"x"]
[]
[null,"OWNER INFORMATION"]
[null,null,"S",null,null,"OWNER",null,null,null,null,null,null,null,null,null,null,"x","x","x","x","x","x","x","x",null,"x"]
[null,null,"P",null,null,null,"OWNER:","OWNER Name",null,null,null,null,null,null,null,null,"x","x","x","x","x","x","x","x",null,"x"]
[null,null,"P",null,null,null,"Authorized Agent:","OWNER Agent",null,null,null,null,null,null,null,null,"x","x","x","x","x","x","x","x",null,"x"]
[null,null,"P",null,null,null,"Current Address:","OWNER Address",null,null,null,null,null,null,null,null,"x","x","x","x","x","x","x","x",null,"x"]
[null,null,"P",null,null,null,"City, State, Zip:","OWNER City,  State, Zip",null,null,null,null,null,null,null,null,"x","x","x","x","x","x","x","x",null,"x"]
[null,null,"P",null,null,null,"Home Phone:","OWNER Home Phone",null,null,null,null,null,null,null,null,null,null,null,null,null,null,null,null,null,"x"]
[null,null,"P",null,null,null,"Work Phone:","OWNER Work Phone",null,null,null,null,null,null,null,null,null,null,null,null,null,null,null,null,null,"x"]
[null,null,"P",null,null,null,"Fax Phone:","OWNER Fax",null,null,null,null,null,null,null,null,null,null,null,null,null,null,null,null,null,"x"]
[]
[null,"BUILDER INFORMATION"]
[null,null,"S",null,null,"BUILDER",null,null,null,null,null,null,null,null,null,null,"x","x","x","x","x","x","x","x",null,"x"]
[null,null,"P",null,null,null,"BUILDER Name:",{"$f":"_CID100","v":"Contractor Business Name"},null,null,null,null,null,null,null,null,"x","x","x","x","x","x","x","x",null,"x"]
[null,null,"P",null,null,null,"License Number:",{"$f":"_CID107","v":"License Number"},null,null,null,null,null,null,null,null,"x","x","x","x","x","x","x","x",null,"x"]
[null,null,"P",null,null,null,"Street Address:",{"$f":"_CID101","v":"Contractor Mailing Address"},null,null,null,null,null,null,null,null,"x","x","x","x","x","x","x","x",null,"x"]
[null,null,"P",null,null,null,"City, State, Zip:",{"$f":"_CID102","v":"Contractor City, St, Zip"},null,null,null,null,null,null,null,null,"x","x","x","x","x","x","x","x",null,"x"]
[null,null,"P",null,null,null,"Business Phone:",{"$f":"_CID103","v":"Contractor Phone"},null,null,null,null,null,null,null,null,null,null,null,null,null,null,null,null,null,"x"]
[null,null,"P",null,null,null,"Fax Phone:",{"$f":"_CID104","v":"Contractor Fax"},null,null,null,null,null,null,null,null,null,null,null,null,null,null,null,null,null,"x"]
[]
[null,"LENDER INFORMATION"]
[null,null,"S",null,null,"LENDER",null,null,null,null,null,null,null,null,null,null,"x","x","x",null,null,null,null,null,null,"x"]
[null,null,"P",null,null,null,"Lender Name:","Lender Name",null,null,null,null,null,null,null,null,"x","x","x",null,null,null,null,null,null,"x"]
[null,null,"P",null,null,null,"Street Address:","Lender Address",null,null,null,null,null,null,null,null,"x","x","x",null,null,null,null,null,null,"x"]
[null,null,"P",null,null,null,"City, State, Zip:","Lender City, State, Zip",null,null,null,null,null,null,null,null,"x","x","x",null,null,null,null,null,null,"x"]
[null,null,"P",null,null,null,"Business Phone:","Lender Phone",null,null,null,null,null,null,null,null,"x","x","x",null,null,null,null,null,null,"x"]
[null,null,"P",null,null,null,"Fax Phone:","Lender Fax",null,null,null,null,null,null,null,null,null,null,null,null,null,null,null,null,null,"x"]
[]
[null,"ARCHITECT / DESIGNER INFORMATION"]
[null,null,"S",null,null,"ARCHITECT/DESIGNER",null,null,null,null,null,null,null,null,null,null,null,null,null,null,null,null,null,null,null,"x"]
[null,null,"P",null,null,null,"Designer Name:","Designer Name",null,null,null,null,null,null,null,null,null,null,null,null,null,null,null,null,null,"x"]
[null,null,"P",null,null,null,"License Number:","N/A",null,null,null,null,null,null,null,null,null,null,null,null,null,null,null,null,null,"x"]
[null,null,"P",null,null,null,"Street Address:","Designer Street Address",null,null,null,null,null,null,null,null,null,null,null,null,null,null,null,null,null,"x"]
[null,null,"P",null,null,null,"City, State, Zip:","Designer City, State, Zip",null,null,null,null,null,null,null,null,null,null,null,null,null,null,null,null,null,"x"]
[null,null,"P",null,null,null,"Business Phone:","Designer Phone",null,null,null,null,null,null,null,null,null,null,null,null,null,null,null,null,null,"x"]
[null,null,"P",null,null,null,"Fax Phone:","Designer Fax",null,null,null,null,null,null,null,null,null,null,null,null,null,null,null,null,null,"x"]
[]
[null,"CONSTRUCTION PLANS"]
[null,null,"S",null,null,"CONSTRUCTION PLANS",null,null,null,null,null,null,null,null,null,null,"x","x","x","x","x","x","x","x",null,"x"]
[null,null,"P",null,null,null,"Title of Plans:","Plan Title",null,null,null,null,null,null,null,null,"x","x","x","x","x","x","x","x",null,"x"]
[null,null,"P",null,null,null,"Drawn By:","Designer Name",null,null,null,null,null,null,null,null,"x","x","x","x","x","x","x","x",null,"x"]
[null,null,"P",null,null,null,"Plans Dated:","Plan Date",null,null,null,null,null,null,null,null,"x","x","x","x","x","x","x","x",null,"x"]
[null,null,"P",null,null,null,"Number of Pages:","Number of Pages",null,null,null,null,null,null,null,null,"x","x","x","x","x","x","x","x",null,"x"]
[]
[null,"LIST of CONTRACT DOCUMENTS"]
[null,null,"S",null,null,"CONTRACT DOCUMENTS",null,null,null,null,null,null,null,null,null,null,"x","x","x","x","x","x","x","x",null,"x"]
[null,null,"P",null,null,null,"This contract contains the following documents, listed in descending order of control.",null,null,null,null,null,null,null,null,null,"x","x","x","x","x","x","x","x",null,"x"]
[null,null,"P",null,null,null,"1st Priority:","Scope of Work and Specifications","Attached",null,null,null,null,null,null,null,"x","x","x","x","x","x","x","x",null,"x"]
[null,null,"P",null,null,null,"2nd Priority:","Construction Agreement","This Document",null,null,null,null,null,null,null,"x","x","x","x","x","x","x","x",null,"x"]
[null,null,"P",null,null,null,"3rd Priority:","Allowance Schedule","Attached",null,null,null,null,null,null,null,"x","x","x","x","x","x","x","x",null,"x"]
[null,null,"P",null,null,null,"4th Priority:","Construction Plans","Included by Reference",null,null,null,null,null,null,null,"x","x","x","x","x","x","x","x",null,"x"]
[null,null,"P",null,null,null,"5th Priority:","Third Party Specifications","Included by Reference",null,null,null,null,null,null,null,null,null,null,null,null,null,null,null,null,"x"]
[null,null,"P",null,null,null,"Addendum:","Draw Schedule Addendum","Attached",null,null,null,null,null,null,null,null,null,null,null,null,null,null,null,null,"x"]
[null,null,"P",null,null,null,"Addendum:","Schedule of Values","Attached",null,null,null,null,null,null,null,null,null,null,null,null,null,null,null,null,"x"]
[null,null,"P",null,null,null,"Addendum:","BUILDER's Limited Warranty","Attached",null,null,null,null,null,null,null,null,null,null,null,null,null,null,null,null,"x"]
[null,null,"P",null,null,null,"Exhibit only:","Sample Confirmation of Instruction","Attached",null,null,null,null,null,null,null,null,null,null,null,null,null,null,null,null,"x"]
[null,null,"P",null,null,null,"Exhibit only:","Sample Change Order","Attached",null,null,null,null,null,null,null,null,null,null,null,null,null,null,null,null,"x"]
[null,null,"P",null,null,null,"Exhibit only:","Sample Final Punchlist Form","Attached",null,null,null,null,null,null,null,null,null,null,null,null,null,null,null,null,"x"]
[null,null,"P",null,null,null,"Exhibit only:","Residential Construction Performance Guidelines","Included by Reference",null,null,null,null,null,null,null,null,null,null,null,null,null,null,null,null,"x"]
[null,null,"P",null,null,null,"Legal Notice:","Right of Rescission Notice","Provided Seperatly",null,null,null,null,null,null,null,null,null,null,null,null,null,null,null,null,"x"]
[]
[null,"GUIDELINE"]
[null,null,"S",null,null,"GUIDELINE",null,null,null,null,null,null,null,null,null,null,"x","x","x","x","x","x","x","x",null,"x"]
[null,null,"P",{"$f":"D$112","v":0},null,null,"The work will be constructed in conformance with the Contract Documents which have been examined and",null,null,null,null,null,null,null,null,null,{"$f":"Q$112","v":"x"},"x","x","x","x","x","x","x",0,"x"]
[null,null,null,{"$f":"D113","v":0},null,null,"approved by the OWNER.",null,null,null,null,null,null,null,null,null,{"$f":"Q113","v":"x"},"x","x","x","x","x","x","x",0,"x"]
[]
[null,"COMPLIANCE"]
[null,null,"S",null,null,"COMPLIANCE",null,null,null,null,null,null,null,null,null,null,"x","x","x","x","x","x","x","x",null,"x"]
[null,null,"P",{"$f":"D$117","v":0},null,null,"The work will be completed in compliance with all laws, ordinances, rules, regulations and building codes of",null,null,null,null,null,null,null,null,null,{"$f":"Q$117","v":"x"},"x","x","x","x","x","x","x",0,"x"]
[null,null,null,{"$f":"D118","v":0},null,null,"the applicable government authorities.",null,null,null,null,null,null,null,null,null,{"$f":"Q118","v":"x"},"x","x","x","x","x","x","x",0,"x"]
[]
[null,"CONTROL"]
[null,null,"S",null,null,"CONTROL",null,null,null,null,null,null,null,null,null,null,"x","x","x","x","x","x","x","x",null,"x"]
[null,null,"P",{"$f":"D$122","v":0},null,null,"The Contract Documents, which include the Construction Agreement, the Scope of Work and Specifications,",null,null,null,null,null,null,null,null,null,{"$f":"Q$122","v":"x"},"x","x","x","x","x","x","x",0,"x"]
[null,null,null,{"$f":"D123","v":0},null,null,"the Construction Drawings, and other documents enumerated herein are intended to supplement each other.",null,null,null,null,null,null,null,null,null,{"$f":"Q123","v":"x"},"x","x","x","x","x","x","x",0,"x"]
[null,null,null,{"$f":"D123","v":0},null,null,"In case of conflict, control of the Contract Documents will be given in the descending order in which they",null,null,null,null,null,null,null,null,null,{"$f":"Q123","v":"x"},"x","x","x","x","x","x","x",0,"x"]
[null,null,null,{"$f":"D123","v":0},null,null,"are listed.",null,null,null,null,null,null,null,null,null,{"$f":"Q123","v":"x"},"x","x","x","x","x","x","x",0,"x"]
[null,null,"P",{"$f":"D$122","v":0},null,null,"The work to be performed and the materials to be used by the BUILDER are itemized in the Scope of Work",null,null,null,null,null,null,null,null,null,{"$f":"Q$122","v":"x"},"x","x","x","x","x","x","x",0,"x"]
[null,null,null,{"$f":"D127","v":0},null,null,"and Specifications, which shall be superior to the other contract documents in case of conflict.",null,null,null,null,null,null,null,null,null,{"$f":"Q127","v":"x"},"x","x","x","x","x","x","x",0,"x"]
[]
[null,"DESIGN DEVELOPMENT PROCESS for Design/Build Projects only"]
[null,"D","S",null,null,"DESIGN DEVELOPMENT PROCESS",null,null,null,null,null,null,null,null,null,null,null,"x",null,null,null,null,null,null,null,"x"]
[null,"E","P",{"$f":"D$131","v":0},null,null,"The BUILDER shall be responsible for furnishing the design and for the construction of the Project.",null,null,null,null,null,null,null,null,null,{"$f":"Q$131","v":0},"x",0,0,0,0,0,0,0,"x"]
[null,"S","P",{"$f":"D$131","v":0},null,null,"The BUILDER shall develop the design of the project in cooperation with the OWNER in accordance with the ",null,null,null,null,null,null,null,null,null,0,"x",0,0,0,0,0,0,0,"x"]
[null,"I",null,{"$f":"D133","v":0},null,null,"design schedule set forth below.",null,null,null,null,null,null,null,null,null,{"$f":"Q133","v":0},"x",0,0,0,0,0,0,0,"x"]
[null,"G","P",{"$f":"D$131","v":0},null,null,"The OWNER shall be responsible for making prompt design decisions and approvals so as to maintain the",null,null,null,null,null,null,null,null,null,{"$f":"Q$131","v":0},"x",0,0,0,0,0,0,0,"x"]
[null,"N",null,{"$f":"D135","v":0},null,null,"design schedule.",null,null,null,null,null,null,null,null,null,{"$f":"Q135","v":0},"x",0,0,0,0,0,0,0,"x"]
[null,null,"P",{"$f":"D$131","v":0},null,null,"All design, engineering, architectural or other professional services required herein may be performed by",null,null,null,null,null,null,null,null,null,{"$f":"Q$131","v":0},"x",0,0,0,0,0,0,0,"x"]
[null,"B",null,{"$f":"D137","v":0},null,null,"the BUILDER's personnel or by any other qualified professional(s) as may be selected by the BUILDER.",null,null,null,null,null,null,null,null,null,{"$f":"Q137","v":0},"x",0,0,0,0,0,0,0,"x"]
[null,"U","P",{"$f":"D$131","v":0},null,null,"The BUILDER and the OWNER shall work closely together to monitor the design in accordance with prior",null,null,null,null,null,null,null,null,null,{"$f":"Q$131","v":0},"x",0,0,0,0,0,0,0,"x"]
[null,"I",null,{"$f":"D139","v":0},null,null,"approvals to ensure that the Project can be constructed within the Total Contract Price established herein.",null,null,null,null,null,null,null,null,null,{"$f":"Q139","v":0},"x",0,0,0,0,0,0,0,"x"]
[null,"L","P",{"$f":"D131","v":0},null,null,"As the construction Drawings and Specifications are being developed, the BUILDER shall keep the OWNER",null,null,null,null,null,null,null,null,null,{"$f":"Q131","v":0},"x",0,0,0,0,0,0,0,"x"]
[null,"D",null,{"$f":"D141","v":0},null,null,"advised of the effects of any OWNER-requested changes in the Total Contract Price and/or Time of Completion.",null,null,null,null,null,null,null,null,null,{"$f":"Q141","v":0},"x",0,0,0,0,0,0,0,"x"]
[null,null,"P",{"$f":"D131","v":0},null,null,"The Drawings and Specifications developed herein shall remain the property of the BUILDER and are not to be",null,null,null,null,null,null,null,null,null,{"$f":"Q131","v":0},"x",0,0,0,0,0,0,0,"x"]
[null,null,null,{"$f":"D143","v":0},null,null,"used by the OWNER on this or any other Project(s) without the written consent of the BUILDER.",null,null,null,null,null,null,null,null,null,{"$f":"Q143","v":0},"x",0,0,0,0,0,0,0,"x"]
[null,null,"P",{"$f":"D131","v":0},null,null,"If, after the completion of any phase of the design development, the OWNER determines that the Project is no",null,null,null,null,null,null,null,null,null,{"$f":"Q131","v":0},"x",0,0,0,0,0,0,0,"x"]
[null,null,null,{"$f":"D145","v":0},null,null,"longer feasible, the OWNER may terminate this Agreement and pay the BUILDER the Design Fee itemized below",null,null,null,null,null,null,null,null,null,{"$f":"Q145","v":0},"x",0,0,0,0,0,0,0,"x"]
[null,null,null,{"$f":"D145","v":0},null,null,"plus a sum equal to 5% Total Contract Price as compensation for his efforts.",null,null,null,null,null,null,null,null,null,{"$f":"Q145","v":0},"x",0,0,0,0,0,0,0,"x"]
[]
[null,"DESIGN SCHEDULE for Design/Build Contracts only"]
[null,"D","S",null,null,"DESIGN SCHEDULE",null,null,null,null,null,null,null,null,null,null,null,"x",null,null,null,null,null,null,null,"x"]
[null,"E","P",{"$f":"D150","v":0},null,null,"PHASE 1:  Based upon the OWNER's project requirements, the BUILDER will prepare Design Schematics for the",null,null,null,null,null,null,null,null,null,{"$f":"Q150","v":0},"x",0,0,0,0,0,0,0,"x"]
[null,"S",null,{"$f":"D151","v":0},null,null,"purposes of assisting the OWNER in determining the feasibility of the Project.",null,null,null,null,null,null,null,null,null,0,"x",0,0,0,0,0,0,0,"x"]
[null,"I","P",{"$f":"D150","v":0},null,null,"PHASE 2:  Upon the OWNER's approval of the Design Schematics and authorization to proceed, the BUILDER",null,null,null,null,null,null,null,null,null,{"$f":"Q150","v":0},"x",0,0,0,0,0,0,0,"x"]
[null,"G",null,{"$f":"D153","v":0},null,null,"shall prepare Design Development documents to establish the size and character of the Project with regard",null,null,null,null,null,null,null,null,null,{"$f":"Q153","v":0},"x",0,0,0,0,0,0,0,"x"]
[null,"N",null,{"$f":"D153","v":0},null,null,"to structural, mechanical systems, materials and other essential elements of the Project.  These Design",null,null,null,null,null,null,null,null,null,{"$f":"Q153","v":0},"x",0,0,0,0,0,0,0,"x"]
[null,null,null,{"$f":"D153","v":0},null,null,"Development documents shall be the basis for the design and construction of the Project.",null,null,null,null,null,null,null,null,null,{"$f":"Q153","v":0},"x",0,0,0,0,0,0,0,"x"]
[null,"B","P",{"$f":"D150","v":0},null,null,"PHASE 3:  Upon the OWNER's approval of the Design Development documents and authorization to proceed,",null,null,null,null,null,null,null,null,null,{"$f":"Q150","v":0},"x",0,0,0,0,0,0,0,"x"]
[null,"L",null,{"$f":"D157","v":0},null,null,"the BUILDER shall develop the construction Drawings and Specifications setting forth in detail the requirements",null,null,null,null,null,null,null,null,null,{"$f":"Q157","v":0},"x",0,0,0,0,0,0,0,"x"]
[null,"D",null,{"$f":"D157","v":0},null,null,"for the construction of the Project based upon Codes, laws and regulations enacted at the time of their",null,null,null,null,null,null,null,null,null,{"$f":"Q157","v":0},"x",0,0,0,0,0,0,0,"x"]
[null,null,null,{"$f":"D157","v":0},null,null,"preparation.",null,null,null,null,null,null,null,null,null,{"$f":"Q157","v":0},"x",0,0,0,0,0,0,0,"x"]
[]
[null,"PLANS DRAWN by OWNER"]
[null,null,"S",null,null,"PLANS by OTHERS",null,null,null,null,null,null,null,null,null,null,null,null,null,null,null,null,null,null,null,"x"]
[null,null,"P",{"$f":"D163","v":0},null,null,"The BUILDER assumes full responsibility for the code compliance of all constructions plans supplied by him.",null,null,null,null,null,null,null,null,null,{"$f":"Q163","v":0},0,0,0,0,0,0,0,0,"x"]
[null,null,"P",{"$f":"D163","v":0},null,null,"The OWNER assumes full responsibility for the code compliance of all plans supplied by the OWNER.",null,null,null,null,null,null,null,null,null,{"$f":"Q163","v":0},0,0,0,0,0,0,0,0,"x"]
[null,null,"P",{"$f":"D163","v":0},null,null,"In the event the OWNER has secured the services of a third party to prepare the construction drawings, and it",null,null,null,null,null,null,null,null,null,{"$f":"Q163","v":0},0,0,0,0,0,0,0,0,"x"]
[null,null,null,{"$f":"D166","v":0},null,null,"is later discovered that the drawings do not meet the local zoning ordinances or building code requirements,",null,null,null,null,null,null,null,null,null,{"$f":"Q166","v":0},0,0,0,0,0,0,0,0,"x"]
[null,null,null,{"$f":"D166","v":0},null,null,"the OWNER shall pay any increased costs to change or modify the work as required.",null,null,null,null,null,null,null,null,null,{"$f":"Q166","v":0},0,0,0,0,0,0,0,0,"x"]
[]
[null,"DESIGN INTENT"]
[null,null,"S",null,null,"DESIGN INTENT",null,null,null,null,null,null,null,null,null,null,null,null,null,null,null,null,null,null,null,"x"]
[null,null,"P",{"$f":"D171","v":0},null,null,"The OWNER agrees to keep the BUILDER fully informed of all finish details and other specific design results that",null,null,null,null,null,null,null,null,null,{"$f":"Q171","v":0},0,0,0,0,0,0,0,0,"x"]
[null,null,null,{"$f":"D172","v":0},null,null,"the OWNER has or anticipates as to the outcome of the construction.",null,null,null,null,null,null,null,null,null,0,0,0,0,0,0,0,0,0,"x"]
[null,null,"P",{"$f":"D171","v":0},null,null,"The BUILDER agrees to keep the OWNER fully informed throughout the course of the construction of any and all",null,null,null,null,null,null,null,null,null,{"$f":"Q171","v":0},0,0,0,0,0,0,0,0,"x"]
[null,null,null,{"$f":"D174","v":0},null,null,"circumstances of the construction that may appear to have the potential to create eventual results that are",null,null,null,null,null,null,null,null,null,{"$f":"Q174","v":0},0,0,0,0,0,0,0,0,"x"]
[null,null,null,{"$f":"D174","v":0},null,null,"potentially contrary to the OWNER's design intent.",null,null,null,null,null,null,null,null,null,{"$f":"Q174","v":0},0,0,0,0,0,0,0,0,"x"]
[null,null,"P",{"$f":"D171","v":0},null,null,"In the event the OWNER fails to inform the BUILDER of a specific design intent not otherwise clearly detailed",null,null,null,null,null,null,null,null,null,{"$f":"Q171","v":0},0,0,0,0,0,0,0,0,"x"]
[null,null,null,{"$f":"D177","v":0},null,null,"and/or dimensioned on the construction plans or described in the other construction documents, the OWNER",null,null,null,null,null,null,null,null,null,{"$f":"Q177","v":0},0,0,0,0,0,0,0,0,"x"]
[null,null,null,{"$f":"D177","v":0},null,null,"shall pay for any costs to modify the otherwise correctly performed work to meet the previously undisclosed",null,null,null,null,null,null,null,null,null,{"$f":"Q177","v":0},0,0,0,0,0,0,0,0,"x"]
[null,null,null,{"$f":"D177","v":0},null,null,"requirements.",null,null,null,null,null,null,null,null,null,{"$f":"Q177","v":0},0,0,0,0,0,0,0,0,"x"]
[null,null,"P",{"$f":"D171","v":0},null,null,"In the event the BUILDER fails to inform the OWNER of any conflict with any design intent accurately described",null,null,null,null,null,null,null,null,null,{"$f":"Q171","v":0},0,0,0,0,0,0,0,0,"x"]
[null,null,null,{"$f":"D181","v":0},null,null,"in the construction documents or relayed to the BUILDER, the OWNER shall have the right to require the BUILDER",null,null,null,null,null,null,null,null,null,{"$f":"Q181","v":0},0,0,0,0,0,0,0,0,"x"]
[null,null,null,{"$f":"D181","v":0},null,null,"to modify the work to the OWNER's satisfaction at the BUILDER's sole expense.",null,null,null,null,null,null,null,null,null,{"$f":"Q181","v":0},0,0,0,0,0,0,0,0,"x"]
[]
[null,"OWNERSHIP of PROPERTY"]
[null,null,"S",null,null,"PROPERTY",null,null,null,null,null,null,null,null,null,null,"x","x","x",null,null,null,null,null,null,"x"]
[null,null,"P",null,null,null,"The project is to be constructed upon land that is currently owned by the OWNER.",null,null,null,null,null,null,null,null,null,null,"x","x",null,null,null,null,null,null,"x"]
[null,null,"P",null,null,null,"The project is to be constructed upon land that is under contract to the OWNER.",null,null,null,null,null,null,null,null,null,null,null,null,null,null,null,null,null,null,"x"]
[null,null,"P",null,null,null,"The project is to be constructed upon land that is currently owned by the BUILDER.",null,null,null,null,null,null,null,null,null,"x",null,null,null,null,null,null,null,null,"x"]
[null,null,"P",null,null,null,"The project is to be constructed upon land that is under contract to the BUILDER.",null,null,null,null,null,null,null,null,null,null,null,null,null,null,null,null,null,null,"x"]
[null,null,"P",null,null,null,"The OWNER hereby covenants to the BUILDER that the subject property:",null,null,null,null,null,null,null,null,null,null,{"$f":"R186","v":"x"},"x",0,0,0,0,0,null,"x"]
[null,null,null,{"$f":"D191","v":0},null,null,"     Is currently deeded to the OWNER.",null,null,null,null,null,null,null,null,null,{"$f":"Q191","v":0},"x","x",0,0,0,0,0,0,"x"]
[null,null,null,{"$f":"D191","v":0},null,null,"     Is free of title defects or other legal encumbrances.",null,null,null,null,null,null,null,null,null,{"$f":"Q191","v":0},"x","x",0,0,0,0,0,0,"x"]
[null,null,null,{"$f":"D191","v":0},null,null,"     Is properly platted and zoned for the project.",null,null,null,null,null,null,null,null,null,{"$f":"Q191","v":0},"x","x",0,0,0,0,0,0,"x"]
[null,null,null,{"$f":"D191","v":0},null,null,"     Is suited for the construction of the project.",null,null,null,null,null,null,null,null,null,{"$f":"Q191","v":0},"x","x",0,0,0,0,0,0,"x"]
[null,null,null,{"$f":"D191","v":0},null,null,"     Contains no known environmental hazards.",null,null,null,null,null,null,null,null,null,{"$f":"Q191","v":0},"x","x",0,0,0,0,0,0,"x"]
[null,null,null,{"$f":"D191","v":0},null,null,"     Contains no known archeological artifacts.",null,null,null,null,null,null,null,null,null,{"$f":"Q191","v":0},"x","x",0,0,0,0,0,0,"x"]
[null,null,"P",null,null,null,"The BUILDER hereby covenants to the OWNER that the subject property:",null,null,null,null,null,null,null,null,null,"x",null,null,{"$f":"T186","v":0},{"$f":"U186","v":0},{"$f":"V186","v":0},{"$f":"W186","v":0},{"$f":"X186","v":0},null,"x"]
[null,null,null,{"$f":"D198","v":0},null,null,"     Is currently deeded to the BUILDER.",null,null,null,null,null,null,null,null,null,{"$f":"Q198","v":"x"},0,0,0,0,0,0,0,0,"x"]
[null,null,null,{"$f":"D198","v":0},null,null,"     Is free of title defects or other legal encumbrances.",null,null,null,null,null,null,null,null,null,{"$f":"Q198","v":"x"},0,0,0,0,0,0,0,0,"x"]
[null,null,null,{"$f":"D198","v":0},null,null,"     Is properly platted and zoned for the project.",null,null,null,null,null,null,null,null,null,{"$f":"Q198","v":"x"},0,0,0,0,0,0,0,0,"x"]
[null,null,null,{"$f":"D198","v":0},null,null,"     Is suited for the construction of the project.",null,null,null,null,null,null,null,null,null,{"$f":"Q198","v":"x"},0,0,0,0,0,0,0,0,"x"]
[null,null,null,{"$f":"D198","v":0},null,null,"     Contains no known environmental hazards.",null,null,null,null,null,null,null,null,null,{"$f":"Q198","v":"x"},0,0,0,0,0,0,0,0,"x"]
[null,null,null,{"$f":"D198","v":0},null,null,"     Contains no known archeological artifacts.",null,null,null,null,null,null,null,null,null,{"$f":"Q198","v":"x"},0,0,0,0,0,0,0,0,"x"]
[]
[null,"CONTRACT PRICE"]
[]
[null,"DESIGN FEE for Design/Build Projects only"]
[null,null,"S",null,null,"DESIGN FEE .  .  .  .  .  .  .  .  .  .  .  .  .  .  .  .  .  .  .  .  .  .  .  .  .  .  .  .  .  .  .  .  .  .  .  .  .  .  .  .  .  .",null,null,null,1000,null,null,null,null,null,null,null,"x",null,null,null,null,null,null,null,"x"]
[null,null,"P",{"$f":"D209","v":0},null,null,"This is the fee the OWNER will pay the BUILDER for developing the design of the Project as itemized",null,null,null,null,null,null,null,null,null,{"$f":"Q209","v":0},"x",0,0,0,0,0,0,0,"x"]
[null,null,null,{"$f":"D210","v":0},null,null,"above, including the construction Drawings and Specifications.",null,null,null,null,null,null,null,null,null,0,"x",0,0,0,0,0,0,0,"x"]
[]
[null,"COST of PROPERTY"]
[null,null,"S",null,null,"LAND and LOT COST .  .  .  .  .  .  .  .  .  .  .  .  .  .  .  .  .  .  .  .  .  .  .  .  .  .  .  .  .  .  .  .  .  .  .  .  .  .  .  .  .  .",null,null,null,24000,null,null,null,null,null,null,"x",null,null,null,null,null,null,null,null,"x"]
[null,null,"P",{"$f":"D214","v":0},null,null,"This is the cost of the land or lot that the project is to be built upon.  The sale of this property is",null,null,null,null,null,null,null,null,null,{"$f":"Q214","v":"x"},0,0,0,0,0,0,0,0,"x"]
[null,null,null,{"$f":"D215","v":0},null,null,"included in the Total Contract Price.",null,null,null,null,null,null,null,null,null,"x",0,0,0,0,0,0,0,0,"x"]
[]
[null,"BASIC CONSTRUCTION PRICE"]
[null,null,"S",null,null,"BASIC CONSTRUCTION PRICE .  .  .  .  .  .  .  .  .  .  .  .  .  .  .  .  .  .  .  .  .  .  .  .  .  .  .  .  .  .  .  .  .  .  .  .  .  .  .  .  .  .",null,null,null,75000,null,null,null,null,null,null,"x","x","x",null,null,null,"x","x",null,"x"]
[null,null,"P",{"$f":"D219","v":0},null,null,"Includes the labor, materials, sales tax,  tools, supervision, licenses, insurance and permits",null,null,null,null,null,null,null,null,null,{"$f":"Q219","v":"x"},"x","x",0,0,0,"x","x",0,"x"]
[null,null,null,{"$f":"D220","v":0},null,null,"indicated in the Scope of Work and Specifications.",null,null,null,null,null,null,null,null,null,"x","x","x",0,0,0,"x","x",0,"x"]
[null,null,"P",{"$f":"D219","v":0},null,null,"Does not include any work or materials excluded in the Scope of Work and Specifications or any",null,null,null,null,null,null,null,null,null,{"$f":"Q219","v":"x"},"x","x",0,0,0,"x","x",0,"x"]
[null,null,null,{"$f":"D222","v":0},null,null,"items included as Fixed Cost Allowances.",null,null,null,null,null,null,null,null,null,{"$f":"Q222","v":"x"},"x","x",0,0,0,"x","x",0,"x"]
[]
[null,"FIXED COST ALLOWANCES"]
[null,null,"S",null,null,"FIXED COST ALLOWANCES .  .  .  .  .  .  .  .  .  .  .  .  .  .  .  .  .  .  .  .  .  .  .  .  .  .  .  .  .  .  .  .  .  .  .  .  .  .  .  .  .",null,null,null,{"$f":"J531","v":0},null,null,null,null,null,null,"x","x","x",null,null,null,"x","x",null,"x"]
[null,null,"P",{"$f":"D226","v":0},null,null,"This is the total of all Fixed Cost Allowances itemized in the Construction Specifications.",null,null,null,null,null,null,null,null,null,{"$f":"Q226","v":"x"},"x","x",0,0,0,"x","x",0,"x"]
[]
[null,"TOTAL CONTRACT PRICE (includes land, design fee, construction and allowances)"]
[null,null,"S",null,null,"TOTAL CONTRACT PRICE .  .  .  .  .  .  .  .  .  .  .  .  .  .  .  .  .  .  .  .  .  .  .  .  .  .  .  .  .  .  .  .  .  .  .  .  .  .  .  .  .  .",null,null,null,{"$f":"SUM(J209:J227)","v":100000},null,null,null,null,null,null,"x","x","x",null,null,null,"x","x",null,"x"]
[null,null,"P",{"$f":"D230","v":0},null,null,"The TOTAL CONTRACT PRICE is the BASIC CONTRACT PRICE plus all CONTRACT",null,null,null,null,null,null,null,null,null,{"$f":"Q230","v":"x"},"x","x",0,0,0,"x","x",0,"x"]
[null,null,null,{"$f":"D231","v":0},null,null,"ALLOWANCES.",null,null,null,null,null,null,null,null,null,"x","x","x",0,0,0,"x","x",0,"x"]
[null,null,"P",{"$f":"D230","v":0},null,null,"The TOTAL CONTRACT PRICE is the amount the OWNER agrees to pay the BUILDER for",null,null,null,null,null,null,null,null,null,{"$f":"Q230","v":"x"},"x","x",0,0,0,"x","x",0,"x"]
[null,null,null,{"$f":"D233","v":0},null,null,"performing the work.",null,null,null,null,null,null,null,null,null,{"$f":"Q233","v":"x"},"x","x",0,0,0,"x","x",0,"x"]
[null,null,"P",{"$f":"D230","v":0},null,null,"The TOTAL CONTRACT PRICE does not include any options that may be described in the",null,null,null,null,null,null,null,null,null,{"$f":"Q230","v":"x"},"x","x",0,0,0,"x","x",0,"x"]
[null,null,null,{"$f":"D235","v":0},null,null,"Scope of Work.",null,null,null,null,null,null,null,null,null,{"$f":"Q235","v":"x"},"x","x",0,0,0,"x","x",0,"x"]
[null,null,"P",{"$f":"D230","v":0},null,null,"The TOTAL CONTRACT PRICE does not include closing costs and/or prorations that are to",null,null,null,null,null,null,null,null,null,{"$f":"Q230","v":"x"},"x","x",0,0,0,"x","x",0,"x"]
[null,null,null,{"$f":"D237","v":0},null,null,"be paid by the OWNER at closing.",null,null,null,null,null,null,null,null,null,{"$f":"Q237","v":"x"},"x","x",0,0,0,"x","x",0,"x"]
[]
[null,"TERMS fo PAYMENT for New Home Contracts"]
[null,null,"S",null,null,"TERMS of PAYMENT",null,null,null,null,null,null,null,null,null,null,"x",null,null,null,null,null,null,null,null,"x"]
[null,null,"P",{"$f":"D241","v":0},null,null,"The TOTAL CONTRACT PRICE enumerated above shall be paid to the BUILDER as follows:",null,null,null,null,null,null,null,null,null,{"$f":"Q241","v":"x"},0,0,0,0,0,0,0,0,"x"]
[null,null,"P",{"$f":"D241","v":0},null,null,"Deposit made by OWNER at the signing of this agreement.  .  .  .  .  .  .  .  .  .  .  .  .  .  .  .  .  .  .  .  .  .  .  .  .  .  .  .  .  .  .  .",null,null,1,null,null,null,null,null,null,{"$f":"Q241","v":"x"},0,0,0,0,0,0,0,0,"x"]
[null,null,"P",{"$f":"D241","v":0},null,null,"Bank or other third party payments to be made to the BUILDER.  .  .  .  .  .  .  .  .  .  .  .  .  .  .  .  .  .  .  .  .  .  .  .  .  .  .  .  .",null,null,1,null,null,null,null,null,null,{"$f":"Q241","v":"x"},0,0,0,0,0,0,0,0,"x"]
[null,null,null,{"$f":"D244","v":0},null,null,"(See section on Bank Financing and other applicable sections)",null,null,null,null,null,null,null,null,null,{"$f":"Q244","v":"x"},0,0,0,0,0,0,0,0,"x"]
[null,null,"P",{"$f":"D241","v":0},null,null,"Balance to be paid by OWNER at closing via cash, certified or cashier's check.  .  .  .  .  .  .  .  .  .  .  .  .  .  .  .  .  .  .",null,null,{"$f":"+J230-(J243+J244)","v":99998},null,null,null,null,null,null,{"$f":"Q241","v":"x"},0,0,0,0,0,0,0,0,"x"]
[null,null,null,{"$f":"D246","v":0},null,null,"(subject to adjustment for OWNERs' closing costs and prorations)",null,null,null,null,null,null,null,null,null,{"$f":"Q246","v":"x"},0,0,0,0,0,0,0,0,"x"]
[]
[null,"CONTRACTOR's FEE for Cost Plus Contracts (PERCENTAGE of COSTS)"]
[null,null,"S",null,null,"CONTRACTOR'S FEE .  .  .  .  .  .  .  .  .  .  .  .  .  .  .  .  .  .  .  .  .  .  .  .  .  .  .  .  .  .  .  .  .  .  .  .  .  .  .  .  .  .",null,null,null,"        20.00%",null,null,null,null,null,null,null,"x",null,null,"x",null,null,null,null,"x"]
[null,null,"P",{"$f":"D250","v":0},null,null,"The OWNER will reimburse the BUILDER for all construction expenses incurred to construct the project",null,null,null,null,null,null,null,null,null,{"$f":"Q250","v":0},"x",0,0,"x",0,0,0,0,"x"]
[null,null,null,{"$f":"D251","v":0},null,null,"as authorized herein.",null,null,null,null,null,null,null,null,null,0,"x",0,0,"x",0,0,0,0,"x"]
[null,null,"P",{"$f":"D250","v":0},null,null,"In addition to reimbursing the BUILDER for his expenses, the OWNER will pay the BUILDER the additional",null,null,null,null,null,null,null,null,null,{"$f":"Q250","v":0},"x",0,0,"x",0,0,0,0,"x"]
[null,null,null,{"$f":"D253","v":0},null,null,"percentage of the authorized expenses for the BUILDERs overhead and compensation.",null,null,null,null,null,null,null,null,null,{"$f":"Q253","v":0},"x",0,0,"x",0,0,0,0,"x"]
[]
[null,"CONTRACTOR's FEE for Cost Plus Contracts (LUMP SUM FEE)"]
[null,null,"S",null,null,"CONTRACTOR'S FEE .  .  .  .  .  .  .  .  .  .  .  .  .  .  .  .  .  .  .  .  .  .  .  .  .  .  .  .  .  .  .  .  .  .  .  .  .  .  .  .  .  .",null,null,null,10000,null,null,null,null,null,null,null,null,null,"x",null,null,null,null,null,"x"]
[null,null,"P",{"$f":"D257","v":0},null,null,"The OWNER will reimburse the BUILDER for all construction expenses incurred to construct the project",null,null,null,null,null,null,null,null,null,{"$f":"Q257","v":0},0,0,"x",0,0,0,0,0,"x"]
[null,null,null,{"$f":"D258","v":0},null,null,"as authorized herein.",null,null,null,null,null,null,null,null,null,0,0,0,"x",0,0,0,0,0,"x"]
[null,null,"P",{"$f":"D257","v":0},null,null,"In addition to reimbursing the BUILDER for his expenses, the OWNER will pay the BUILDER an additional fixed",null,null,null,null,null,null,null,null,null,{"$f":"Q257","v":0},0,0,"x",0,0,0,0,0,"x"]
[null,null,null,{"$f":"D260","v":0},null,null,"fee in the amount itemized above to pay the BUILDERs overhead and compensation.",null,null,null,null,null,null,null,null,null,{"$f":"Q260","v":0},0,0,"x",0,0,0,0,0,"x"]
[]
[null,"PAYMENT PROCEDURE for Cost Plus Contracts"]
[null,null,"S",null,null,"PAYMENT PROCEDURE",null,null,null,null,null,null,null,null,null,null,null,"x",null,"x","x",null,null,null,null,"x"]
[null,null,"P",null,null,null,"The BUILDER will submit progress payment requests to the OWNER at intervals determined by the BUILDER.",null,null,null,null,null,null,null,null,null,null,null,null,null,null,null,null,null,null,"x"]
[null,null,"P",null,null,null,"The BUILDER will submit progress payment requests to the OWNER every two weeks.",null,null,null,null,null,null,null,null,null,null,null,null,null,null,null,null,null,null,"x"]
[null,null,"P",null,null,null,"The BUILDER will submit progress payment requests to the OWNER on the 1st and the 15th of each month.",null,null,null,null,null,null,null,null,null,null,"x",null,"x","x",null,null,null,null,"x"]
[null,null,"P",null,null,null,"The BUILDER will submit payment requests to the OWNER once per month, on the last day of each month.",null,null,null,null,null,null,null,null,null,null,null,null,null,null,null,null,null,null,"x"]
[null,null,"P",{"$f":"D264","v":0},null,null,"At each payment period, the BUILDER will submit to the OWNER a report detailing the following:",null,null,null,null,null,null,null,null,null,{"$f":"Q264","v":0},"x",0,"x","x",0,0,0,0,"x"]
[null,null,null,{"$f":"D269","v":0},null,null,"     A transaction record of each cost incurred by the BUILDER to date.",null,null,null,null,null,null,null,null,null,{"$f":"Q269","v":0},"x",0,"x","x",0,0,0,0,"x"]
[null,null,null,{"$f":"D269","v":0},null,null,"     A summary of all expenses incurred on the project to date.",null,null,null,null,null,null,null,null,null,{"$f":"Q269","v":0},"x",0,"x","x",0,0,0,0,"x"]
[null,null,null,{"$f":"D269","v":0},null,null,"     A copy of all invoices for costs not already provided to date.",null,null,null,null,null,null,null,null,null,{"$f":"Q269","v":0},"x",0,"x","x",0,0,0,0,"x"]
[null,null,null,{"$f":"D269","v":0},null,null,"     An invoice for all work performed by the BUILDER's in-house labor.",null,null,null,null,null,null,null,null,null,{"$f":"Q269","v":0},"x",0,"x","x",0,0,0,0,"x"]
[null,null,null,{"$f":"D269","v":0},null,null,"     An invoice for the BUILDER's fee to be paid with that payment.",null,null,null,null,null,null,null,null,null,{"$f":"Q269","v":0},"x",0,"x","x",0,0,0,0,"x"]
[null,null,null,{"$f":"D269","v":0},null,null,"     A statement summarizing the OWNER's transactions with the BUILDER.",null,null,null,null,null,null,null,null,null,{"$f":"Q269","v":0},"x",0,"x","x",0,0,0,0,"x"]
[null,null,"P",{"$f":"D264","v":0},null,null,"Qualified progress payments are due and payable within 3 days of the presentation of a payment request.",null,null,null,null,null,null,null,null,null,{"$f":"Q264","v":0},"x",0,"x","x",0,0,0,0,"x"]
[null,null,"P",{"$f":"D264","v":0},null,null,"Minor punchlist items shall not provide a justification for the OWNER to withhold otherwise qualified draw",null,null,null,null,null,null,null,null,null,{"$f":"Q264","v":0},"x",0,"x","x",0,0,0,0,"x"]
[null,null,null,{"$f":"D277","v":0},null,null,"payments.",null,null,null,null,null,null,null,null,null,{"$f":"Q277","v":0},"x",0,"x","x",0,0,0,0,"x"]
[]
[null,"PAYMENT PROCEDURE for Fixed Price Contracts with a Standard Draw Schedule"]
[null,null,"S",null,null,"PAYMENT PROCEDURE",null,null,null,null,null,null,null,null,null,null,null,null,"x",null,null,null,null,"x",null,"x"]
[null,null,"P",{"$f":"D281","v":0},null,null,"All progress payments are considered partial payments towards the Total Contract Price and are not to be",null,null,null,null,null,null,null,null,null,{"$f":"Q281","v":0},0,"x",0,0,0,0,"x",0,"x"]
[null,null,null,{"$f":"D282","v":0},null,null,"construed as payment for any specific portion of the work.",null,null,null,null,null,null,null,null,null,0,0,"x",0,0,0,0,"x",0,"x"]
[null,null,"P",{"$f":"D281","v":0},null,null,"Progress payments may be received in any order or in any combination.",null,null,null,null,null,null,null,null,null,{"$f":"Q281","v":0},0,"x",0,0,0,0,"x",0,"x"]
[null,null,"P",{"$f":"D281","v":0},null,null,"Qualified progress payments are due and payable within 3 days of the occurrence of each event and",null,null,null,null,null,null,null,null,null,{"$f":"Q281","v":0},0,"x",0,0,0,0,"x",0,"x"]
[null,null,null,{"$f":"D285","v":0},null,null,"the presentation of a payment request.",null,null,null,null,null,null,null,null,null,{"$f":"Q285","v":0},0,"x",0,0,0,0,"x",0,"x"]
[null,null,"P",{"$f":"D281","v":0},null,null,"Minor punchlist items shall not provide a justification for the OWNER to withhold otherwise qualified draw",null,null,null,null,null,null,null,null,null,{"$f":"Q281","v":0},0,"x",0,0,0,0,"x",0,"x"]
[null,null,null,{"$f":"D287","v":0},null,null,"payments.",null,null,null,null,null,null,null,null,null,{"$f":"Q287","v":0},0,"x",0,0,0,0,"x",0,"x"]
[null,null,"P",null,null,null,"Draw descriptions are general and not written specifically for this project.",null,null,null,null,null,null,null,null,null,null,null,null,null,null,null,null,null,null,"x"]
[null,null,"P",null,null,null,"Progress payment descriptions are general, are not written specifically for this project, and are not intended",null,null,null,null,null,null,null,null,null,null,null,null,null,null,null,null,null,null,"x"]
[null,null,null,null,null,null,"to describe what work that is included in the contract.  This information is contained in the Scope of Work.",null,null,null,null,null,null,null,null,null,null,null,null,null,null,null,null,null,null,{"$f":"Z290","v":"x"}]
[]
[null,"PAYMENT PROCEDURE for Draws Based Upon a Schedule of Values"]
[null,null,"S",null,null,"PAYMENT PROCEDURE",null,null,null,null,null,null,null,null,null,null,null,null,null,null,null,null,"x",null,null,"x"]
[null,null,"P",{"$f":"D294","v":0},null,null,"The OWNER will pay progress payments to the BUILDER in accordance with the attached Schedule of Values.",null,null,null,null,null,null,null,null,null,{"$f":"Q294","v":0},0,0,0,0,0,"x",0,0,"x"]
[null,null,"P",null,null,null,"The BUILDER will submit progress payment requests to the OWNER at intervals determined by the BUILDER.",null,null,null,null,null,null,null,null,null,null,null,null,null,null,null,null,null,null,"x"]
[null,null,"P",null,null,null,"The BUILDER will submit progress payment requests to the OWNER every two weeks.",null,null,null,null,null,null,null,null,null,null,null,null,null,null,null,null,null,null,"x"]
[null,null,"P",null,null,null,"The BUILDER will submit progress payment requests to the OWNER on the 1st and the 15th of each month.",null,null,null,null,null,null,null,null,null,null,null,null,null,null,null,null,null,null,"x"]
[null,null,"P",null,null,null,"The BUILDER will submit payment requests to the OWNER once per month, on the last day of each month.",null,null,null,null,null,null,null,null,null,null,null,null,null,null,null,"x",null,null,"x"]
[null,null,"P",{"$f":"D294","v":0},null,null,"Each payment request will itemize the specific item on the Schedule of Values and the requested percentage",null,null,null,null,null,null,null,null,null,{"$f":"Q294","v":0},0,0,0,0,0,"x",0,0,"x"]
[null,null,null,{"$f":"D300","v":0},null,null,"of that item for which the BUILDER is requesting payment for.",null,null,null,null,null,null,null,null,null,{"$f":"Q300","v":0},0,0,0,0,0,"x",0,0,"x"]
[null,null,"P",{"$f":"D294","v":0},null,null,"Progress payments may be received in any order or in any combination.",null,null,null,null,null,null,null,null,null,{"$f":"Q294","v":0},0,0,0,0,0,"x",0,0,"x"]
[null,null,"P",{"$f":"D294","v":0},null,null,"Qualified progress payments are due and payable within 3 days of the presentation of a payment request.",null,null,null,null,null,null,null,null,null,{"$f":"Q294","v":0},0,0,0,0,0,"x",0,0,"x"]
[null,null,"P",{"$f":"D294","v":0},null,null,"Minor punchlist items shall not provide a justification for the OWNER to withhold otherwise qualified draw",null,null,null,null,null,null,null,null,null,{"$f":"Q294","v":0},0,0,0,0,0,"x",0,0,"x"]
[null,null,null,{"$f":"D304","v":0},null,null,"payments.",null,null,null,null,null,null,null,null,null,{"$f":"Q304","v":0},0,0,0,0,0,"x",0,0,"x"]
[]
[null,"PAYMENT SCHEDULE"]
[]
[null,"DRAW SCHEDULE"]
[null,null,"S",null,null,"PROGRESS PAYMENT SCHEDULE",null,null,null,null,null,null,null,null,null,null,null,null,"x","x",null,null,null,"x",null,"x"]
[null,null,null,{"$f":"D310","v":0},null,null,null,null,null,null,null,null,null,null,null,null,{"$f":"Q310","v":0},0,"x","x",0,0,0,"x",0,"x"]
[null,null,null,{"$f":"D310","v":0},null,null,"DRAW NAME","DUE UPON THE OCCURRENCE of the FOLLOWING","%","        AMOUNT",null,null,null,null,null,null,{"$f":"Q310","v":0},0,"x","x",0,0,0,"x",0,"x"]
[null,null,null,{"$f":"D310","v":0},null,null,null,null,null,null,null,null,null,null,null,null,{"$f":"Q310","v":0},0,"x","x",0,0,0,"x",0,"x"]
[null,null,"P",null,null,null,"Initial Deposit","Upon signing of Contract",{"$f":"IF(D314=\"x\", 15%,\"\")","v":""},{"$f":"IF(D314=\"x\", ROUND($J$219*I314,0),\"\")","v":""},null,null,null,null,null,null,null,null,"x","x",null,null,null,"x",null,"x"]
[null,null,null,{"$f":"D314","v":0},null,null,null,null,null,null,null,null,null,null,null,null,{"$f":"Q314","v":0},0,"x","x",0,0,0,"x",0,"x"]
[null,null,"P",null,null,null,"Plans Draw","Upon completion of the Construction Plans.",{"$f":"IF(D316=\"x\", 10%,\"\")","v":""},{"$f":"IF(D316=\"x\", ROUND($J$219*I316,0),\"\")","v":""},null,null,null,null,null,null,null,null,null,null,null,null,null,null,null,"x"]
[null,null,null,{"$f":"D316","v":0},null,null,null,null,null,null,null,null,null,null,null,null,{"$f":"Q316","v":0},0,0,0,0,0,0,0,0,"x"]
[null,null,"P",null,null,null,"Permit Draw","Upon issuance of the building permit.",{"$f":"IF(D318=\"x\", 10%,\"\")","v":""},{"$f":"IF(D318=\"x\", ROUND($J$219*I318,0),\"\")","v":""},null,null,null,null,null,null,null,null,null,null,null,null,null,null,null,"x"]
[null,null,null,{"$f":"D318","v":0},null,null,null,null,null,null,null,null,null,null,null,null,{"$f":"Q318","v":0},0,0,0,0,0,0,0,0,"x"]
[null,null,"P",null,null,null,"Demo Draw","Upon completion of major demolition work.",{"$f":"IF(D320=\"x\", 10%,\"\")","v":""},{"$f":"IF(D320=\"x\", ROUND($J$219*I320,0),\"\")","v":""},null,null,null,null,null,null,null,null,null,null,null,null,null,"x",null,"x"]
[null,null,null,{"$f":"D320","v":0},null,null,null,null,null,null,null,null,null,null,null,null,{"$f":"Q320","v":0},0,0,0,0,0,0,"x",0,"x"]
[null,null,"P",null,null,null,"Slab Draw","Footers and masonry sub walls completed.",{"$f":"IF(D322=\"x\", 10%,\"\")","v":""},{"$f":"IF(D322=\"x\", ROUND($J$219*I322,0),\"\")","v":""},null,null,null,null,null,null,null,null,"x","x",null,null,null,"x",null,"x"]
[null,null,null,{"$f":"D322","v":0},null,null,null,"Floor slab poured and finished.",null,null,null,null,null,null,null,null,{"$f":"Q322","v":0},0,"x","x",0,0,0,"x",0,"x"]
[null,null,null,{"$f":"D322","v":0},null,null,null,null,null,null,null,null,null,null,null,null,{"$f":"Q322","v":0},0,"x","x",0,0,0,"x",0,"x"]
[null,null,"P",null,null,null,"Masonry Draw","Masonry walls constructed.",{"$f":"IF(D325=\"x\", 10%,\"\")","v":""},{"$f":"IF(D325=\"x\", ROUND($J$219*I325,0),\"\")","v":""},null,null,null,null,null,null,null,null,null,"x",null,null,null,"x",null,"x"]
[null,null,null,{"$f":"D325","v":0},null,null,null,"Concrete lintel inspected and poured.",null,null,null,null,null,null,null,null,{"$f":"Q325","v":0},0,0,"x",0,0,0,"x",0,"x"]
[null,null,null,{"$f":"D325","v":0},null,null,null,null,null,null,null,null,null,null,null,null,{"$f":"Q325","v":0},0,0,"x",0,0,0,"x",0,"x"]
[null,null,"P",null,null,null,"Roof Draw","Roof structure installed.",{"$f":"IF(D328=\"x\", 10%,\"\")","v":""},{"$f":"IF(D328=\"x\", ROUND($J$219*I328,0),\"\")","v":""},null,null,null,null,null,null,null,null,"x","x",null,null,null,"x",null,"x"]
[null,null,null,{"$f":"D328","v":0},null,null,null,"Felt paper installed, roof dried-in.",null,null,null,null,null,null,null,null,{"$f":"Q328","v":0},0,"x","x",0,0,0,"x",0,"x"]
[null,null,null,{"$f":"D328","v":0},null,null,null,null,null,null,null,null,null,null,null,null,{"$f":"Q328","v":0},0,"x","x",0,0,0,"x",0,"x"]
[null,null,"P",null,null,null,"Close in Draw","All mechanical roughins finished & inspected.",{"$f":"IF(D331=\"x\", 10%,\"\")","v":""},{"$f":"IF(D331=\"x\", ROUND($J$219*I331,0),\"\")","v":""},null,null,null,null,null,null,null,null,null,"x",null,null,null,"x",null,"x"]
[null,null,null,{"$f":"D331","v":0},null,null,null,"Framing and insulation installed and inspected.",null,null,null,null,null,null,null,null,{"$f":"Q331","v":0},0,0,"x",0,0,0,"x",0,"x"]
[null,null,null,{"$f":"D331","v":0},null,null,null,null,null,null,null,null,null,null,null,null,{"$f":"Q331","v":0},0,0,"x",0,0,0,"x",0,"x"]
[null,null,"P",null,null,null,"Exterior Draw","Exterior wall finishes (stucco, siding, brick) installed.",{"$f":"IF(D334=\"x\", 10%,\"\")","v":""},{"$f":"IF(D334=\"x\", ROUND($J$219*I334,0),\"\")","v":""},null,null,null,null,null,null,null,null,"x","x",null,null,null,"x",null,"x"]
[null,null,null,{"$f":"D334","v":0},null,null,null,"Exterior doors and windows installed.",null,null,null,null,null,null,null,null,{"$f":"Q334","v":0},0,"x","x",0,0,0,"x",0,"x"]
[null,null,null,{"$f":"D334","v":0},null,null,null,"Does not include painting or exterior aluminum work.",null,null,null,null,null,null,null,null,{"$f":"Q334","v":0},0,"x","x",0,0,0,"x",0,"x"]
[null,null,null,{"$f":"D334","v":0},null,null,null,null,null,null,null,null,null,null,null,null,{"$f":"Q334","v":0},0,"x","x",0,0,0,"x",0,"x"]
[null,null,"P",null,null,null,"Drywall Draw","Drywall hung, finished and textured.",{"$f":"IF(D338=\"x\", 10%,\"\")","v":""},{"$f":"IF(D338=\"x\", ROUND($J$219*I338,0),\"\")","v":""},null,null,null,null,null,null,null,null,"x","x",null,null,null,"x",null,"x"]
[null,null,null,{"$f":"D338","v":0},null,null,null,null,null,null,null,null,null,null,null,null,{"$f":"Q338","v":0},0,"x","x",0,0,0,"x",0,"x"]
[null,null,"P",null,null,null,"Trim Draw","Interior doors and mouldings installed.",{"$f":"IF(D340=\"x\", 10%,\"\")","v":""},{"$f":"IF(D340=\"x\", ROUND($J$219*I340,0),\"\")","v":""},null,null,null,null,null,null,null,null,null,"x",null,null,null,"x",null,"x"]
[null,null,null,{"$f":"D340","v":0},null,null,null,"Drywall hung, finished and textured.",null,null,null,null,null,null,null,null,{"$f":"Q340","v":0},0,0,"x",0,0,0,"x",0,"x"]
[null,null,null,{"$f":"D340","v":0},null,null,null,null,null,null,null,null,null,null,null,null,{"$f":"Q340","v":0},0,0,"x",0,0,0,"x",0,"x"]
[null,null,"P",null,null,null,"Cabinet Draw","Kitchen cabinets and bath vanities installed.",{"$f":"IF(D343=\"x\", 10%,\"\")","v":""},{"$f":"IF(D343=\"x\", ROUND($J$219*I343,0),\"\")","v":""},null,null,null,null,null,null,null,null,"x",null,null,null,null,"x",null,"x"]
[null,null,null,{"$f":"D343","v":0},null,null,null,"Formica and cultured marble tops installed.",null,null,null,null,null,null,null,null,{"$f":"Q343","v":0},0,"x",0,0,0,0,"x",0,"x"]
[null,null,null,{"$f":"D343","v":0},null,null,null,null,null,null,null,null,null,null,null,null,{"$f":"Q343","v":0},0,"x",0,0,0,0,"x",0,"x"]
[null,null,"P",null,null,null,"Flooring Draw","Flooring provided by the BUILDER is installed.",{"$f":"IF(D346=\"x\", 10%,\"\")","v":""},{"$f":"IF(D346=\"x\", ROUND($J$219*I346,0),\"\")","v":""},null,null,null,null,null,null,null,null,"x","x",null,null,null,"x",null,"x"]
[null,null,null,{"$f":"D346","v":0},null,null,null,"Plumbing and lighting fixtures installed.",null,null,null,null,null,null,null,null,{"$f":"Q346","v":0},0,"x","x",0,0,0,"x",0,"x"]
[null,null,null,{"$f":"D346","v":0},null,null,null,null,null,null,null,null,null,null,null,null,{"$f":"Q346","v":0},0,"x","x",0,0,0,"x",0,"x"]
[null,null,"P",null,null,null,"Final Inspection","Upon Receipt of Final Inspection:",{"$f":"IF(D349=\"x\", 4%,\"\")","v":""},{"$f":"IF(D349=\"x\", ROUND($J$219*I349,0),\"\")","v":""},null,null,null,null,null,null,null,null,"x","x",null,null,null,"x",null,"x"]
[null,null,null,{"$f":"D349","v":0},null,null,null,null,null,null,null,null,null,null,null,null,{"$f":"Q349","v":0},0,"x","x",0,0,0,"x",0,"x"]
[null,null,"P",null,null,null,"Final Payment","Upon Completion of all Punchlist Items:",{"$f":"IF(D351=\"x\", 1%,\"\")","v":""},{"$f":"IF(D351=\"x\", ROUND($J$219*I351,0),\"\")","v":""},null,null,null,null,null,null,null,null,"x","x",null,null,null,"x",null,"x"]
[null,null,null,{"$f":"D351","v":0},null,null,null,null,null,null,null,null,null,null,null,null,{"$f":"Q351","v":0},0,"x","x",0,0,0,"x",0,"x"]
[null,null,"P",null,null,null,"Final Draw","Upon Completion of all Punchlist Items:",{"$f":"IF(D353=\"x\", 1%,\"\")","v":""},{"$f":"IF(D353=\"x\", ROUND($J$219*I353,0),\"\")","v":""},null,null,null,null,null,null,null,null,null,null,null,null,null,null,null,"x"]
[null,null,null,{"$f":"D353","v":0},null,null,null,null,null,null,null,null,null,null,null,null,{"$f":"Q353","v":0},0,0,0,0,0,0,0,0,"x"]
[null,null,"P",null,null,null,"Allowance Reserve","Amount held in reserve to fund fixed cost allowance purchases:",null,{"$f":"J226","v":0},null,null,null,null,null,null,null,null,"x",null,null,null,null,"x",null,"x"]
[null,null,null,{"$f":"D355","v":0},null,null,null,null,null,null,null,null,null,null,null,null,{"$f":"Q355","v":0},0,"x",0,0,0,0,"x",0,"x"]
[null,null,null,{"$f":"D355","v":0},null,null,null,null,null,null,null,null,null,null,null,null,{"$f":"Q355","v":0},0,"x",0,0,0,0,"x",0,"x"]
[null,null,"G",{"$f":"D310","v":0},null,"TOTAL ALL PROGRESS PAYMENTS:",null,null,{"$f":"SUM(I314:I353)","v":0},{"$f":"SUM(J314:J356)","v":0},null,null,null,null,null,null,{"$f":"Q310","v":0},0,"x","x",0,0,0,"x",0,"x"]
[null,null,null,{"$f":"D310","v":0},null,null,null,null,null,null,null,null,null,null,null,null,{"$f":"Q310","v":0},0,"x","x",0,0,0,"x",0,"x"]
[]
[null,"CHANGES or ADDITIONAL WORK using the Confirmation of Instruction Form"]
[null,null,"S",null,null,"CHANGES or ADDITIONAL WORK",null,null,null,null,null,null,null,null,null,null,"x","x","x","x","x","x","x","x",null,"x"]
[null,null,"P",{"$f":"D362","v":0},null,null,"Both parties recognize that during the construction of the project the possibility exists that any or all of the",null,null,null,null,null,null,null,null,null,{"$f":"Q362","v":"x"},"x","x","x","x","x","x","x",0,"x"]
[null,null,null,{"$f":"D363","v":0},null,null,"following may occur:",null,null,null,null,null,null,null,null,null,"x","x","x","x","x","x","x","x",0,"x"]
[null,null,null,{"$f":"D363","v":0},null,null,null,null,null,null,null,null,null,null,null,null,{"$f":"Q363","v":"x"},"x","x","x","x","x","x","x",0,"x"]
[null,null,null,{"$f":"D363","v":0},null,null,"          1.  The OWNER may request the BUILDER to perform some work differently than as originally planned.",null,null,null,null,null,null,null,null,null,{"$f":"Q363","v":"x"},"x","x","x","x","x","x","x",0,"x"]
[null,null,null,{"$f":"D363","v":0},null,null,"          2.  The OWNER may request the BUILDER to perform additional work.",null,null,null,null,null,null,null,null,null,{"$f":"Q363","v":"x"},"x","x","x","x","x","x","x",0,"x"]
[null,null,null,{"$f":"D363","v":0},null,null,"          3.  The OWNER may make specific product selections.",null,null,null,null,null,null,null,null,null,{"$f":"Q363","v":"x"},"x","x","x","x","x","x","x",0,"x"]
[null,null,null,{"$f":"D363","v":0},null,null,"          4.  The BUILDER may request the OWNER to clarify some portion of the construction plans.",null,null,null,null,null,null,null,null,null,{"$f":"Q363","v":"x"},"x","x","x","x","x","x","x",0,"x"]
[null,null,null,{"$f":"D363","v":0},null,null,null,null,null,null,null,null,null,null,null,null,{"$f":"Q363","v":"x"},"x","x","x","x","x","x","x",0,"x"]
[null,null,"P",{"$f":"D362","v":0},null,null,"Both parties agree that said requests shall be detailed and conveyed between the parties via the use of the",null,null,null,null,null,null,null,null,null,{"$f":"Q362","v":"x"},"x","x","x","x","x","x","x",0,"x"]
[null,null,null,{"$f":"D371","v":0},null,null,"BUILDER's form titled \"Confirmation of Instructions\".",null,null,null,null,null,null,null,null,null,{"$f":"Q371","v":"x"},"x","x","x","x","x","x","x",0,"x"]
[null,null,"P",{"$f":"D362","v":0},null,null,"The Confirmation of Instruction form shall be completed in duplicate for each such request and shall clearly",null,null,null,null,null,null,null,null,null,{"$f":"Q362","v":"x"},"x","x","x","x","x","x","x",0,"x"]
[null,null,null,{"$f":"D373","v":0},null,null,"state the specific instruction in narrative form, the effect (if any) of the instruction on the contract price, and",null,null,null,null,null,null,null,null,null,{"$f":"Q373","v":"x"},"x","x","x","x","x","x","x",0,"x"]
[null,null,null,{"$f":"D373","v":0},null,null,"any other relevant information.",null,null,null,null,null,null,null,null,null,{"$f":"Q373","v":"x"},"x","x","x","x","x","x","x",0,"x"]
[null,null,"P",{"$f":"D362","v":0},null,null,"Confirmation of Instructions shall require the approval of only one OWNER to be effective.",null,null,null,null,null,null,null,null,null,{"$f":"Q362","v":"x"},"x","x","x","x","x","x","x",0,"x"]
[null,null,"P",null,null,null,"Confirmation of Instructions shall be executed by the BUILDER only upon written authorization except requests",null,null,null,null,null,null,null,null,null,null,null,null,null,null,null,null,null,null,"x"]
[null,null,null,{"$f":"D377","v":0},null,null,"conveyed via telephone, as described below.",null,null,null,null,null,null,null,null,null,{"$f":"Q377","v":0},0,0,0,0,0,0,0,0,"x"]
[null,null,"P",null,null,null,"In all circumstances wherein the OWNER has conveyed his instructions to the BUILDER via telephone, the",null,null,null,null,null,null,null,null,null,null,null,null,null,null,null,null,null,null,"x"]
[null,null,null,{"$f":"D379","v":0},null,null,"BUILDER shall mail, fax or deliver a copy of the Confirmation of Instructions form to the OWNER at the address",null,null,null,null,null,null,null,null,null,{"$f":"Q379","v":0},0,0,0,0,0,0,0,0,"x"]
[null,null,null,{"$f":"D379","v":0},null,null,"on this contract on next business day.",null,null,null,null,null,null,null,null,null,{"$f":"Q379","v":0},0,0,0,0,0,0,0,0,"x"]
[null,null,"P",null,null,null,"The OWNER agrees that he will read any such instruction upon it's receipt and that he will contact the BUILDER",null,null,null,null,null,null,null,null,null,null,null,null,null,null,null,null,null,null,"x"]
[null,null,null,{"$f":"D382","v":0},null,null,"immediately if he is not in full agreement with it's stipulations.",null,null,null,null,null,null,null,null,null,{"$f":"Q382","v":0},0,0,0,0,0,0,0,0,"x"]
[null,null,"P",null,null,null,"The OWNER agrees that such any instruction not specifically countermanded by him within three business",null,null,null,null,null,null,null,null,null,null,null,null,null,null,null,null,null,null,"x"]
[null,null,null,{"$f":"D384","v":0},null,null,"days of it's mailing shall be accepted as correct and accurate and is to be acted upon by the BUILDER.",null,null,null,null,null,null,null,null,null,{"$f":"Q384","v":0},0,0,0,0,0,0,0,0,"x"]
[null,null,"P",null,null,null,"In the event the subject of the Instruction is of the nature as to have required immediate action it cannot be",null,null,null,null,null,null,null,null,null,null,null,null,null,null,null,null,null,null,"x"]
[null,null,null,{"$f":"D386","v":0},null,null,"later voided by the OWNER.",null,null,null,null,null,null,null,null,null,{"$f":"Q386","v":0},0,0,0,0,0,0,0,0,"x"]
[null,null,"P",null,null,null,"ALL CHANGES AND ADDITIONAL WORK MUST BE PAID FOR IN FULL IN ADVANCE.",null,null,null,null,null,null,null,null,null,null,null,null,null,null,null,null,null,null,"x"]
[]
[null,"CHANGE ORDERS using Standard Change Order forms"]
[null,null,"S",null,null,"CHANGE ORDERS using STANDARD CHANGE ORDERS",null,null,null,null,null,null,null,null,null,null,null,null,null,null,null,null,null,null,null,"x"]
[null,null,"P",{"$f":"D391","v":0},null,null,"Both parties recognize that during the construction of the project the possibility exists that any or all of the",null,null,null,null,null,null,null,null,null,{"$f":"Q391","v":0},0,0,0,0,0,0,0,0,"x"]
[null,null,null,{"$f":"D392","v":0},null,null,"following may occur:",null,null,null,null,null,null,null,null,null,0,0,0,0,0,0,0,0,0,"x"]
[null,null,null,{"$f":"D392","v":0},null,null,null,null,null,null,null,null,null,null,null,null,{"$f":"Q392","v":0},0,0,0,0,0,0,0,0,"x"]
[null,null,null,{"$f":"D392","v":0},null,null,"          1.  The OWNER may request the BUILDER to perform some work differently than as originally planned.",null,null,null,null,null,null,null,null,null,{"$f":"Q392","v":0},0,0,0,0,0,0,0,0,"x"]
[null,null,null,{"$f":"D392","v":0},null,null,"          2.  The OWNER may request the BUILDER to perform additional work.",null,null,null,null,null,null,null,null,null,{"$f":"Q392","v":0},0,0,0,0,0,0,0,0,"x"]
[null,null,null,{"$f":"D392","v":0},null,null,"          3.  The OWNER may make specific product selections.",null,null,null,null,null,null,null,null,null,{"$f":"Q392","v":0},0,0,0,0,0,0,0,0,"x"]
[null,null,null,{"$f":"D392","v":0},null,null,"          4.  The BUILDER may request the OWNER to clarify some portion of the construction plans.",null,null,null,null,null,null,null,null,null,{"$f":"Q392","v":0},0,0,0,0,0,0,0,0,"x"]
[null,null,null,{"$f":"D392","v":0},null,null,null,null,null,null,null,null,null,null,null,null,{"$f":"Q392","v":0},0,0,0,0,0,0,0,0,"x"]
[null,null,"P",{"$f":"D391","v":0},null,null,"Both parties agree that said requests shall be detailed and conveyed between the parties via the use of a",null,null,null,null,null,null,null,null,null,{"$f":"Q391","v":0},0,0,0,0,0,0,0,0,"x"]
[null,null,null,{"$f":"D400","v":0},null,null,"Change Order.",null,null,null,null,null,null,null,null,null,{"$f":"Q400","v":0},0,0,0,0,0,0,0,0,"x"]
[null,null,"P",{"$f":"D391","v":0},null,null,"The Change Order form shall be completed in duplicate for each such request and shall clearly state the",null,null,null,null,null,null,null,null,null,{"$f":"Q391","v":0},0,0,0,0,0,0,0,0,"x"]
[null,null,null,{"$f":"D402","v":0},null,null,"change or extra work in narrative form, the effect (if any) on the contract price, and any other relevant",null,null,null,null,null,null,null,null,null,{"$f":"Q402","v":0},0,0,0,0,0,0,0,0,"x"]
[null,null,null,{"$f":"D402","v":0},null,null,"information.",null,null,null,null,null,null,null,null,null,{"$f":"Q402","v":0},0,0,0,0,0,0,0,0,"x"]
[null,null,"P",{"$f":"D391","v":0},null,null,"Change Orders shall require the approval of only one OWNER to be effective.",null,null,null,null,null,null,null,null,null,{"$f":"Q391","v":0},0,0,0,0,0,0,0,0,"x"]
[null,null,"P",null,null,null,"Change Orders shall be executed by the BUILDER only upon written authorization except requests conveyed",null,null,null,null,null,null,null,null,null,null,null,null,null,null,null,null,null,null,"x"]
[null,null,null,{"$f":"D406","v":0},null,null,"via telephone, as described below.",null,null,null,null,null,null,null,null,null,{"$f":"Q406","v":0},0,0,0,0,0,0,0,0,"x"]
[null,null,"P",null,null,null,"In all circumstances wherein the OWNER has approved the Change Order to the BUILDER via telephone, the",null,null,null,null,null,null,null,null,null,null,null,null,null,null,null,null,null,null,"x"]
[null,null,null,{"$f":"D408","v":0},null,null,"BUILDER shall mail, fax or deliver a copy of the Change Order to the OWNER at the address on this contract on",null,null,null,null,null,null,null,null,null,{"$f":"Q408","v":0},0,0,0,0,0,0,0,0,"x"]
[null,null,null,{"$f":"D408","v":0},null,null,"the next business day.",null,null,null,null,null,null,null,null,null,{"$f":"Q408","v":0},0,0,0,0,0,0,0,0,"x"]
[null,null,"P",null,null,null,"The OWNER agrees that he will read any such Change Order upon it's receipt and that he will contact the",null,null,null,null,null,null,null,null,null,null,null,null,null,null,null,null,null,null,"x"]
[null,null,null,{"$f":"D411","v":0},null,null,"BUILDER immediately if he is not in full agreement with it's stipulations.",null,null,null,null,null,null,null,null,null,{"$f":"Q411","v":0},0,0,0,0,0,0,0,0,"x"]
[null,null,"P",null,null,null,"The OWNER agrees that such any Change Order not specifically countermanded by him within three business",null,null,null,null,null,null,null,null,null,null,null,null,null,null,null,null,null,null,"x"]
[null,null,null,{"$f":"D413","v":0},null,null,"days of it's mailing shall be accepted as correct and accurate and is to be acted upon by the BUILDER.",null,null,null,null,null,null,null,null,null,{"$f":"Q413","v":0},0,0,0,0,0,0,0,0,"x"]
[null,null,"P",null,null,null,"In the event the subject of the Change Order is of the nature as to have required immediate action it cannot",null,null,null,null,null,null,null,null,null,null,null,null,null,null,null,null,null,null,"x"]
[null,null,null,{"$f":"D415","v":0},null,null,"be later voided by the OWNER.",null,null,null,null,null,null,null,null,null,{"$f":"Q415","v":0},0,0,0,0,0,0,0,0,"x"]
[null,null,"P",null,null,null,"ALL CHANGES AND ADDITIONAL WORK MUST BE PAID FOR IN FULL IN ADVANCE.",null,null,null,null,null,null,null,null,null,null,null,null,null,null,null,null,null,null,"x"]
[]
[null,"CHANGES by BUILDING OFFICIALS"]
[null,null,"S",null,null,"CHANGES REQUIRED by PLANS EXAMINERS or BUILDING INSPECTORS",null,null,null,null,null,null,null,null,null,null,null,null,null,null,null,null,null,null,null,"x"]
[null,null,"P",{"$f":"D420","v":0},null,null,"Any changes in the Scope of Work that are mandated by the local Building Department shall be treated as",null,null,null,null,null,null,null,null,null,{"$f":"Q420","v":0},0,0,0,0,0,0,0,0,"x"]
[null,null,null,{"$f":"D421","v":0},null,null,"additional work as provided by this contract.",null,null,null,null,null,null,null,null,null,0,0,0,0,0,0,0,0,0,"x"]
[]
[null,"CLOSING COSTS"]
[null,null,"S",null,null,"CLOSING COSTS",null,null,null,null,null,null,null,null,null,null,"x",null,null,null,null,null,null,null,null,"x"]
[null,null,"P",{"$f":"D425","v":0},null,null,"The BUILDER will pay the following closing costs:",null,null,null,null,null,null,null,null,null,{"$f":"Q425","v":"x"},0,0,0,0,0,0,0,0,"x"]
[null,null,null,{"$f":"D426","v":0},null,null,"     Recording costs for Deed.",null,null,null,null,null,null,null,null,null,"x",0,0,0,0,0,0,0,0,"x"]
[null,null,null,{"$f":"D426","v":0},null,null,"     Documentary Stamps on Deed.",null,null,null,null,null,null,null,null,null,{"$f":"Q426","v":"x"},0,0,0,0,0,0,0,0,"x"]
[null,null,null,{"$f":"D426","v":0},null,null,"     _____________________",null,null,null,null,null,null,null,null,null,{"$f":"Q426","v":"x"},0,0,0,0,0,0,0,0,"x"]
[null,null,null,{"$f":"D426","v":0},null,null,"     _____________________",null,null,null,null,null,null,null,null,null,{"$f":"Q426","v":"x"},0,0,0,0,0,0,0,0,"x"]
[null,null,null,{"$f":"D426","v":0},null,null,"     _____________________",null,null,null,null,null,null,null,null,null,{"$f":"Q426","v":"x"},0,0,0,0,0,0,0,0,"x"]
[null,null,null,{"$f":"D426","v":0},null,null,"     _____________________",null,null,null,null,null,null,null,null,null,{"$f":"Q426","v":"x"},0,0,0,0,0,0,0,0,"x"]
[null,null,"P",{"$f":"D425","v":0},null,null,"The OWNER will pay the following closing costs:",null,null,null,null,null,null,null,null,null,{"$f":"Q425","v":"x"},0,0,0,0,0,0,0,0,"x"]
[null,null,null,{"$f":"D433","v":0},null,null,"     Recording Costs for Deed",null,null,null,null,null,null,null,null,null,null,{"$f":"R433","v":0},0,0,0,0,0,0,0,"x"]
[null,null,null,{"$f":"D433","v":0},null,null,"     Documentary Stamps on Deed",null,null,null,null,null,null,null,null,null,null,{"$f":"R433","v":0},0,0,0,0,0,0,0,"x"]
[null,null,null,{"$f":"D433","v":0},null,null,"     OWNER'S Legal Fees",null,null,null,null,null,null,null,null,null,{"$f":"Q433","v":"x"},0,0,0,0,0,0,0,0,"x"]
[null,null,null,{"$f":"D433","v":0},null,null,"     Third Party Mortgage Costs",null,null,null,null,null,null,null,null,null,{"$f":"Q433","v":"x"},0,0,0,0,0,0,0,0,"x"]
[null,null,null,{"$f":"D433","v":0},null,null,"     Intangible Tax on Mortgage",null,null,null,null,null,null,null,null,null,{"$f":"Q433","v":"x"},0,0,0,0,0,0,0,0,"x"]
[null,null,null,{"$f":"D433","v":0},null,null,"     Recording Costs on Note",null,null,null,null,null,null,null,null,null,{"$f":"Q433","v":"x"},0,0,0,0,0,0,0,0,"x"]
[null,null,null,{"$f":"D433","v":0},null,null,"     Intangible Tax on Note",null,null,null,null,null,null,null,null,null,{"$f":"Q433","v":"x"},0,0,0,0,0,0,0,0,"x"]
[null,null,null,{"$f":"D433","v":0},null,null,"     Document Preparation Fees",null,null,null,null,null,null,null,null,null,{"$f":"Q433","v":"x"},0,0,0,0,0,0,0,0,"x"]
[null,null,null,{"$f":"D433","v":0},null,null,"     Buyer's Title Insurance",null,null,null,null,null,null,null,null,null,{"$f":"Q433","v":"x"},0,0,0,0,0,0,0,0,"x"]
[null,null,null,{"$f":"D433","v":0},null,null,"     Final Survey",null,null,null,null,null,null,null,null,null,{"$f":"Q433","v":"x"},0,0,0,0,0,0,0,0,"x"]
[null,null,null,{"$f":"D433","v":0},null,null,"     Water Meter Fee",null,null,null,null,null,null,null,null,null,{"$f":"Q433","v":"x"},0,0,0,0,0,0,0,0,"x"]
[null,null,null,{"$f":"D433","v":0},null,null,"     Well and/or Sewer Taps",null,null,null,null,null,null,null,null,null,{"$f":"Q433","v":"x"},0,0,0,0,0,0,0,0,"x"]
[]
[null,"PRORATION of CLOSING COSTS"]
[null,null,"S",null,null,"PRORATIONS",null,null,null,null,null,null,null,null,null,null,"x",null,null,null,null,null,null,null,null,"x"]
[null,null,"P",{"$f":"D448","v":0},null,null,"Taxes and assessments pursuant to the recorded declaration shall be prorated as of the date of delivery of",null,null,null,null,null,null,null,null,null,{"$f":"Q448","v":"x"},0,0,0,0,0,0,0,0,"x"]
[null,null,null,{"$f":"D449","v":0},null,null,"deed unless otherwise specified.",null,null,null,null,null,null,null,null,null,"x",0,0,0,0,0,0,0,0,"x"]
[null,null,"P",{"$f":"D448","v":0},null,null,"Taxes shall be prorated on the current year's tax with due allowance for the maximum discount, and where",null,null,null,null,null,null,null,null,null,{"$f":"Q448","v":"x"},0,0,0,0,0,0,0,0,"x"]
[null,null,null,{"$f":"D451","v":0},null,null,"possible, using the current year's millage and/or assessment.",null,null,null,null,null,null,null,null,null,{"$f":"Q451","v":"x"},0,0,0,0,0,0,0,0,"x"]
[null,null,"P",{"$f":"D448","v":0},null,null,"If the current year's millage is not available, the previous year's millage rates shall be utilized. ",null,null,null,null,null,null,null,null,null,{"$f":"Q448","v":"x"},0,0,0,0,0,0,0,0,"x"]
[]
[null,"EXTRA WORK ordered by Owner"]
[null,null,"S",null,null,"ADDITIONAL COSTS",null,null,null,null,null,null,null,null,null,null,"x","x","x","x","x","x","x","x",null,"x"]
[null,null,"P",{"$f":"D456","v":0},null,null,"All changes or other additional costs provided for herein that involve structural changes, or those resulting in",null,null,null,null,null,null,null,null,null,{"$f":"Q456","v":"x"},"x","x","x","x","x","x","x",0,"x"]
[null,null,null,{"$f":"D457","v":0},null,null,"changes to finish details after the original materials were ordered by the BUILDER, are subject to a minimum",null,null,null,null,null,null,null,null,null,"x","x","x","x","x","x","x","x",0,"x"]
[null,null,null,{"$f":"D457","v":0},null,null,"$50.00 administration fee per change in addition to the costs associated with implementing the change.",null,null,null,null,null,null,null,null,null,{"$f":"Q457","v":"x"},"x","x","x","x","x","x","x",0,"x"]
[null,null,"P",{"$f":"D456","v":0},null,null,"All changes whose cost is specifically indicated to be calculated on a \"Time and Material\" basis shall include",null,null,null,null,null,null,null,null,null,{"$f":"Q456","v":"x"},"x","x","x","x","x","x","x",0,"x"]
[null,null,null,{"$f":"D460","v":0},null,null,"all of the following:",null,null,null,null,null,null,null,null,null,{"$f":"Q460","v":"x"},"x","x","x","x","x","x","x",0,"x"]
[null,null,null,{"$f":"D460","v":0},null,null,null,"1.  The actual cost of materials, plus",null,null,null,null,null,null,null,null,{"$f":"Q460","v":"x"},"x","x","x","x","x","x","x",0,"x"]
[null,null,null,{"$f":"D460","v":0},null,null,null,"2.  The actual costs paid to subcontractors, plus",null,null,null,null,null,null,null,null,{"$f":"Q460","v":"x"},"x","x","x","x","x","x","x",0,"x"]
[null,null,null,{"$f":"D460","v":0},null,null,null,"3.  The BUILDER's own personnel at the rate proscribed herein, plus",null,null,null,null,null,null,null,null,{"$f":"Q460","v":"x"},"x","x","x","x","x","x","x",0,"x"]
[null,null,null,{"$f":"D460","v":0},null,null,null,"4.  A minimum administration fee of $25.00, plus",null,null,null,null,null,null,null,null,{"$f":"Q460","v":"x"},"x","x","x","x","x","x","x",0,"x"]
[null,null,null,{"$f":"D460","v":0},null,null,null,"5.  An additional 20% for overhead and profit.",null,null,null,null,null,null,null,null,{"$f":"Q460","v":"x"},"x","x","x","x","x","x","x",0,"x"]
[null,null,null,{"$f":"D460","v":0},null,null,null,null,null,null,null,null,null,null,null,null,{"$f":"Q460","v":"x"},"x","x","x","x","x","x","x",0,"x"]
[null,null,"P",null,null,null,"All additional costs for both fixed cost changes and time and material changes utilizing the BUILDER's own",null,null,null,null,null,null,null,null,null,null,null,null,null,null,null,null,null,null,"x"]
[null,null,null,{"$f":"D468","v":0},null,null,"personnel shall be calculated at the following hourly rates:",null,null,null,null,null,null,null,null,null,{"$f":"Q468","v":0},0,0,0,0,0,0,0,0,"x"]
[null,null,null,{"$f":"D468","v":0},null,null,null,"1.  Laborers at $18.00 per hour.",null,null,null,null,null,null,null,null,{"$f":"Q468","v":0},0,0,0,0,0,0,0,0,"x"]
[null,null,null,{"$f":"D468","v":0},null,null,null,"2.  Mechanics at $25.00 per hour.",null,null,null,null,null,null,null,null,{"$f":"Q468","v":0},0,0,0,0,0,0,0,0,"x"]
[null,null,null,{"$f":"D468","v":0},null,null,null,"3.  Supervisors at $30.00 per hour.",null,null,null,null,null,null,null,null,{"$f":"Q468","v":0},0,0,0,0,0,0,0,0,"x"]
[null,null,null,{"$f":"D468","v":0},null,null,null,"4.  Principals at $65.00 per hour.",null,null,null,null,null,null,null,null,{"$f":"Q468","v":0},0,0,0,0,0,0,0,0,"x"]
[null,null,null,{"$f":"D468","v":0},null,null,null,null,null,null,null,null,null,null,null,null,{"$f":"Q468","v":0},0,0,0,0,0,0,0,0,"x"]
[]
[null,"ADMINISTRATION of ALLOWANCES"]
[null,null,"S",null,null,"ADMINISTRATION OF ALLOWANCES",null,null,null,null,null,null,null,null,null,null,"x",null,"x",null,null,null,"x","x",null,"x"]
[null,null,"P",{"$f":"D477","v":0},null,null,"If the Contract price includes allowances they shall be administrated as follows:",null,null,null,null,null,null,null,null,null,{"$f":"Q477","v":"x"},0,"x",0,0,0,"x","x",0,"x"]
[null,null,"P",{"$f":"D477","v":0},null,null,"No allowance purchases will be made without the specific authorization of the OWNER.",null,null,null,null,null,null,null,null,null,{"$f":"Q477","v":"x"},0,"x",0,0,0,"x","x",0,"x"]
[null,null,"P",{"$f":"D477","v":0},null,null,"If the actual cost paid by the BUILDER exceeds the allowance amount, the OWNER will pay the BUILDER the",null,null,null,null,null,null,null,null,null,{"$f":"Q477","v":"x"},0,"x",0,0,0,"x","x",0,"x"]
[null,null,null,{"$f":"D480","v":0},null,null,"additional amount.",null,null,null,null,null,null,null,null,null,{"$f":"Q480","v":"x"},0,"x",0,0,0,"x","x",0,"x"]
[null,null,"P",{"$f":"D477","v":0},null,null,"If the actual cost paid by the BUILDER is less than the allowance amount, the OWNER will receive a credit for",null,null,null,null,null,null,null,null,null,{"$f":"Q477","v":"x"},0,"x",0,0,0,"x","x",0,"x"]
[null,null,null,{"$f":"D482","v":0},null,null,"the difference.",null,null,null,null,null,null,null,null,null,{"$f":"Q482","v":"x"},0,"x",0,0,0,"x","x",0,"x"]
[null,null,"P",{"$f":"D477","v":0},null,null,"If the OWNER purchases an allowance item or service directly, he shall receive a credit for the entire",null,null,null,null,null,null,null,null,null,{"$f":"Q477","v":"x"},0,"x",0,0,0,"x","x",0,"x"]
[null,null,null,{"$f":"D484","v":0},null,null,"allowance amount.",null,null,null,null,null,null,null,null,null,{"$f":"Q484","v":"x"},0,"x",0,0,0,"x","x",0,"x"]
[null,null,"P",{"$f":"D477","v":0},null,null,"The BUILDER may purchase any allowance item from any source of his choice unless specifically instructed",null,null,null,null,null,null,null,null,null,{"$f":"Q477","v":"x"},0,"x",0,0,0,"x","x",0,"x"]
[null,null,null,{"$f":"D486","v":0},null,null,"otherwise by the OWNER in writing in advance.",null,null,null,null,null,null,null,null,null,{"$f":"Q486","v":"x"},0,"x",0,0,0,"x","x",0,"x"]
[null,null,"P",{"$f":"D477","v":0},null,null,"The OWNER shall pay any deposits required for allowance purchases, the amount of any such deposit to be",null,null,null,null,null,null,null,null,null,{"$f":"Q477","v":"x"},0,"x",0,0,0,"x","x",0,"x"]
[null,null,null,{"$f":"D488","v":0},null,null,"later deducted from the corresponding draw.",null,null,null,null,null,null,null,null,null,{"$f":"Q488","v":"x"},0,"x",0,0,0,"x","x",0,"x"]
[null,null,"P",{"$f":"D477","v":0},null,null,"Allowances for materials shall include all fasteners, adhesives, hardware, and other related products unless",null,null,null,null,null,null,null,null,null,{"$f":"Q477","v":"x"},0,"x",0,0,0,"x","x",0,"x"]
[null,null,null,{"$f":"D490","v":0},null,null,"specifically stated otherwise.",null,null,null,null,null,null,null,null,null,{"$f":"Q490","v":"x"},0,"x",0,0,0,"x","x",0,"x"]
[null,null,"P",{"$f":"D477","v":0},null,null,"Allowances for labor shall include cost of installation by a qualified trade mechanic.",null,null,null,null,null,null,null,null,null,{"$f":"Q477","v":"x"},0,"x",0,0,0,"x","x",0,"x"]
[null,null,"P",{"$f":"D477","v":0},null,null,"Allowances for both labor and materials are inclusive of both as described herein.",null,null,null,null,null,null,null,null,null,{"$f":"Q477","v":"x"},0,"x",0,0,0,"x","x",0,"x"]
[null,null,"P",{"$f":"D477","v":0},null,null,"Credits for unit costs allowances (per square foot, etc.) shall be given only if the difference is greater than",null,null,null,null,null,null,null,null,null,{"$f":"Q477","v":"x"},0,"x",0,0,0,"x","x",0,"x"]
[null,null,null,{"$f":"D494","v":0},null,null,"10% of the allocated amount.",null,null,null,null,null,null,null,null,null,{"$f":"Q494","v":"x"},0,"x",0,0,0,"x","x",0,"x"]
[null,null,"P",{"$f":"D477","v":0},null,null,"All payments for allowance purchases shall be made directly to the BUILDER for disbursement to the Vendor.",null,null,null,null,null,null,null,null,null,{"$f":"Q477","v":"x"},0,"x",0,0,0,"x","x",0,"x"]
[null,null,"P",{"$f":"D477","v":0},null,null,"All allowance amounts include 20% overhead and compensation to the BUILDER.  All Vendor quotations shall",null,null,null,null,null,null,null,null,null,{"$f":"Q477","v":"x"},0,"x",0,0,0,"x","x",0,"x"]
[null,null,null,{"$f":"D497","v":0},null,null,"automatically have added to them an amount equal to 20% of the quotation, which shall be the price the",null,null,null,null,null,null,null,null,null,{"$f":"Q497","v":"x"},0,"x",0,0,0,"x","x",0,"x"]
[null,null,null,{"$f":"D497","v":0},null,null,"OWNER shall pay to the BUILDER as his overhead and compensation.",null,null,null,null,null,null,null,null,null,{"$f":"Q497","v":"x"},0,"x",0,0,0,"x","x",0,"x"]
[]
[null,"ALLOWANCE SCHEDULE"]
[]
[null,"FIXED COST ALLOWANCE SCHEDULE   Note:  Allowance Schedules are best written using SpecWriter "]
[null,null,"S",null,null,"FIXED COST ALLOWANCES",null,null,null,null,null,null,null,null,null,null,"x",null,"x",null,null,null,"x","x",null,"x"]
[null,null,"P",{"$f":"D504","v":0},null,null,"DEFINITION:  Fixed Cost Allowances are given as a lump sum.",null,null,null,null,null,null,null,null,null,"x",null,"x",{"$f":"T504","v":0},{"$f":"U504","v":0},{"$f":"V504","v":0},"x","x",{"$f":"Y504","v":0},{"$f":"Z504","v":"x"}]
[null,null,"P",null,null,null,"MAIN ENTRY DOOR ALLOWANCE:  (for materials and delivery)",null,null,"$0.00 ",null,null,null,null,null,null,"x",null,"x",null,null,null,"x","x",null,"x"]
[null,null,"P",null,null,null,"MAIN ENTRY DOOR HARDWARE ALLOWANCE:  (for materials and delivery)",null,null,"$0.00 ",null,null,null,null,null,null,"x",null,"x",null,null,null,"x","x",null,"x"]
[null,null,"P",null,null,null,"CABINET & COUNTERTOP ALLOWANCE:  (for materials, delivery and installation)",null,null,"$0.00 ",null,null,null,null,null,null,"x",null,"x",null,null,null,"x","x",null,"x"]
[null,null,"P",null,null,null,"PLUMBING FIXTURE ALLOWANCE:  (for materials and delivery)",null,null,"$0.00 ",null,null,null,null,null,null,"x",null,"x",null,null,null,"x","x",null,"x"]
[null,null,"P",null,null,null,"KITCHEN SINK ALLOWANCE:  (for materials and delivery)",null,null,"$0.00 ",null,null,null,null,null,null,null,null,null,null,null,null,null,null,null,"x"]
[null,null,"P",null,null,null,"KITCHEN SINK FAUCET ALLOWANCE:  (for materials and delivery)",null,null,"$0.00 ",null,null,null,null,null,null,null,null,null,null,null,null,null,null,null,"x"]
[null,null,"P",null,null,null,"BATHROOM SINK(s) ALLOWANCE:  (for materials and delivery)",null,null,"$0.00 ",null,null,null,null,null,null,null,null,null,null,null,null,null,null,null,"x"]
[null,null,"P",null,null,null,"BATHROOM SINK(s) FAUCET ALLOWANCE:  (for materials and delivery)",null,null,"$0.00 ",null,null,null,null,null,null,null,null,null,null,null,null,null,null,null,"x"]
[null,null,"P",null,null,null,"TOILET(s) ALLOWANCE:  (for materials and delivery)",null,null,"$0.00 ",null,null,null,null,null,null,null,null,null,null,null,null,null,null,null,"x"]
[null,null,"P",null,null,null,"ROMAN TUB ALLOWANCE:  (for materials and delivery)",null,null,"$0.00 ",null,null,null,null,null,null,"x",null,"x",null,null,null,"x","x",null,"x"]
[null,null,"P",null,null,null,"WHIRLPOOL TUB ALLOWANCE:  (for materials and delivery)",null,null,"$0.00 ",null,null,null,null,null,null,null,null,null,null,null,null,null,null,null,"x"]
[null,null,"P",null,null,null,"TUB FAUCET ALLOWANCE:  (for materials and delivery)",null,null,"$0.00 ",null,null,null,null,null,null,null,null,null,null,null,null,null,null,null,"x"]
[null,null,"P",null,null,null,"LIGHTING FIXTURES ALLOWANCE:  (for materials and delivery)",null,null,"$0.00 ",null,null,null,null,null,null,"x",null,"x",null,null,null,"x","x",null,"x"]
[null,null,"P",null,null,null,"CEILING FAN ALLOWANCE:  (for materials and delivery)",null,null,"$0.00 ",null,null,null,null,null,null,null,null,null,null,null,null,null,null,null,"x"]
[null,null,"P",null,null,null,"APPLIANCE ALLOWANCE:  (for materials, delivery and positioning)",null,null,"$0.00 ",null,null,null,null,null,null,"x",null,"x",null,null,null,"x","x",null,"x"]
[null,null,"P",null,null,null,"CARPETING ALLOWANCE:  (for materials, delivery and installation)",null,null,"$0.00 ",null,null,null,null,null,null,null,null,null,null,null,null,null,null,null,"x"]
[null,null,"P",null,null,null,"SEPTIC SYSTEM ALLOWANCE:  (for materials, delivery, installation, permit & engineering)",null,null,"$0.00 ",null,null,null,null,null,null,"x",null,"x",null,null,null,null,null,null,"x"]
[null,null,"P",null,null,null,"SECURITY SYSTEM ALLOWANCE:  (for materials, delivery and installation)",null,null,"$0.00 ",null,null,null,null,null,null,null,null,null,null,null,null,null,null,null,"x"]
[null,null,"P",null,null,null,"LANDSCAPING ALLOWANCE:  (for materials, delivery and installation)",null,null,"$0.00 ",null,null,null,null,null,null,null,null,null,null,null,null,null,null,null,"x"]
[null,null,"P",null,null,null,"DECORATING ALLOWANCE:  (for materials, delivery and installation)",null,null,"$0.00 ",null,null,null,null,null,null,null,null,null,null,null,null,null,null,null,"x"]
[null,null,"P",null,null,null,"POOL ALLOWANCE:  (for materials, delivery, installation, permit & engineering)",null,null,"$0.00 ",null,null,null,null,null,null,null,null,null,null,null,null,null,null,null,"x"]
[null,null,"P",null,null,null,"SCREEN ROOM ALLOWANCE:  (for materials, delivery, installation, permit & engineering)",null,null,"$0.00 ",null,null,null,null,null,null,null,null,null,null,null,null,null,null,null,"x"]
[null,null,"P",null,null,null,"__________ ALLOWANCE:  (for materials, delivery and installation)",null,null,"$0.00 ",null,null,null,null,null,null,null,null,null,null,null,null,null,null,null,"x"]
[null,null,"P",null,null,null,"__________ ALLOWANCE:  (for materials, delivery and installation)",null,null,"$0.00 ",null,null,null,null,null,null,null,null,null,null,null,null,null,null,null,"x"]
[null,null,null,{"$f":"D504","v":0},null,null,null,null,null,null,null,null,null,null,null,null,{"$f":"Q504","v":"x"},0,"x",0,0,0,"x","x",0,"x"]
[null,null,null,{"$f":"D504","v":0},null,null,"TOTAL of all FIXED COST ALLOWANCES:",null,null,{"$f":"SUM(J506:J529)","v":0},null,null,null,null,null,null,{"$f":"Q504","v":"x"},0,"x",0,0,0,"x","x",0,"x"]
[]
[null,"UNIT COST ALLOWANCE SCHEDULE   Note:  Allowance Schedules are best written using SpecWriter "]
[null,null,"S",null,null,"UNIT COST ALLOWANCES",null,null,null,null,null,null,null,null,null,null,"x",null,"x",null,null,null,"x","x",null,"x"]
[null,null,"P",{"$f":"D534","v":0},null,null,"DEFINITION:  Unit Cost Allowances are allowances given as a per-unit basis.  (per SF, per yard, etc.)",null,null,null,null,null,null,null,null,null,"x",null,"x",{"$f":"T534","v":0},{"$f":"U534","v":0},{"$f":"V534","v":0},"x","x",{"$f":"Y534","v":0},{"$f":"Z534","v":"x"}]
[null,null,"P",null,null,null,"ROOFING SHINGLE ALLOWANCE:  (for materials and delivery)",null," per Square:",32,null,null,null,null,null,null,"x",null,"x",null,null,null,"x","x",null,"x"]
[null,null,"P",null,null,null,"FLOOR TILE ALLOWANCE:  (for materials and delivery)",null," per Sq Foot:",2.5,null,null,null,null,null,null,"x",null,"x",null,null,null,"x","x",null,"x"]
[null,null,"P",null,null,null,"WALL TILE ALLOWANCE:  (for materials and delivery)",null," per Sq Foot:",2,null,null,null,null,null,null,"x",null,"x",null,null,null,"x","x",null,"x"]
[null,null,"P",null,null,null,"QUARRY TILE ALLOWANCE:  (for materials and delivery)",null," per Sq Foot:",2,null,null,null,null,null,null,null,null,null,null,null,null,null,null,null,"x"]
[null,null,"P",null,null,null,"MARBLE TILE ALLOWANCE:  (for materials and delivery)",null," per Sq Foot:",12,null,null,null,null,null,null,null,null,null,null,null,null,null,null,null,"x"]
[null,null,"P",null,null,null,"GLASS BLOCK ALLOWANCE:  (for materials and delivery)",null," per Block:",5,null,null,null,null,null,null,null,null,null,null,null,null,null,null,null,"x"]
[null,null,"P",null,null,null,"WOOD FLOORING ALLOWANCE:  (for materials and delivery)",null," per Sq Foot:",4,null,null,null,null,null,null,null,null,null,null,null,null,null,null,null,"x"]
[null,null,"P",null,null,null,"CARPETING ALLOWANCE:  (for materials, delivery and installation)",null," per Sq Yard:",18,null,null,null,null,null,null,"x",null,"x",null,null,null,"x","x",null,"x"]
[null,null,"P",null,null,null,"VINYL FLOORING ALLOWANCE:  (for materials, delivery and installation)",null," per Sq Yard:",10,null,null,null,null,null,null,null,null,null,null,null,null,null,null,null,"x"]
[null,null,"P",null,null,null,"WALLPAPER ALLOWANCE:  (for materials, delivery and installation)",null," per Roll:",10,null,null,null,null,null,null,null,null,null,null,null,null,null,null,null,"x"]
[null,null,"P",null,null,null,"______________ ALLOWANCE:  (for materials, delivery and installation)",null," per Sq Foot:",1,null,null,null,null,null,null,null,null,null,null,null,null,null,null,null,"x"]
[null,null,"P",null,null,null,"______________ ALLOWANCE:  (for materials, delivery and installation)",null," per Sq Foot:",1,null,null,null,null,null,null,null,null,null,null,null,null,null,null,null,"x"]
[]
[null,"RECONCILLIATION PROCEDURE for UNIT COST ALLOWANCES"]
[null,null,"S",null,null,"RECONCILIATION of UNIT COST ALLOWANCES",null,null,null,null,null,null,null,null,null,null,null,null,null,null,null,null,null,null,null,"x"]
[null,null,"P",{"$f":"D550","v":0},null,null,"Unit Cost Allowances are those allowances given as a per-unit amount. (per square foot, square yard, etc.)",null,null,null,null,null,null,null,null,null,{"$f":"Q550","v":0},0,0,0,0,0,0,0,0,"x"]
[null,null,"P",{"$f":"D550","v":0},null,null,"Unit Cost Allowances shall be reconciled at the end of the project in the following manner.",null,null,null,null,null,null,null,null,null,{"$f":"Q550","v":0},0,0,0,0,0,0,0,0,"x"]
[null,null,null,{"$f":"D552","v":0},null,null,"     1st:   The BUILDER shall measure the actual area covered by the installed materials.",null,null,null,null,null,null,null,null,null,{"$f":"Q552","v":0},0,0,0,0,0,0,0,0,"x"]
[null,null,null,{"$f":"D552","v":0},null,null,"     2nd:  The BUILDER shall prepare a summary showing the areas measured, the calculations, and the totals.",null,null,null,null,null,null,null,null,null,{"$f":"Q552","v":0},0,0,0,0,0,0,0,0,"x"]
[null,null,null,{"$f":"D552","v":0},null,null,"     3rd:   The BUILDER shall calculate the allowance total by multiplying the total area covered by the allowance.",null,null,null,null,null,null,null,null,null,{"$f":"Q552","v":0},0,0,0,0,0,0,0,0,"x"]
[null,null,null,{"$f":"D552","v":0},null,null,"     4th:   The BUILDER shall collect all the invoices for the purchase of the materials used.",null,null,null,null,null,null,null,null,null,{"$f":"Q552","v":0},0,0,0,0,0,0,0,0,"x"]
[null,null,null,{"$f":"D552","v":0},null,null,"     5th:   The BUILDER shall total the actual costs of all the materials purchased.",null,null,null,null,null,null,null,null,null,{"$f":"Q552","v":0},0,0,0,0,0,0,0,0,"x"]
[null,null,null,{"$f":"D552","v":0},null,null,"     6th:   The BUILDER shall add any other additional costs, such as delivery, if so included in the unit allowance.",null,null,null,null,null,null,null,null,null,{"$f":"Q552","v":0},0,0,0,0,0,0,0,0,"x"]
[null,null,null,{"$f":"D552","v":0},null,null,"     7th:   The BUILDER shall total the actual costs and compare it to the calculated allowance total.",null,null,null,null,null,null,null,null,null,{"$f":"Q552","v":0},0,0,0,0,0,0,0,0,"x"]
[null,null,null,{"$f":"D552","v":0},null,null,"     8th:   The BUILDER shall include the calculations of the actual costs in the summary. ",null,null,null,null,null,null,null,null,null,{"$f":"Q552","v":0},0,0,0,0,0,0,0,0,"x"]
[null,null,null,{"$f":"D552","v":0},null,null,"     9th:   The BUILDER shall present the summary to the OWNER for consideration and payment.",null,null,null,null,null,null,null,null,null,{"$f":"Q552","v":0},0,0,0,0,0,0,0,0,"x"]
[null,null,null,{"$f":"D552","v":0},null,null,"     10th: The OWNER shall review the summary and verify it's calculations.",null,null,null,null,null,null,null,null,null,{"$f":"Q552","v":0},0,0,0,0,0,0,0,0,"x"]
[null,null,null,{"$f":"D552","v":0},null,null,null,null,null,null,null,null,null,null,null,null,{"$f":"Q552","v":0},0,0,0,0,0,0,0,0,"x"]
[null,null,"P",{"$f":"D550","v":0},null,null,"If the actual cost is higher than the calculated allowance amount, the OWNER will pay the BUILDER the difference.",null,null,null,null,null,null,null,null,null,{"$f":"Q550","v":0},0,0,0,0,0,0,0,0,"x"]
[null,null,"P",{"$f":"D550","v":0},null,null,"If the actual cost is lower than the calculated allowance amount, the BUILDER shall credit the OWNER.",null,null,null,null,null,null,null,null,null,{"$f":"Q550","v":0},0,0,0,0,0,0,0,0,"x"]
[]
[null,"REIMBURSABLE EXPENSES for Cost Plus Contracts only"]
[null,null,"S",null,null,"REIMBURSABLE CONSTRUCTION EXPENSES",null,null,null,null,null,null,null,null,null,null,null,"x",null,"x","x",null,null,null,null,"x"]
[null,null,"P",{"$f":"D568","v":0},null,null,"The direct costs of the project that the OWNER is to reimburse the BUILDER includes all of the following: ",null,null,null,null,null,null,null,null,null,{"$f":"Q568","v":0},"x",0,"x","x",0,0,0,0,"x"]
[null,null,"P",{"$f":"D568","v":0},null,null,"Wages of construction workers directly employed by the BUILDER to perform work on the project.",null,null,null,null,null,null,null,null,null,{"$f":"Q568","v":0},"x",0,"x","x",0,0,0,0,"x"]
[null,null,"P",{"$f":"D568","v":0},null,null,"Wages of field supervisors directly employed by the BUILDER to perform work on the project.",null,null,null,null,null,null,null,null,null,{"$f":"Q568","v":0},"x",0,"x","x",0,0,0,0,"x"]
[null,null,"P",{"$f":"D568","v":0},null,null,"Payroll burden costs of the BUILDER's employees, including workmen's compensation costs.",null,null,null,null,null,null,null,null,null,{"$f":"Q568","v":0},"x",0,"x","x",0,0,0,0,"x"]
[null,null,"P",{"$f":"D568","v":0},null,null,"Costs of all materials used in the construction of the Project, including sales taxes and delivery charges.",null,null,null,null,null,null,null,null,null,{"$f":"Q568","v":0},"x",0,"x","x",0,0,0,0,"x"]
[null,null,"P",{"$f":"D568","v":0},null,null,"Cost of temporary facilities, equipment and hand tools not customarily owned by the construction workers,",null,null,null,null,null,null,null,null,null,{"$f":"Q568","v":0},"x",0,"x","x",0,0,0,0,"x"]
[null,null,null,{"$f":"D574","v":0},null,null,"which are provided by the BUILDER at the site and fully consumed in the construction of the Project.",null,null,null,null,null,null,null,null,null,{"$f":"Q574","v":0},"x",0,"x","x",0,0,0,0,"x"]
[null,null,"P",{"$f":"D568","v":0},null,null,"Reasonable rental costs for necessary temporary facilities, machinery, equipment and hand tools used in the ",null,null,null,null,null,null,null,null,null,{"$f":"Q568","v":0},"x",0,"x","x",0,0,0,0,"x"]
[null,null,null,{"$f":"D576","v":0},null,null,"construction of the project, whether rented from the BUILDER or third parties.",null,null,null,null,null,null,null,null,null,{"$f":"Q576","v":0},"x",0,"x","x",0,0,0,0,"x"]
[null,null,"P",{"$f":"D568","v":0},null,null,"Cost to purchase, install, maintain and remove safety devices, including but not limited to scaffolding,",null,null,null,null,null,null,null,null,null,{"$f":"Q568","v":0},"x",0,"x","x",0,0,0,0,"x"]
[null,null,null,{"$f":"D578","v":0},null,null,"temporary railings, safety riggings, and other similar devices.",null,null,null,null,null,null,null,null,null,{"$f":"Q578","v":0},"x",0,"x","x",0,0,0,0,"x"]
[null,null,"P",{"$f":"D568","v":0},null,null,"Costs incurred in taking action to prevent threatened damage, injury or loss in the event of an actual or",null,null,null,null,null,null,null,null,null,{"$f":"Q568","v":0},"x",0,"x","x",0,0,0,0,"x"]
[null,null,null,{"$f":"D580","v":0},null,null,"perceived emergency (i.e. hurricane, natural disaster, fire hazard, etc.) relating to the safety of people or",null,null,null,null,null,null,null,null,null,{"$f":"Q580","v":0},"x",0,"x","x",0,0,0,0,"x"]
[null,null,null,{"$f":"D580","v":0},null,null,"property.",null,null,null,null,null,null,null,null,null,{"$f":"Q580","v":0},"x",0,"x","x",0,0,0,0,"x"]
[null,null,"P",{"$f":"D568","v":0},null,null,"Costs to remove and dispose of construction debris from the project.",null,null,null,null,null,null,null,null,null,{"$f":"Q568","v":0},"x",0,"x","x",0,0,0,0,"x"]
[null,null,"P",{"$f":"D568","v":0},null,null,"Cost of any late penalties or interest incurred by the BUILDER for late payments to vendors.",null,null,null,null,null,null,null,null,null,{"$f":"Q568","v":0},"x",0,"x","x",0,0,0,0,"x"]
[]
[null,"NON-REIMBURSABLE EXPENSES for Cost Plus Contracts Only"]
[null,null,"S",null,null,"NON-REIMBURSABLE EXPENSES",null,null,null,null,null,null,null,null,null,null,null,"x",null,"x","x",null,null,null,null,"x"]
[null,null,"P",{"$f":"D587","v":0},null,null,"The following expenses are not included in the reimbursable costs of the project:",null,null,null,null,null,null,null,null,null,{"$f":"Q587","v":0},"x",0,"x","x",0,0,0,0,"x"]
[null,null,"P",{"$f":"D587","v":0},null,null,"Wages or payroll costs of the Principal OWNER of the BUILDER's company.",null,null,null,null,null,null,null,null,null,{"$f":"Q587","v":0},"x",0,"x","x",0,0,0,0,"x"]
[null,null,"P",{"$f":"D587","v":0},null,null,"Wages or payroll costs of the BUILDER's office personnel.",null,null,null,null,null,null,null,null,null,{"$f":"Q587","v":0},"x",0,"x","x",0,0,0,0,"x"]
[null,null,"P",{"$f":"D587","v":0},null,null,"Fuel and other operating costs of the BUILDER's vehicles, trailers, or other motor vehicles.",null,null,null,null,null,null,null,null,null,{"$f":"Q587","v":0},"x",0,"x","x",0,0,0,0,"x"]
[null,null,"P",{"$f":"D587","v":0},null,null,"The BUILDER's normal business overhead, including office rent, bookkeeping costs, postage, telephone",null,null,null,null,null,null,null,null,null,{"$f":"Q587","v":0},"x",0,"x","x",0,0,0,0,"x"]
[null,null,null,{"$f":"D592","v":0},null,null,"service, pager service, mobile radio service, cellular telephones, office utilities, equipment capitalization,",null,null,null,null,null,null,null,null,null,{"$f":"Q592","v":0},"x",0,"x","x",0,0,0,0,"x"]
[null,null,null,{"$f":"D592","v":0},null,null,"equipment maintenance or repair, business taxes or licenses, etc.",null,null,null,null,null,null,null,null,null,{"$f":"Q592","v":0},"x",0,"x","x",0,0,0,0,"x"]
[]
[null,"CONTRACT EXCLUSIONS   (Also covered in SpecWriter)"]
[null,null,"S",null,null,"EXCLUSIONS",null,null,null,null,null,null,null,null,null,null,null,null,null,null,null,null,null,null,null,"x"]
[null,null,"P",{"$f":"D597","v":0},null,null,"Unless specifically included in the Scope of Work, this contract does not include any of the following:",null,null,null,null,null,null,null,null,null,{"$f":"Q597","v":0},0,0,0,0,0,0,0,0,"x"]
[null,null,"P",null,null,null,"Removal or disposal of any materials containing asbestos or any other hazardous materials.",null,null,null,null,null,null,null,null,null,null,null,null,null,null,null,null,null,null,"x"]
[null,null,"P",null,null,null,"Custom milling of any wood products or mouldings.",null,null,null,null,null,null,null,null,null,null,null,null,null,null,null,null,null,null,"x"]
[null,null,"P",null,null,null,"Moving, storage, protection or safeguarding of the OWNERs property.",null,null,null,null,null,null,null,null,null,null,null,null,null,null,null,null,null,null,"x"]
[null,null,"P",null,null,null,"Repairing or replacing any work performed by the OWNER.",null,null,null,null,null,null,null,null,null,null,null,null,null,null,null,null,null,null,"x"]
[null,null,"P",null,null,null,"Repair of concealed underground utilities not identified on plans or by the OWNER.",null,null,null,null,null,null,null,null,null,null,null,null,null,null,null,null,null,null,"x"]
[null,null,"P",null,null,null,"Any surveying required by financial institutions or governmental authorities.",null,null,null,null,null,null,null,null,null,null,null,null,null,null,null,null,null,null,"x"]
[null,null,"P",null,null,null,"Final construction detail cleaning.  (project will be left broom clean)",null,null,null,null,null,null,null,null,null,null,null,null,null,null,null,null,null,null,"x"]
[null,null,"P",null,null,null,"Temporary water, electrical power, or toilet facilities.",null,null,null,null,null,null,null,null,null,null,null,null,null,null,null,null,null,null,"x"]
[null,null,"P",null,null,null,"Any landscaping, sod or irrigation.",null,null,null,null,null,null,null,null,null,null,null,null,null,null,null,null,null,null,"x"]
[null,null,"P",null,null,null,"Removing dire under existing crawl spaces to provide 18\" minimums required by building code.",null,null,null,null,null,null,null,null,null,null,null,null,null,null,null,null,null,null,"x"]
[null,null,"P",null,null,null,"Removal of any sub-surface soils not removable by hand excavation.",null,null,null,null,null,null,null,null,null,null,null,null,null,null,null,null,null,null,"x"]
[null,null,"P",null,null,null,"Correction or mitigation of existing out-of-plumb or out-of-level conditions in the existing structure.",null,null,null,null,null,null,null,null,null,null,null,null,null,null,null,null,null,null,"x"]
[null,null,"P",null,null,null,"Correction of concealed substandard structural conditions.",null,null,null,null,null,null,null,null,null,null,null,null,null,null,null,null,null,null,"x"]
[null,null,"P",null,null,null,"Repair or replacement of any existing rotten or insect infested wood.",null,null,null,null,null,null,null,null,null,null,null,null,null,null,null,null,null,null,"x"]
[null,null,"P",null,null,null,"Exact matching of existing finishes.",null,null,null,null,null,null,null,null,null,null,null,null,null,null,null,null,null,null,"x"]
[null,null,"P",null,null,null,"Repair of driveways, sidewalks or other existing flatwork damaged during the normal construction process.",null,null,null,null,null,null,null,null,null,null,null,null,null,null,null,null,null,null,"x"]
[null,null,"P",null,null,null,"________________________________________________________________________",null,null,null,null,null,null,null,null,null,null,null,null,null,null,null,null,null,null,"x"]
[null,null,"P",null,null,null,"________________________________________________________________________",null,null,null,null,null,null,null,null,null,null,null,null,null,null,null,null,null,null,"x"]
[null,null,"P",null,null,null,"________________________________________________________________________",null,null,null,null,null,null,null,null,null,null,null,null,null,null,null,null,null,null,"x"]
[null,null,"P",null,null,null,"________________________________________________________________________",null,null,null,null,null,null,null,null,null,null,null,null,null,null,null,null,null,null,"x"]
[null,null,"P",null,null,null,"________________________________________________________________________",null,null,null,null,null,null,null,null,null,null,null,null,null,null,null,null,null,null,"x"]
[]
[null,"SOURCE of CONSTRUCTION FUNDS"]
[null,null,"S",null,null,"FUNDING",null,null,null,null,null,null,null,null,null,null,null,null,null,"x","x",null,"x","x",null,"x"]
[null,null,"P",{"$f":"D622","v":0},null,null,"The OWNER intends to pay the BUILDER for performing the work from funds currently available to the OWNER. ",null,null,null,null,null,null,null,null,null,{"$f":"Q622","v":0},0,0,"x","x",0,"x","x",0,"x"]
[null,null,"P",{"$f":"D622","v":0},null,null,"The OWNER covenants that these funds are on deposit or otherwise readily available for progress payments,",null,null,null,null,null,null,null,null,null,{"$f":"Q622","v":0},0,0,"x","x",0,"x","x",0,"x"]
[null,null,null,{"$f":"D624","v":0},null,null,"extra costs and the final payment.",null,null,null,null,null,null,null,null,null,{"$f":"Q624","v":0},0,0,"x","x",0,"x","x",0,"x"]
[null,null,"P",{"$f":"D622","v":0},null,null,"At any time after the execution of this agreement, the BUILDER may request the OWNER to deposit the remaining",null,null,null,null,null,null,null,null,null,{"$f":"Q622","v":0},0,0,"x","x",0,"x","x",0,"x"]
[null,null,null,{"$f":"D626","v":0},null,null,"balance of the Total Contract Price in an interest bearing account escrow account, said funds to there remain",null,null,null,null,null,null,null,null,null,{"$f":"Q626","v":0},0,0,"x","x",0,"x","x",0,"x"]
[null,null,null,{"$f":"D626","v":0},null,null,"until withdrawn to pay the BUILDER.",null,null,null,null,null,null,null,null,null,{"$f":"Q626","v":0},0,0,"x","x",0,"x","x",0,"x"]
[]
[null,"BANK FINANCING"]
[null,null,"S",null,null,"BANK FINANCING",null,null,null,null,null,null,null,null,null,null,"x","x","x",null,null,null,null,null,null,"x"]
[null,null,"P",{"$f":"D631","v":0},null,null,"The execution of this contract is contingent upon the OWNER's ability to obtain acceptable bank financing and",null,null,null,null,null,null,null,null,null,{"$f":"Q631","v":"x"},"x","x",0,0,0,0,0,0,"x"]
[null,null,null,{"$f":"D632","v":0},null,null,"upon the Bank's approval and acceptance of the BUILDER.",null,null,null,null,null,null,null,null,null,"x","x","x",0,0,0,0,0,0,"x"]
[null,null,"P",{"$f":"D631","v":0},null,null,"The OWNER hereby authorizes the construction lender to provide the BUILDER with any and all information",null,null,null,null,null,null,null,null,null,{"$f":"Q631","v":"x"},"x","x",0,0,0,0,0,0,"x"]
[null,null,null,{"$f":"D634","v":0},null,null,"regarding the status and amount of any construction financing obtained to pay the contract price.",null,null,null,null,null,null,null,null,null,{"$f":"Q634","v":"x"},"x","x",0,0,0,0,0,0,"x"]
[null,null,"P",{"$f":"D631","v":0},null,null,"The OWNER agrees to accept the draw schedule provided herein if approved by the Bank.",null,null,null,null,null,null,null,null,null,{"$f":"Q631","v":"x"},"x","x",0,0,0,0,0,0,"x"]
[null,null,"P",{"$f":"D631","v":0},null,null,"Both parties agree to accept the Bank's draw schedule if required, provided that the draw schedule provides",null,null,null,null,null,null,null,null,null,{"$f":"Q631","v":"x"},"x","x",0,0,0,0,0,0,"x"]
[null,null,null,{"$f":"D637","v":0},null,null,"for a Contract Deposit equal to the Contract Deposit provided herein and providing that the number of draws",null,null,null,null,null,null,null,null,null,{"$f":"Q637","v":"x"},"x","x",0,0,0,0,0,0,"x"]
[null,null,null,{"$f":"D637","v":0},null,null,"equals one draw per each $10,000 of the Total Contract Price with a maximum of 10 draws total, whichever",null,null,null,null,null,null,null,null,null,{"$f":"Q637","v":"x"},"x","x",0,0,0,0,0,0,"x"]
[null,null,null,{"$f":"D637","v":0},null,null,"is less.",null,null,null,null,null,null,null,null,null,{"$f":"Q637","v":"x"},"x","x",0,0,0,0,0,0,"x"]
[null,null,"P",{"$f":"D631","v":0},null,null,"In the event the parties adopt the Bank's draw schedule, the draw schedule provided herein shall be",null,null,null,null,null,null,null,null,null,{"$f":"Q631","v":"x"},"x","x",0,0,0,0,0,0,"x"]
[null,null,null,{"$f":"D641","v":0},null,null,"discarded.",null,null,null,null,null,null,null,null,null,{"$f":"Q641","v":"x"},"x","x",0,0,0,0,0,0,"x"]
[null,null,"P",{"$f":"D631","v":0},null,null,"The BUILDER shall schedule all bank draw inspections.",null,null,null,null,null,null,null,null,null,{"$f":"Q631","v":"x"},"x","x",0,0,0,0,0,0,"x"]
[null,null,"P",{"$f":"D631","v":0},null,null,"The OWNER shall forward all bank draws to the BUILDER in full within 24 hours of their issuance by the bank.",null,null,null,null,null,null,null,null,null,{"$f":"Q631","v":"x"},"x","x",0,0,0,0,0,0,"x"]
[null,null,"P",{"$f":"D631","v":0},null,null,"No deductions shall be made by the OWNER from bank authorized draws to the BUILDER unless specifically",null,null,null,null,null,null,null,null,null,{"$f":"Q631","v":"x"},"x","x",0,0,0,0,0,0,"x"]
[null,null,null,{"$f":"D645","v":0},null,null,"approved by the BUILDER in writing in advance.",null,null,null,null,null,null,null,null,null,{"$f":"Q645","v":"x"},"x","x",0,0,0,0,0,0,"x"]
[null,null,"P",{"$f":"D631","v":0},null,null,"Bank inspector's draw approvals shall be accepted as final by both parties.",null,null,null,null,null,null,null,null,null,{"$f":"Q631","v":"x"},"x","x",0,0,0,0,0,0,"x"]
[null,null,"P",{"$f":"D631","v":0},null,null,"The Final Draw shall be due immediately upon receipt of Final Inspection and Certificate of Occupancy.",null,null,null,null,null,null,null,null,null,{"$f":"Q631","v":"x"},"x","x",0,0,0,0,0,0,"x"]
[null,null,"P",{"$f":"D631","v":0},null,null,"Under Bank financing, no funds shall  be withheld for punchlist work.",null,null,null,null,null,null,null,null,null,{"$f":"Q631","v":"x"},"x","x",0,0,0,0,0,0,"x"]
[]
[null,"PAYMENTS"]
[null,null,"S",null,null,"PAYMENTS",null,null,null,null,null,null,null,null,null,null,"x","x","x","x","x","x","x","x",null,"x"]
[null,null,"P",{"$f":"D652","v":0},null,null,"The OWNER understands that the BUILDER expects and anticipates the timely payment of progress draws and",null,null,null,null,null,null,null,null,null,{"$f":"Q652","v":"x"},"x","x","x","x","x","x","x",0,"x"]
[null,null,null,{"$f":"D653","v":0},null,null,"other authorized costs, and therefor agrees to pay the BUILDER for all such contractual payments within three",null,null,null,null,null,null,null,null,null,"x","x","x","x","x","x","x","x",0,"x"]
[null,null,null,{"$f":"D653","v":0},null,null,"days of the receipt of a payment request.",null,null,null,null,null,null,null,null,null,{"$f":"Q653","v":"x"},"x","x","x","x","x","x","x",0,"x"]
[null,null,"P",{"$f":"D652","v":0},null,null,"Minor punchlist items shall not provide a justification for the OWNER to withhold otherwise qualified draw",null,null,null,null,null,null,null,null,null,{"$f":"Q652","v":"x"},"x","x","x","x","x","x","x",0,"x"]
[null,null,null,{"$f":"D656","v":0},null,null,"payments.",null,null,null,null,null,null,null,null,null,{"$f":"Q656","v":"x"},"x","x","x","x","x","x","x",0,"x"]
[null,null,"P",null,null,null,"Prior to receiving any payment, the BUILDER shall provide the OWNER with Lien Releases from any supplier or",null,null,null,null,null,null,null,null,null,null,null,null,null,null,null,null,null,null,"x"]
[null,null,null,{"$f":"D658","v":0},null,null,"subcontractor that issued the OWNER a Notice-to-OWNER reflecting any services or materials included in that",null,null,null,null,null,null,null,null,null,{"$f":"Q658","v":0},0,0,0,0,0,0,0,0,"x"]
[null,null,null,{"$f":"D658","v":0},null,null,"specific draw request.",null,null,null,null,null,null,null,null,null,{"$f":"Q658","v":0},0,0,0,0,0,0,0,0,"x"]
[null,null,"P",null,null,null,"Under no circumstances shall the OWNER pay any of the BUILDER's subcontractors or suppliers directly, or",null,null,null,null,null,null,null,null,null,null,null,null,null,null,null,null,null,null,"x"]
[null,null,null,{"$f":"D661","v":0},null,null,"make checks payable jointly with any third party unless specifically authorized by the BUILDER in writing in",null,null,null,null,null,null,null,null,null,{"$f":"Q661","v":0},0,0,0,0,0,0,0,0,"x"]
[null,null,null,{"$f":"D661","v":0},null,null,"advance.",null,null,null,null,null,null,null,null,null,{"$f":"Q661","v":0},0,0,0,0,0,0,0,0,"x"]
[null,null,"P",null,null,null,"No deductions shall be made from the BUILDER's funds unless specifically agreed to in writing in advance.",null,null,null,null,null,null,null,null,null,null,null,null,null,null,null,null,null,null,"x"]
[null,null,"P",null,null,null,"No additional or unauthorized charges shall be made against the BUILDER unless specifically agreed to in",null,null,null,null,null,null,null,null,null,null,null,null,null,null,null,null,null,null,"x"]
[null,null,null,{"$f":"D665","v":0},null,null,"writing in advance.",null,null,null,null,null,null,null,null,null,{"$f":"Q665","v":0},0,0,0,0,0,0,0,0,"x"]
[null,null,"P",null,null,null,"All payments shall be made by bank check drawn on a US financial institution, payable in US Dollars, made",null,null,null,null,null,null,null,null,null,null,null,null,null,null,null,null,null,null,"x"]
[null,null,null,{"$f":"D667","v":0},null,null,"payable directly to the BUILDER in his business name.",null,null,null,null,null,null,null,null,null,{"$f":"Q667","v":0},0,0,0,0,0,0,0,0,"x"]
[null,null,"P",null,null,null,"The BUILDER may elect to accept checks payable to him as an individual for any payment described herein,",null,null,null,null,null,null,null,null,null,null,null,null,null,null,null,null,null,null,"x"]
[null,null,null,{"$f":"D669","v":0},null,null,"providing that it is expressly understood that all such payments are accepted in behalf of the BUILDER's",null,null,null,null,null,null,null,null,null,{"$f":"Q669","v":0},0,0,0,0,0,0,0,0,"x"]
[null,null,null,{"$f":"D669","v":0},null,null,"business name and that no such payment shall be construed as being made to the BUILDER as an individual",null,null,null,null,null,null,null,null,null,{"$f":"Q669","v":0},0,0,0,0,0,0,0,0,"x"]
[null,null,null,{"$f":"D669","v":0},null,null,"instead of the corporation.",null,null,null,null,null,null,null,null,null,{"$f":"Q669","v":0},0,0,0,0,0,0,0,0,"x"]
[null,null,"P",null,null,null,"Under no circumstances shall the OWNER attempt to unilaterally change the terms of this contract by adding",null,null,null,null,null,null,null,null,null,null,null,null,null,null,null,null,null,null,"x"]
[null,null,null,{"$f":"D673","v":0},null,null,"any additional requirements or conditions as a prerequisite to the BUILDER receiving any payment prescribed by",null,null,null,null,null,null,null,null,null,{"$f":"Q673","v":0},0,0,0,0,0,0,0,0,"x"]
[null,null,null,{"$f":"D673","v":0},null,null,"this Contract except those requirements and conditions provided herein or as may be agreed to by the BUILDER",null,null,null,null,null,null,null,null,null,{"$f":"Q673","v":0},0,0,0,0,0,0,0,0,"x"]
[null,null,null,{"$f":"D673","v":0},null,null,"in writing in advance.",null,null,null,null,null,null,null,null,null,{"$f":"Q673","v":0},0,0,0,0,0,0,0,0,"x"]
[]
[null,"PAYMENTS made by JOINT CHECK"]
[null,null,"S",null,null,"PAYMENTS by JOINT CHECK",null,null,null,null,null,null,null,null,null,null,null,null,null,null,null,null,null,null,null,"x"]
[null,null,"P",{"$f":"D679","v":0},null,null,"The OWNER and the BUILDER have agreed that the direct costs incurred by the BUILDER in constructing the",null,null,null,null,null,null,null,null,null,{"$f":"Q679","v":0},0,0,0,0,0,0,0,0,"x"]
[null,null,null,{"$f":"D680","v":0},null,null,"Project shall be paid directly by the OWNER as provided herein.",null,null,null,null,null,null,null,null,null,0,0,0,0,0,0,0,0,0,"x"]
[null,null,"P",{"$f":"D679","v":0},null,null,"Upon the signing of this contract, the OWNER will pay the BUILDER the contract deposit as provided in the",null,null,null,null,null,null,null,null,null,{"$f":"Q679","v":0},0,0,0,0,0,0,0,0,"x"]
[null,null,null,{"$f":"D682","v":0},null,null,"Progress Payment Schedule.  The BUILDER will utilize these funds to pay his start-up and mobilization costs",null,null,null,null,null,null,null,null,null,{"$f":"Q682","v":0},0,0,0,0,0,0,0,0,"x"]
[null,null,null,{"$f":"D682","v":0},null,null,"and all costs associated with the procurement of the building permit, including the permit fee(s) except as",null,null,null,null,null,null,null,null,null,{"$f":"Q682","v":0},0,0,0,0,0,0,0,0,"x"]
[null,null,null,{"$f":"D682","v":0},null,null,"may be provided otherwise herein.",null,null,null,null,null,null,null,null,null,{"$f":"Q682","v":0},0,0,0,0,0,0,0,0,"x"]
[null,null,"P",{"$f":"D679","v":0},null,null,"Throughout the course of the construction project, the BUILDER shall provide the OWNER with copies of all",null,null,null,null,null,null,null,null,null,{"$f":"Q679","v":0},0,0,0,0,0,0,0,0,"x"]
[null,null,null,{"$f":"D686","v":0},null,null,"invoices, bills and other similar requests for payment representing direct expenses incurred in the construct",null,null,null,null,null,null,null,null,null,{"$f":"Q686","v":0},0,0,0,0,0,0,0,0,"x"]
[null,null,null,{"$f":"D686","v":0},null,null,"tion of the project.  These payment requests shall be stamped and/or signed by the BUILDER approving their",null,null,null,null,null,null,null,null,null,{"$f":"Q686","v":0},0,0,0,0,0,0,0,0,"x"]
[null,null,null,{"$f":"D686","v":0},null,null,"payment.",null,null,null,null,null,null,null,null,null,{"$f":"Q686","v":0},0,0,0,0,0,0,0,0,"x"]
[null,null,"P",{"$f":"D679","v":0},null,null,"At each time when the construction has progressed to the point where the BUILDER is entitled to receive a",null,null,null,null,null,null,null,null,null,{"$f":"Q679","v":0},0,0,0,0,0,0,0,0,"x"]
[null,null,null,{"$f":"D690","v":0},null,null,"progress payment (draw), the OWNER and the BUILDER shall meet and examine the accumulated outstanding",null,null,null,null,null,null,null,null,null,{"$f":"Q690","v":0},0,0,0,0,0,0,0,0,"x"]
[null,null,null,{"$f":"D690","v":0},null,null,"and anticipated bills for the work that has been completed.",null,null,null,null,null,null,null,null,null,{"$f":"Q690","v":0},0,0,0,0,0,0,0,0,"x"]
[null,null,"P",{"$f":"D679","v":0},null,null,"At this meeting, or within 72 hours thereafter, the OWNER will write checks to the subcontractors and",null,null,null,null,null,null,null,null,null,{"$f":"Q679","v":0},0,0,0,0,0,0,0,0,"x"]
[null,null,null,{"$f":"D693","v":0},null,null,"suppliers who are currently owed money for their participation in the Project.",null,null,null,null,null,null,null,null,null,{"$f":"Q693","v":0},0,0,0,0,0,0,0,0,"x"]
[null,null,"P",{"$f":"D679","v":0},null,null,"The total of these checks shall be deducted from the amount of the BUILDER's progress payment, and the",null,null,null,null,null,null,null,null,null,{"$f":"Q679","v":0},0,0,0,0,0,0,0,0,"x"]
[null,null,null,{"$f":"D695","v":0},null,null,"OWNER shall then write a check to the BUILDER for the balance of the progress payment.",null,null,null,null,null,null,null,null,null,{"$f":"Q695","v":0},0,0,0,0,0,0,0,0,"x"]
[null,null,"P",{"$f":"D679","v":0},null,null,"No deductions shall be made from the BUILDER's funds for work performed by his employees.",null,null,null,null,null,null,null,null,null,{"$f":"Q679","v":0},0,0,0,0,0,0,0,0,"x"]
[null,null,"P",{"$f":"D679","v":0},null,null,"The OWNER may elect to disburse these checks directly, or may elect to give them to the BUILDER for",null,null,null,null,null,null,null,null,null,{"$f":"Q679","v":0},0,0,0,0,0,0,0,0,"x"]
[null,null,null,{"$f":"D698","v":0},null,null,"disbursement.",null,null,null,null,null,null,null,null,null,{"$f":"Q698","v":0},0,0,0,0,0,0,0,0,"x"]
[null,null,"P",{"$f":"D679","v":0},null,null,"The OWNER will be responsible, if so desired, for preparing and procuring lien releases from all sub-",null,null,null,null,null,null,null,null,null,{"$f":"Q679","v":0},0,0,0,0,0,0,0,0,"x"]
[null,null,null,{"$f":"D700","v":0},null,null,"contractors and suppliers paid by this procedure.",null,null,null,null,null,null,null,null,null,{"$f":"Q700","v":0},0,0,0,0,0,0,0,0,"x"]
[null,null,"P",{"$f":"D679","v":0},null,null,"The OWNER will not deduct or withhold any amounts from the BUILDER's payment for work not associated with",null,null,null,null,null,null,null,null,null,{"$f":"Q679","v":0},0,0,0,0,0,0,0,0,"x"]
[null,null,null,{"$f":"D702","v":0},null,null,"the specific progress payment or for special order deposits that are to be made by the OWNER.  In other",null,null,null,null,null,null,null,null,null,{"$f":"Q702","v":0},0,0,0,0,0,0,0,0,"x"]
[null,null,null,{"$f":"D702","v":0},null,null,"words, each progress payment shall be applied only to those expenses directly related to and specifically",null,null,null,null,null,null,null,null,null,{"$f":"Q702","v":0},0,0,0,0,0,0,0,0,"x"]
[null,null,null,{"$f":"D702","v":0},null,null,"incurred as a result of that portion of the work.",null,null,null,null,null,null,null,null,null,{"$f":"Q702","v":0},0,0,0,0,0,0,0,0,"x"]
[null,null,"P",{"$f":"D679","v":0},null,null,"The BUILDER shall be responsible for paying his general business overhead and for his own personnel directly.",null,null,null,null,null,null,null,null,null,{"$f":"Q679","v":0},0,0,0,0,0,0,0,0,"x"]
[null,null,"P",{"$f":"D679","v":0},null,null,"The BUILDER may elect to pay and bill or bills directly prior to the disbursement of the progress payment and",null,null,null,null,null,null,null,null,null,{"$f":"Q679","v":0},0,0,0,0,0,0,0,0,"x"]
[null,null,null,{"$f":"D707","v":0},null,null,"then provide proof of said payment to the OWNER, who will then consider the bill paid and will not deduct it",null,null,null,null,null,null,null,null,null,{"$f":"Q707","v":0},0,0,0,0,0,0,0,0,"x"]
[null,null,null,{"$f":"D707","v":0},null,null,"from the BUILDER's next progress payment.",null,null,null,null,null,null,null,null,null,{"$f":"Q707","v":0},0,0,0,0,0,0,0,0,"x"]
[null,null,"P",{"$f":"D679","v":0},null,null,"No disbursements will be made without the specific authorization of the BUILDER.",null,null,null,null,null,null,null,null,null,{"$f":"Q679","v":0},0,0,0,0,0,0,0,0,"x"]
[null,null,"P",{"$f":"D679","v":0},null,null,"Upon the completion of the Project, the OWNER will pay the remaining balance of the Contract Price to the",null,null,null,null,null,null,null,null,null,{"$f":"Q679","v":0},0,0,0,0,0,0,0,0,"x"]
[null,null,null,{"$f":"D711","v":0},null,null,"BUILDER.",null,null,null,null,null,null,null,null,null,{"$f":"Q711","v":0},0,0,0,0,0,0,0,0,"x"]
[null,null,"P",{"$f":"D679","v":0},null,null,"Nothing in this procedure is to be interpreted as creating a joint venture or a cost-plus contract between the",null,null,null,null,null,null,null,null,null,{"$f":"Q679","v":0},0,0,0,0,0,0,0,0,"x"]
[null,null,null,{"$f":"D713","v":0},null,null,"OWNER and the BUILDER.  This is a fixed total price contract (except for the allowances) and the BUILDER is",null,null,null,null,null,null,null,null,null,{"$f":"Q713","v":0},0,0,0,0,0,0,0,0,"x"]
[null,null,null,{"$f":"D713","v":0},null,null,"responsible for paying the total costs of performing the work regardless of it's eventual cost.",null,null,null,null,null,null,null,null,null,{"$f":"Q713","v":0},0,0,0,0,0,0,0,0,"x"]
[]
[null,"LATE PAYMENTS"]
[null,null,"S",null,null,"LATE PAYMENTS",null,null,null,null,null,null,null,null,null,null,null,"x","x","x","x","x","x","x",null,"x"]
[null,null,"P",{"$f":"D718","v":0},null,null,"The OWNER agrees to pay all sums due under this agreement within three days of the receipt of a written.",null,null,null,null,null,null,null,null,null,{"$f":"Q718","v":0},"x","x","x","x","x","x","x",0,"x"]
[null,null,null,{"$f":"D719","v":0},null,null,"request.",null,null,null,null,null,null,null,null,null,0,"x","x","x","x","x","x","x",0,"x"]
[null,null,"P",{"$f":"D718","v":0},null,null,"Late payment by the OWNER to the BUILDER of progress payments or the final payment will cause the BUILDER",null,null,null,null,null,null,null,null,null,{"$f":"Q718","v":0},"x","x","x","x","x","x","x",0,"x"]
[null,null,null,{"$f":"D721","v":0},null,null,"to incur costs not anticipated in this agreement, the exact amount of which is difficult to ascertain.",null,null,null,null,null,null,null,null,null,{"$f":"Q721","v":0},"x","x","x","x","x","x","x",0,"x"]
[null,null,"P",{"$f":"D718","v":0},null,null,"Such costs include, but are not limited to, processing and accounting charges, loss of trade discounts, and",null,null,null,null,null,null,null,null,null,{"$f":"Q718","v":0},"x","x","x","x","x","x","x",0,"x"]
[null,null,null,{"$f":"D723","v":0},null,null,"late charges imposed by the BUILDER's creditors.",null,null,null,null,null,null,null,null,null,{"$f":"Q723","v":0},"x","x","x","x","x","x","x",0,"x"]
[null,null,"P",null,null,null,"If full payment is not made within three days, the OWNER agrees to pay five percent (5%) of the amount due",null,null,null,null,null,null,null,null,null,null,null,null,null,null,null,null,null,null,"x"]
[null,null,null,{"$f":"D725","v":0},null,null,"as a late charge.  Said late charge represents a fair and reasonable estimate of the costs the BUILDER will",null,null,null,null,null,null,null,null,null,{"$f":"Q725","v":0},0,0,0,0,0,0,0,0,"x"]
[null,null,null,{"$f":"D725","v":0},null,null,"incur by reason of the late payment.  Said late charge is not and will not be construed as a penalty.",null,null,null,null,null,null,null,null,null,{"$f":"Q725","v":0},0,0,0,0,0,0,0,0,"x"]
[null,null,"P",null,null,null,"The provisions provided herein shall also apply in the event that the OWNER stops payment on any check",null,null,null,null,null,null,null,null,null,null,null,null,null,null,null,null,null,null,"x"]
[null,null,null,{"$f":"D728","v":0},null,null,"issued to the BUILDER for any reason whatsoever, fails to promptly endorse joint checks issued by the Bank",null,null,null,null,null,null,null,null,null,{"$f":"Q728","v":0},0,0,0,0,0,0,0,0,"x"]
[null,null,null,{"$f":"D728","v":0},null,null,"made to both the OWNER and the BUILDER, or gives the BUILDER a check that is eventually returned for",null,null,null,null,null,null,null,null,null,{"$f":"Q728","v":0},0,0,0,0,0,0,0,0,"x"]
[null,null,null,{"$f":"D728","v":0},null,null,"Insufficient Funds.",null,null,null,null,null,null,null,null,null,{"$f":"Q728","v":0},0,0,0,0,0,0,0,0,"x"]
[]
[null,"BUILDER'S RIGHT to STOP WORK"]
[null,null,"S",null,null,"RIGHT to STOP WORK",null,null,null,null,null,null,null,null,null,null,null,"x","x","x","x","x","x","x",null,"x"]
[null,null,"P",{"$f":"D734","v":0},null,null,"If any payment under this Contract is not made when due, the BUILDER may suspend work on the job until such",null,null,null,null,null,null,null,null,null,{"$f":"Q734","v":0},"x","x","x","x","x","x","x",0,"x"]
[null,null,null,{"$f":"D735","v":0},null,null,"time as all payments due have been made.",null,null,null,null,null,null,null,null,null,0,"x","x","x","x","x","x","x",0,"x"]
[null,null,"P",{"$f":"D734","v":0},null,null,"Any failure to make payment is subject to a claim enforced against the property in accordance with applicable",null,null,null,null,null,null,null,null,null,{"$f":"Q734","v":0},"x","x","x","x","x","x","x",0,"x"]
[null,null,null,{"$f":"D737","v":0},null,null,"lien laws.",null,null,null,null,null,null,null,null,null,{"$f":"Q737","v":0},"x","x","x","x","x","x","x",0,"x"]
[]
[null,"OVERDUE ACCOUNTS"]
[null,null,"S",null,null,"OVERDUE ACCOUNTS",null,null,null,null,null,null,null,null,null,null,null,"x","x","x","x","x","x","x",null,"x"]
[null,null,"P",{"$f":"D741","v":0},null,null,"Any moneys due the BUILDER under this Contract that remain unpaid for more than thirty days shall incur",null,null,null,null,null,null,null,null,null,{"$f":"Q741","v":0},"x","x","x","x","x","x","x",0,"x"]
[null,null,null,{"$f":"D742","v":0},null,null,"interest on the unpaid balance at the rate of 1.5% per month for every month it shall remain unpaid.",null,null,null,null,null,null,null,null,null,0,"x","x","x","x","x","x","x",0,"x"]
[]
[null,"LIENS"]
[null,null,"S",null,null,"LIENS",null,null,null,null,null,null,null,null,null,null,null,"x","x","x","x",null,"x","x",null,"x"]
[null,null,"P",{"$f":"D746","v":0},null,null,"Failure to pay persons supplying materials or services according to the terms of this Contract will result in the",null,null,null,null,null,null,null,null,null,{"$f":"Q746","v":0},"x","x","x","x",0,"x","x",0,"x"]
[null,null,null,{"$f":"D747","v":0},null,null,"filing of mechanics liens on the OWNER's property.",null,null,null,null,null,null,null,null,null,0,"x","x","x","x",0,"x","x",0,"x"]
[null,null,"P",{"$f":"D746","v":0},null,null,"The BUILDER shall protect the OWNER from potential liens by preparing a Notice of Commencement for the",null,null,null,null,null,null,null,null,null,{"$f":"Q746","v":0},"x","x","x","x",0,"x","x",0,"x"]
[null,null,null,{"$f":"D749","v":0},null,null,"OWNER to record with the local court, and by executing partial lien releases and a Contractor's Affidavit with",null,null,null,null,null,null,null,null,null,{"$f":"Q749","v":0},"x","x","x","x",0,"x","x",0,"x"]
[null,null,null,{"$f":"D749","v":0},null,null,"each progress payment.",null,null,null,null,null,null,null,null,null,{"$f":"Q749","v":0},"x","x","x","x",0,"x","x",0,"x"]
[null,null,"P",{"$f":"D746","v":0},null,null,"The OWNER has the right to receive from the BUILDER the names and addresses of all persons or firms who",null,null,null,null,null,null,null,null,null,{"$f":"Q746","v":0},"x","x","x","x",0,"x","x",0,"x"]
[null,null,null,{"$f":"D752","v":0},null,null,"supplied labor and/or material to the project at the BUILDER's order so that the OWNER may personally solicit lien",null,null,null,null,null,null,null,null,null,{"$f":"Q752","v":0},"x","x","x","x",0,"x","x",0,"x"]
[null,null,null,{"$f":"D752","v":0},null,null,"releases from said subcontractors and suppliers if he so desires.",null,null,null,null,null,null,null,null,null,{"$f":"Q752","v":0},"x","x","x","x",0,"x","x",0,"x"]
[]
[null,"REFERENCE to QUALITY of WORK STANDARD"]
[null,null,"S",null,null,"QUALITY of WORK",null,null,null,null,null,null,null,null,null,null,"x","x","x","x","x","x","x","x",null,"x"]
[null,null,"P",{"$f":"D757","v":0},null,null,"All materials to be supplied by the BUILDER are to be new unless otherwise specified in the contract",null,null,null,null,null,null,null,null,null,{"$f":"Q757","v":"x"},"x","x","x","x","x","x","x",0,"x"]
[null,null,null,{"$f":"D758","v":0},null,null,"documents.",null,null,null,null,null,null,null,null,null,"x","x","x","x","x","x","x","x",0,"x"]
[null,null,"P",{"$f":"D757","v":0},null,null,"All work shall be performed in a professional and workmanship like manner, and shall conform to the minimum",null,null,null,null,null,null,null,null,null,{"$f":"Q757","v":"x"},"x","x","x","x","x","x","x",0,"x"]
[null,null,null,{"$f":"D760","v":0},null,null,"standards set forth in the National Association of Home BUILDERs publication titled \"RESIDENTIAL",null,null,null,null,null,null,null,null,null,{"$f":"Q760","v":"x"},"x","x","x","x","x","x","x",0,"x"]
[null,null,null,{"$f":"D760","v":0},null,null,"CONSTRUCTION PERFORMANCE GUIDELINES\"",null,null,null,null,null,null,null,null,null,{"$f":"Q760","v":"x"},"x","x","x","x","x","x","x",0,"x"]
[null,null,"P",{"$f":"D757","v":0},null,null,"In the event there is a dispute regarding the quality of the work being performed or the materials being",null,null,null,null,null,null,null,null,null,{"$f":"Q757","v":"x"},"x","x","x","x","x","x","x",0,"x"]
[null,null,null,{"$f":"D763","v":0},null,null,"utilized, the parties shall refer to this publication for guidance to settle the issue.",null,null,null,null,null,null,null,null,null,{"$f":"Q763","v":"x"},"x","x","x","x","x","x","x",0,"x"]
[]
[null,"PROPERTY LINES"]
[null,null,"S",null,null,"PROPERTY LINES",null,null,null,null,null,null,null,null,null,null,null,"x","x",null,null,null,"x",null,null,"x"]
[null,null,"P",{"$f":"D767","v":0},null,null,"The OWNER is solely responsible for verifying local zoning restrictions, easements and building set-back ",null,null,null,null,null,null,null,null,null,{"$f":"Q767","v":0},"x","x",0,0,0,"x",0,0,"x"]
[null,null,null,{"$f":"D768","v":0},null,null,"requirements.",null,null,null,null,null,null,null,null,null,0,"x","x",0,0,0,"x",0,0,"x"]
[null,null,"P",{"$f":"D767","v":0},null,null,"The OWNER shall provide the BUILDER with an accurate Plat of the property and shall locate and point out the",null,null,null,null,null,null,null,null,null,{"$f":"Q767","v":0},"x","x",0,0,0,"x",0,0,"x"]
[null,null,null,{"$f":"D770","v":0},null,null,"property lines to the BUILDER prior to the commencement of construction. ",null,null,null,null,null,null,null,null,null,{"$f":"Q770","v":0},"x","x",0,0,0,"x",0,0,"x"]
[null,null,"P",{"$f":"D767","v":0},null,null,"In the event it becomes necessary to have the property surveyed to meet the requirements of the bank, the",null,null,null,null,null,null,null,null,null,{"$f":"Q767","v":0},"x","x",0,0,0,"x",0,0,"x"]
[null,null,null,{"$f":"D772","v":0},null,null,"local building department or any other governmental authority, or for any other reason, the OWNER shall order",null,null,null,null,null,null,null,null,null,{"$f":"Q772","v":0},"x","x",0,0,0,"x",0,0,"x"]
[null,null,null,{"$f":"D772","v":0},null,null,"a survey and shall pay all costs generated therein unless otherwise specified in the Specifications.",null,null,null,null,null,null,null,null,null,{"$f":"Q772","v":0},"x","x",0,0,0,"x",0,0,"x"]
[null,null,"P",{"$f":"D767","v":0},null,null,"The OWNER assumes the responsibility for the accuracy of all surveys and boundary markers.",null,null,null,null,null,null,null,null,null,{"$f":"Q767","v":0},"x","x",0,0,0,"x",0,0,"x"]
[]
[null,"OWNER obtains PERMISSION to BUILD"]
[null,null,"S",null,null,"PERMISSION to BUILD",null,null,null,null,null,null,null,null,null,null,null,"x","x","x","x",null,"x","x",null,"x"]
[null,null,"P",{"$f":"D778","v":0},null,null,"The OWNER shall be solely responsible for obtaining, if applicable, any zoning variances and/or any",null,null,null,null,null,null,null,null,null,{"$f":"Q778","v":0},"x","x","x","x",0,"x","x",0,"x"]
[null,null,null,{"$f":"D779","v":0},null,null,"Homeowners Association approval for the work to be performed, including but not limited to researching said",null,null,null,null,null,null,null,null,null,0,"x","x","x","x",0,"x","x",0,"x"]
[null,null,null,{"$f":"D779","v":0},null,null,"requirements, making the proper applications, and otherwise fulfilling any requirements in this regard.",null,null,null,null,null,null,null,null,null,{"$f":"Q779","v":0},"x","x","x","x",0,"x","x",0,"x"]
[]
[null,"DAMAGE to WORK by OWNER"]
[null,null,"S",null,null,"DAMAGE to WORK",null,null,null,null,null,null,null,null,null,null,null,null,null,null,null,null,null,null,null,"x"]
[null,null,"P",{"$f":"D784","v":0},null,null,"The BUILDER shall not be responsible for any damage caused by the OWNER or other causes beyond the",null,null,null,null,null,null,null,null,null,{"$f":"Q784","v":0},0,0,0,0,0,0,0,0,"x"]
[null,null,null,{"$f":"D785","v":0},null,null,"control of the BUILDER.  The OWNER will pay for any restoration work.",null,null,null,null,null,null,null,null,null,0,0,0,0,0,0,0,0,0,"x"]
[]
[null,"OWNER pays for all UTILITIES"]
[null,null,"S",null,null,"UTILITIES",null,null,null,null,null,null,null,null,null,null,null,"x","x",null,null,null,null,null,null,"x"]
[null,null,"P",{"$f":"D789","v":0},null,null,"The OWNER shall provide all electrical and water service necessary to perform the work unless otherwise",null,null,null,null,null,null,null,null,null,{"$f":"Q789","v":0},"x","x",0,0,0,0,0,0,"x"]
[null,null,null,{"$f":"D790","v":0},null,null,"specified in the contract documents.",null,null,null,null,null,null,null,null,null,0,"x","x",0,0,0,0,0,0,"x"]
[]
[null,"ACCESS to PROJECT"]
[null,null,"S",null,null,"ACCESS to PROJECT",null,null,null,null,null,null,null,null,null,null,null,null,null,null,null,null,null,null,null,"x"]
[null,null,"P",{"$f":"D794","v":0},null,null,"The OWNER shall allow the BUILDER and his employees, subcontractors and suppliers and vehicles free",null,null,null,null,null,null,null,null,null,{"$f":"Q794","v":0},0,0,0,0,0,0,0,0,"x"]
[null,null,null,{"$f":"D795","v":0},null,null,"access to the project site during all regular workdays, Monday through Friday, from 7 am to 6 pm.",null,null,null,null,null,null,null,null,null,0,0,0,0,0,0,0,0,0,"x"]
[null,null,"P",{"$f":"D794","v":0},null,null,"In the event there is a specific time of completion, the OWNER agrees to allow access to the property seven",null,null,null,null,null,null,null,null,null,{"$f":"Q794","v":0},0,0,0,0,0,0,0,0,"x"]
[null,null,null,{"$f":"D797","v":0},null,null,"days a week from 7 am to 7 pm.",null,null,null,null,null,null,null,null,null,{"$f":"Q797","v":0},0,0,0,0,0,0,0,0,"x"]
[null,null,"P",{"$f":"D794","v":0},null,null,"The OWNER shall keep the driveways clear and available for the movement of vehicles during the working",null,null,null,null,null,null,null,null,null,{"$f":"Q794","v":0},0,0,0,0,0,0,0,0,"x"]
[null,null,null,{"$f":"D799","v":0},null,null,"hours enumerated herein.",null,null,null,null,null,null,null,null,null,{"$f":"Q799","v":0},0,0,0,0,0,0,0,0,"x"]
[]
[null,"PROTECTION of OWNER'S EXISTING PROPERTY"]
[null,null,"S",null,null,"PROTECTION of PROPERTY",null,null,null,null,null,null,null,null,null,null,null,null,null,null,null,null,null,null,null,"x"]
[null,null,"P",{"$f":"D803","v":0},null,null,"The BUILDER shall make reasonable attempts to protect driveways, lawns and landscape plantings during the",null,null,null,null,null,null,null,null,null,{"$f":"Q803","v":0},0,0,0,0,0,0,0,0,"x"]
[null,null,null,{"$f":"D804","v":0},null,null,"construction of the project.  Nevertheless, the BUILDER shall not be liable for damage to any of the items listed",null,null,null,null,null,null,null,null,null,0,0,0,0,0,0,0,0,0,"x"]
[null,null,null,{"$f":"D804","v":0},null,null,"above unless the damage results from the BUILDER's gross negligence.",null,null,null,null,null,null,null,null,null,{"$f":"Q804","v":0},0,0,0,0,0,0,0,0,"x"]
[]
[null,"SIGNS"]
[null,null,"S",null,null,"SIGNAGE",null,null,null,null,null,null,null,null,null,null,"x","x","x",null,null,null,"x",null,null,"x"]
[null,null,"P",{"$f":"D809","v":0},null,null,"The OWNER agrees to allow the BUILDER to display a company sign on the property for advertising purposes",null,null,null,null,null,null,null,null,null,{"$f":"Q809","v":"x"},"x","x",0,0,0,"x",0,0,"x"]
[null,null,null,{"$f":"D810","v":0},null,null,"and as an aid to suppliers and subcontractors to locate the project.  Said sign shall not exceed 10 square",null,null,null,null,null,null,null,null,null,"x","x","x",0,0,0,"x",0,0,"x"]
[null,null,null,{"$f":"D810","v":0},null,null,"feet in size.",null,null,null,null,null,null,null,null,null,{"$f":"Q810","v":"x"},"x","x",0,0,0,"x",0,0,"x"]
[]
[null,"SITE TELEPHONE"]
[null,null,"S",null,null,"TELEPHONE",null,null,null,null,null,null,null,null,null,null,null,null,null,null,null,null,null,null,null,"x"]
[null,null,"P",{"$f":"D815","v":0},null,null,"The OWNER agrees to allow the BUILDER to have a temporary telephone line installed at the property for the",null,null,null,null,null,null,null,null,null,{"$f":"Q815","v":0},0,0,0,0,0,0,0,0,"x"]
[null,null,null,{"$f":"D816","v":0},null,null,"duration of the project at the BUILDER's sole expense.",null,null,null,null,null,null,null,null,null,0,0,0,0,0,0,0,0,0,"x"]
[null,null,"P",{"$f":"D815","v":0},null,null,"The OWNER agrees to allow the BUILDER to use the OWNER's telephone for local business calls related to the",null,null,null,null,null,null,null,null,null,{"$f":"Q815","v":0},0,0,0,0,0,0,0,0,"x"]
[null,null,null,{"$f":"D818","v":0},null,null,"project.  No long distance calls will be made from the OWNER's telephone.",null,null,null,null,null,null,null,null,null,{"$f":"Q818","v":0},0,0,0,0,0,0,0,0,"x"]
[]
[null,"PERMISSION to PHOTOGRAPH the PROJECT"]
[null,null,"S",null,null,"PHOTOGRAPHS",null,null,null,null,null,null,null,null,null,null,null,null,null,null,null,null,null,null,null,"x"]
[null,null,"P",{"$f":"D822","v":0},null,null,"The BUILDER is authorized by the OWNER to use photographs taken at the project for display, promotion or",null,null,null,null,null,null,null,null,null,{"$f":"Q822","v":0},0,0,0,0,0,0,0,0,"x"]
[null,null,null,{"$f":"D823","v":0},null,null,"advertising without compensation to the OWNER.",null,null,null,null,null,null,null,null,null,0,0,0,0,0,0,0,0,0,"x"]
[]
[null,"MATERIALS SELECTIONS by BUILDER"]
[null,null,"S",null,null,"MATERIALS SELECTIONS by BUILDER",null,null," ",null,null,null,null,null,null,null,"x","x","x","x","x",null,"x","x",null,"x"]
[null,null,"P",{"$f":"D827","v":0},null,null,"The BUILDER may select and purchase any items designated in the Construction Specifications to be selected",null,null,null,null,null,null,null,null,null,{"$f":"Q827","v":"x"},"x","x","x","x",0,"x","x",0,"x"]
[null,null,null,{"$f":"D828","v":0},null,null,"and purchased by the BUILDER from any supplier or vendor of his choice.",null,null,null,null,null,null,null,null,null,"x","x","x","x","x",0,"x","x",0,"x"]
[null,null,"P",{"$f":"D827","v":0},null,null,"Any surplus materials purchased by the BUILDER as part of his scope-of-work shall belong to the BUILDER.",null,null,null,null,null,null,null,null,null,{"$f":"Q827","v":"x"},"x","x","x","x",0,"x","x",0,"x"]
[null,null,"P",null,null,null,"Surplus materials purchased as allowances shall belong to the OWNER.",null,null,null,null,null,null,null,null,null,null,null,null,null,null,null,null,null,null,"x"]
[]
[null,"MATERIALS SELECTIONS by OWNER"]
[null,null,"S",null,null,"MATERIALS SELECTIONS by OWNER",null,null,null,null,null,null,null,null,null,null,"x","x","x","x","x",null,"x","x",null,"x"]
[null,null,"P",null,null,null,"The OWNER may select and/or purchase any item designated in the Construction Specifications to be selected",null,null,null,null,null,null,null,null,null,"x","x","x",null,null,null,"x","x",null,"x"]
[null,null,null,{"$f":"D835","v":0},null,null,"by only from Suppliers designated and approved by the BUILDER.",null,null,null,null,null,null,null,null,null,{"$f":"Q835","v":"x"},"x","x",0,0,0,"x","x",0,"x"]
[null,null,"P",null,null,null,"The OWNER may select and/or purchase any item designated in the Construction Specifications to be selected",null,null,null,null,null,null,null,null,null,null,null,null,"x","x",null,null,null,null,"x"]
[null,null,null,{"$f":"D837","v":0},null,null,"by the OWNER from any supplier of his choice.",null,null,null,null,null,null,null,null,null,{"$f":"Q837","v":0},0,0,"x","x",0,0,0,0,"x"]
[null,null,"P",{"$f":"D834","v":0},null,null,"In the event that the OWNER chooses to select such items from suppliers with whom the BUILDER has an active",null,null,null,null,null,null,null,null,null,{"$f":"Q834","v":"x"},"x","x","x","x",0,"x","x",0,"x"]
[null,null,null,{"$f":"D839","v":0},null,null,"account, the BUILDER will administrate any warranty situation that may arise.",null,null,null,null,null,null,null,null,null,{"$f":"Q839","v":"x"},"x","x","x","x",0,"x","x",0,"x"]
[null,null,"P",{"$f":"D834","v":0},null,null,"In the event that the OWNER chooses to select any such items from a supplier with whom the BUILDER does not",null,null,null,null,null,null,null,null,null,{"$f":"Q834","v":"x"},"x","x","x","x",0,"x","x",0,"x"]
[null,null,null,{"$f":"D841","v":0},null,null,"have an active account, the OWNER shall pay the supplier for the required items directly, including order",null,null,null,null,null,null,null,null,null,{"$f":"Q841","v":"x"},"x","x","x","x",0,"x","x",0,"x"]
[null,null,null,{"$f":"D841","v":0},null,null,"deposits, and further shall be responsible for administrating any warranty situations that may arise.",null,null,null,null,null,null,null,null,null,{"$f":"Q841","v":"x"},"x","x","x","x",0,"x","x",0,"x"]
[null,null,"P",{"$f":"D834","v":0},null,null,"In the event the OWNER purchases items that are already included in the Contract Price or selects items that",null,null,null,null,null,null,null,null,null,{"$f":"Q834","v":"x"},"x","x","x","x",0,"x","x",0,"x"]
[null,null,null,{"$f":"D844","v":0},null,null,"are different from those items specified in the Construction Specifications, the OWNER shall receive a credit",null,null,null,null,null,null,null,null,null,{"$f":"Q844","v":"x"},"x","x","x","x",0,"x","x",0,"x"]
[null,null,null,{"$f":"D844","v":0},null,null,"equal to the BUILDER's regular wholesale price of the items that were specified in the contract.",null,null,null,null,null,null,null,null,null,{"$f":"Q844","v":"x"},"x","x","x","x",0,"x","x",0,"x"]
[null,null,"P",null,null,null,"The OWNER shall pay all special order deposits, including cabinet order deposits and plumbing fixture",null,null,null,null,null,null,null,null,null,"x","x","x","x","x",null,null,null,null,"x"]
[null,null,null,{"$f":"D847","v":0},null,null,"deposits, directly to the supplier, said deposits to be deducted from the applicable draw.",null,null,null,null,null,null,null,null,null,{"$f":"Q847","v":"x"},"x","x","x","x",0,0,0,0,"x"]
[null,null,"P",null,null,null,"The OWNER shall pay all special order deposits, including cabinet order deposits and plumbing fixture",null,null,null,null,null,null,null,null,null,null,null,null,null,null,null,null,null,null,"x"]
[null,null,null,{"$f":"D849","v":0},null,null,"deposits, directly to the BUILDER.",null,null,null,null,null,null,null,null,null,{"$f":"Q849","v":0},0,0,0,0,0,0,0,0,"x"]
[]
[null,"RIGHT to SUBSTITUTE MATERIALS when necessary"]
[null,null,"S",null,null,"SUBSTITUTION of MATERIALS",null,null,null,null,null,null,null,null,null,null,"x","x","x","x","x",null,"x","x",null,"x"]
[null,null,"P",{"$f":"D853","v":0},null,null,"The BUILDER may substitute structural materials and other generically described items without notice to the",null,null,null,null,null,null,null,null,null,{"$f":"Q853","v":"x"},"x","x","x","x",0,"x","x",0,"x"]
[null,null,null,{"$f":"D854","v":0},null,null,"OWNER in order to allow the work to proceed, provided that the substituted materials are of no lesser quality",null,null,null,null,null,null,null,null,null,"x","x","x","x","x",0,"x","x",0,"x"]
[null,null,null,{"$f":"D854","v":0},null,null,"than those described in the Construction Specifications.",null,null,null,null,null,null,null,null,null,{"$f":"Q854","v":"x"},"x","x","x","x",0,"x","x",0,"x"]
[null,null,"P",{"$f":"D853","v":0},null,null,"Substitutions of specifically described brand name materials or allowance selections will not be made without",null,null,null,null,null,null,null,null,null,{"$f":"Q853","v":"x"},"x","x","x","x",0,"x","x",0,"x"]
[null,null,null,{"$f":"D857","v":0},null,null,"the OWNER's authorization.",null,null,null,null,null,null,null,null,null,{"$f":"Q857","v":"x"},"x","x","x","x",0,"x","x",0,"x"]
[]
[null,"MATCHING EXISTING FINISHES"]
[null,null,"S",null,null,"MATCHING EXISTING FINISHES",null,null,null,null,null,null,null,null,null,null,null,null,null,null,null,null,null,"x",null,"x"]
[null,null,"P",{"$f":"D861","v":0},null,null,"The BUILDER shall make reasonable attempts to match new finishes with existing finishes where applicable,",null,null,null,null,null,null,null,null,null,{"$f":"Q861","v":0},0,0,0,0,0,0,"x",0,"x"]
[null,null,null,{"$f":"D862","v":0},null,null,"however the OWNER understands and accepts that many old and existing finishes cannot be perfectly",null,null,null,null,null,null,null,null,null,0,0,0,0,0,0,0,"x",0,"x"]
[null,null,null,{"$f":"D862","v":0},null,null,"matched and that the point where old and new finishes meet will be plainly evident in many such situations.",null,null,null,null,null,null,null,null,null,{"$f":"Q862","v":0},0,0,0,0,0,0,"x",0,"x"]
[null,null,"P",{"$f":"D861","v":0},null,null,"In the event that the BUILDER is to match an existing finish, detail, fixture, device or appliance, he shall only be",null,null,null,null,null,null,null,null,null,{"$f":"Q861","v":0},0,0,0,0,0,0,"x",0,"x"]
[null,null,null,{"$f":"D865","v":0},null,null,"required to make a reasonably close match using locally available stock materials unless otherwise specified",null,null,null,null,null,null,null,null,null,{"$f":"Q865","v":0},0,0,0,0,0,0,"x",0,"x"]
[null,null,null,{"$f":"D865","v":0},null,null,"in the contract documents.",null,null,null,null,null,null,null,null,null,{"$f":"Q865","v":0},0,0,0,0,0,0,"x",0,"x"]
[]
[null,"NOT RESPONSIBLE for REUSING EXISTING MATERIALS, APPLIANCES, etc>"]
[null,null,"S",null,null,"REUSING EXISTING MATERIALS, FIXTURES or APPLIANCES",null,null,null,null,null,null,null,null,null,null,null,null,null,null,null,null,null,"x",null,"x"]
[null,null,"P",{"$f":"D870","v":0},null,null,"The OWNER may request the BUILDER to remove, relocate and/or reinstall existing or used materials, fixtures,",null,null,null,null,null,null,null,null,null,{"$f":"Q870","v":0},0,0,0,0,0,0,"x",0,"x"]
[null,null,null,{"$f":"D871","v":0},null,null,"devices and appliances as may be described in the contract documents.",null,null,null,null,null,null,null,null,null,0,0,0,0,0,0,0,"x",0,"x"]
[null,null,"P",{"$f":"D870","v":0},null,null,"The BUILDER makes no guarantee for the successful reuse or continued operation of any such item or device",null,null,null,null,null,null,null,null,null,{"$f":"Q870","v":0},0,0,0,0,0,0,"x",0,"x"]
[null,null,null,{"$f":"D873","v":0},null,null,"and is specifically not responsible for the diagnosis or replacement of any such failed materials, fixtures,",null,null,null,null,null,null,null,null,null,{"$f":"Q873","v":0},0,0,0,0,0,0,"x",0,"x"]
[null,null,null,{"$f":"D873","v":0},null,null,"devices or appliances.",null,null,null,null,null,null,null,null,null,{"$f":"Q873","v":0},0,0,0,0,0,0,"x",0,"x"]
[]
[null,"WORK by OWNER"]
[null,null,"S",null,null,"ITEMS DESIGNATED to be PERFORMED by the OWNER SHALL INCLUDE the FOLLOWING:",null,null,null,null,null,null,null,null,null,null,null,null,null,"x","x",null,null,null,null,"x"]
[null,null,"P",{"$f":"D878","v":0},null,null,"The following tasks refer only to work that the OWNER has elected to perform.",null,null,null,null,null,null,null,null,null,{"$f":"Q878","v":0},0,0,"x","x",0,0,0,0,"x"]
[null,null,"P",{"$f":"D878","v":0},null,null,"Find, negotiate and make credit arrangements with suppliers and subcontractors.",null,null,null,null,null,null,null,null,null,{"$f":"Q878","v":0},0,0,"x","x",0,0,0,0,"x"]
[null,null,"P",{"$f":"D878","v":0},null,null,"Verify licensing and insurance coverage of suppliers and subcontractors.",null,null,null,null,null,null,null,null,null,{"$f":"Q878","v":0},0,0,"x","x",0,0,0,0,"x"]
[null,null,"P",{"$f":"D878","v":0},null,null,"Perform all necessary material takeoff's.",null,null,null,null,null,null,null,null,null,{"$f":"Q878","v":0},0,0,"x","x",0,0,0,0,"x"]
[null,null,"P",{"$f":"D878","v":0},null,null,"Schedule subcontractors work and suppliers deliveries.",null,null,null,null,null,null,null,null,null,{"$f":"Q878","v":0},0,0,"x","x",0,0,0,0,"x"]
[null,null,"P",{"$f":"D878","v":0},null,null,"Receive all deliveries and count materials from suppliers.",null,null,null,null,null,null,null,null,null,{"$f":"Q878","v":0},0,0,"x","x",0,0,0,0,"x"]
[null,null,"P",{"$f":"D878","v":0},null,null,"Make arrangements for subcontractors and suppliers to gain access to building.",null,null,null,null,null,null,null,null,null,{"$f":"Q878","v":0},0,0,"x","x",0,0,0,0,"x"]
[null,null,"P",{"$f":"D878","v":0},null,null,"Directly supervise, inspect and approved work performed by subcontractors.",null,null,null,null,null,null,null,null,null,{"$f":"Q878","v":0},0,0,"x","x",0,0,0,0,"x"]
[null,null,"P",{"$f":"D878","v":0},null,null,"Receive, process and pay bills from suppliers and subcontractors.",null,null,null,null,null,null,null,null,null,{"$f":"Q878","v":0},0,0,"x","x",0,0,0,0,"x"]
[null,null,"P",{"$f":"D878","v":0},null,null,"Formulate punchlists of substandard work performed by subcontractors.",null,null,null,null,null,null,null,null,null,{"$f":"Q878","v":0},0,0,"x","x",0,0,0,0,"x"]
[null,null,"P",{"$f":"D878","v":0},null,null,"Police the correction of substandard work performed by subcontractors.",null,null,null,null,null,null,null,null,null,{"$f":"Q878","v":0},0,0,"x","x",0,0,0,0,"x"]
[null,null,"P",{"$f":"D878","v":0},null,null,"Follow-up on all warranty issues resulting from work performed or materials supplied.",null,null,null,null,null,null,null,null,null,{"$f":"Q878","v":0},0,0,"x","x",0,0,0,0,"x"]
[null,null,"P",{"$f":"D878","v":0},null,null,"Clean up after subcontractors and remove their trash from project site.",null,null,null,null,null,null,null,null,null,{"$f":"Q878","v":0},0,0,"x","x",0,0,0,0,"x"]
[]
[null,"SUBCONTRACTORS and EMPLOYEES"]
[null,null,"S",null,null,"SUBCONTRACTORS and EMPLOYEES",null,null,null,null,null,null,null,null,null,null,"x","x","x","x","x",null,"x","x",null,"x"]
[null,null,"P",{"$f":"D894","v":0},null,null,"Agreements made by the OWNER with mechanics or subcontractors on the job are specifically not recognized",null,null,null,null,null,null,null,null,null,{"$f":"Q894","v":"x"},"x","x","x","x",0,"x","x",0,"x"]
[null,null,null,{"$f":"D895","v":0},null,null,"by the BUILDER.",null,null,null,null,null,null,null,null,null,"x","x","x","x","x",0,"x","x",0,"x"]
[null,null,"P",{"$f":"D894","v":0},null,null,"The OWNER agrees not to solicit, hire or contract with any subcontractor or employee of the BUILDER without",null,null,null,null,null,null,null,null,null,{"$f":"Q894","v":"x"},"x","x","x","x",0,"x","x",0,"x"]
[null,null,null,{"$f":"D897","v":0},null,null,"the specific permission of the BUILDER for a period of six months following the completion of the Project.",null,null,null,null,null,null,null,null,null,{"$f":"Q897","v":"x"},"x","x","x","x",0,"x","x",0,"x"]
[null,null,"P",{"$f":"D894","v":0},null,null,"The BUILDER shall maintain discipline and good behavior among his employees and the employees of his",null,null,null,null,null,null,null,null,null,{"$f":"Q894","v":"x"},"x","x","x","x",0,"x","x",0,"x"]
[null,null,null,{"$f":"D899","v":0},null,null,"subcontractors.",null,null,null,null,null,null,null,null,null,{"$f":"Q899","v":"x"},"x","x","x","x",0,"x","x",0,"x"]
[]
[null,"DISPOSAL of DEBRIS"]
[null,null,"S",null,null,"DISPOSAL of DEBRIS",null,null,null,null,null,null,null,null,null,null,null,null,null,null,null,null,"x","x",null,"x"]
[null,null,"P",{"$f":"D903","v":0},null,null,"All debris resulting from the work under this Contract, including fixtures, cabinets and other components, are",null,null,null,null,null,null,null,null,null,{"$f":"Q903","v":0},0,0,0,0,0,"x","x",0,"x"]
[null,null,null,{"$f":"D904","v":0},null,null,"to be removed and disposed of by the BUILDER unless otherwise specified in the contract documents.",null,null,null,null,null,null,null,null,null,0,0,0,0,0,0,"x","x",0,"x"]
[null,null,"P",{"$f":"D903","v":0},null,null,"The BUILDER shall not be required to later dispose of any items (including appliances, furniture and materials)",null,null,null,null,null,null,null,null,null,{"$f":"Q903","v":0},0,0,0,0,0,"x","x",0,"x"]
[null,null,null,{"$f":"D906","v":0},null,null,"that the OWNER requested to be saved during the initial demolition phase of the project.",null,null,null,null,null,null,null,null,null,{"$f":"Q906","v":0},0,0,0,0,0,"x","x",0,"x"]
[]
[null,"DANGERS in REMODELING PROJECTS"]
[null,null,"S",null,null,"DANGERS INHERENT IN REMODELING PROJECTS",null,null,null,null,null,null,null,null,null,null,null,null,null,null,null,null,null,null,null,"x"]
[null,null,"P",{"$f":"D910","v":0},null,null,"Both parties acknowledge that there are certain dangers inherent in remodeling projects largely due to the",null,null,null,null,null,null,null,null,null,{"$f":"Q910","v":0},0,0,0,0,0,0,0,0,"x"]
[null,null,null,{"$f":"D911","v":0},null,null,"OWNER's occupation of the structure while the work is being performed.",null,null,null,null,null,null,null,null,null,0,0,0,0,0,0,0,0,0,"x"]
[null,null,"P",{"$f":"D910","v":0},null,null,"The OWNER understands the existence of these dangers and agrees to take all reasonable precautions to",null,null,null,null,null,null,null,null,null,{"$f":"Q910","v":0},0,0,0,0,0,0,0,0,"x"]
[null,null,null,{"$f":"D913","v":0},null,null,"avoid these dangers.",null,null,null,null,null,null,null,null,null,{"$f":"Q913","v":0},0,0,0,0,0,0,0,0,"x"]
[null,null,"P",{"$f":"D910","v":0},null,null,"The OWNER is solely responsible for any injuries to the OWNER, members of their family, invitees or tres-",null,null,null,null,null,null,null,null,null,{"$f":"Q910","v":0},0,0,0,0,0,0,0,0,"x"]
[null,null,null,{"$f":"D915","v":0},null,null,"passers on the project during the construction.",null,null,null,null,null,null,null,null,null,{"$f":"Q915","v":0},0,0,0,0,0,0,0,0,"x"]
[]
[null,"RADON GAS DISCLOSURE"]
[null,null,"S",null,null,"RADON GAS DISCLOSURE",null,null,null,null,null,null,null,null,null,null,"x","x","x","x","x","x","x","x",null,"x"]
[null,null,"P",{"$f":"D919","v":0},null,null,"This disclosure and it's acknowledgment by the OWNER is required by Florida law.  The OWNER's signature on",null,null,null,null,null,null,null,null,null,{"$f":"Q919","v":"x"},"x","x","x","x","x","x","x",0,"x"]
[null,null,null,{"$f":"D920","v":0},null,null,"this contract is acknowledgment of the receipt of this disclosure.",null,null,null,null,null,null,null,null,null,"x","x","x","x","x","x","x","x",0,"x"]
[null,null,"P",{"$f":"D919","v":0},null,null,"RADON GAS    Radon is a naturally occurring radioactive gas that, when it has accumulated in a building in ",null,null,null,null,null,null,null,null,null,{"$f":"Q919","v":"x"},"x","x","x","x","x","x","x",0,"x"]
[null,null,null,{"$f":"D922","v":0},null,null,"sufficient quantities, may present health risks to persons who are exposed to it over time.  Levels of radon",null,null,null,null,null,null,null,null,null,{"$f":"Q922","v":"x"},"x","x","x","x","x","x","x",0,"x"]
[null,null,null,{"$f":"D922","v":0},null,null,"that exceed Federal and State guidelines have been found in buildings in Florida.  Additional information",null,null,null,null,null,null,null,null,null,{"$f":"Q922","v":"x"},"x","x","x","x","x","x","x",0,"x"]
[null,null,null,{"$f":"D922","v":0},null,null,"regarding radon and radon testing may be obtained from your county public health unit.",null,null,null,null,null,null,null,null,null,{"$f":"Q922","v":"x"},"x","x","x","x","x","x","x",0,"x"]
[]
[null,"PROPERTY INSURANCE   Note:  This section for Remodeling and Commercial Projects."]
[null,null,"S",null,null,"PROPERTY INSURANCE",null,null,null,null,null,null,null,null,null,null,null,null,null,null,null,null,null,null,null,"x"]
[null,null,"P",{"$f":"D928","v":0},null,null,"The OWNER shall be solely responsible for procuring and maintaining insurance on the property and all",null,null,null,null,null,null,null,null,null,{"$f":"Q928","v":0},0,0,0,0,0,0,0,0,"x"]
[null,null,null,{"$f":"D929","v":0},null,null,"improvements thereon.",null,null,null,null,null,null,null,null,null,0,0,0,0,0,0,0,0,0,"x"]
[null,null,"P",{"$f":"D928","v":0},null,null,"In the event that there is a loss due to theft, fire, natural disaster or any other event covered by the OWNER's",null,null,null,null,null,null,null,null,null,{"$f":"Q928","v":0},0,0,0,0,0,0,0,0,"x"]
[null,null,null,{"$f":"D931","v":0},null,null,"policy, and some or all of the loss was for damage of work in progress or theft of construction materials, the",null,null,null,null,null,null,null,null,null,{"$f":"Q931","v":0},0,0,0,0,0,0,0,0,"x"]
[null,null,null,{"$f":"D931","v":0},null,null,"OWNER shall make a claim for recovery against the policy and shall use said funds to pay the BUILDER to repair",null,null,null,null,null,null,null,null,null,{"$f":"Q931","v":0},0,0,0,0,0,0,0,0,"x"]
[null,null,null,{"$f":"D931","v":0},null,null,"the damage and/or replace the materials.",null,null,null,null,null,null,null,null,null,{"$f":"Q931","v":0},0,0,0,0,0,0,0,0,"x"]
[null,null,"P",{"$f":"D928","v":0},null,null,"No claims shall be made by the BUILDER against the OWNER's insurance policy for any loss of his tools or",null,null,null,null,null,null,null,null,null,{"$f":"Q928","v":0},0,0,0,0,0,0,0,0,"x"]
[null,null,null,{"$f":"D935","v":0},null,null,"equipment.",null,null,null,null,null,null,null,null,null,{"$f":"Q935","v":0},0,0,0,0,0,0,0,0,"x"]
[]
[null,"INSURANCE by BUILDER"]
[null,null,"S",null,null,"BUILDER'S INSURANCE",null,null,null,null,null,null,null,null,null,null,"x","x","x","x","x","x","x","x",null,"x"]
[null,null,"P",{"$f":"D939","v":0},null,null,"The BUILDER shall maintain Worker's Compensation (or qualified exemptions) and General Liability insurance",null,null,null,null,null,null,null,null,null,{"$f":"Q939","v":"x"},"x","x","x","x","x","x","x",0,"x"]
[null,null,null,{"$f":"D940","v":0},null,null,"policies throughout the duration of this work.",null,null,null,null,null,null,null,null,null,"x","x","x","x","x","x","x","x",0,"x"]
[]
[null,"PRE-EXISTING CONDITIONS"]
[null,null,"S",null,null,"PRE-EXISTING CONDITIONS",null,null,null,null,null,null,null,null,null,null,null,null,null,"x","x",null,"x","x",null,"x"]
[null,null,"P",{"$f":"D944","v":0},null,null,"The OWNER agrees that the BUILDER assumes no responsibility for pre-existing conditions of any kind or nature",null,null,null,null,null,null,null,null,null,{"$f":"Q944","v":0},0,0,"x","x",0,"x","x",0,"x"]
[null,null,null,{"$f":"D945","v":0},null,null,"at the property, including but not limited to:",null,null,null,null,null,null,null,null,null,0,0,0,"x","x",0,"x","x",0,"x"]
[null,null,null,{"$f":"D945","v":0},null,null,null,null,null,null,null,null,null,null,null,null,{"$f":"Q945","v":0},0,0,"x","x",0,"x","x",0,"x"]
[null,null,null,{"$f":"D945","v":0},null,null,null,"1.  Prior inferior workmanship.",null,null,null,null,null,null,null,null,{"$f":"Q945","v":0},0,0,"x","x",0,"x","x",0,"x"]
[null,null,null,{"$f":"D945","v":0},null,null,null,"2.  Damage due to termites, rot or deterioration not detected prior to bidding.",null,null,null,null,null,null,null,null,{"$f":"Q945","v":0},0,0,"x","x",0,"x","x",0,"x"]
[null,null,null,{"$f":"D945","v":0},null,null,null,"3.  Prior zoning, classification or building code violations.",null,null,null,null,null,null,null,null,{"$f":"Q945","v":0},0,0,"x","x",0,"x","x",0,"x"]
[null,null,null,{"$f":"D945","v":0},null,null,null,"4.  Pre-existing hazardous materials or toxic wastes of any kind.",null,null,null,null,null,null,null,null,{"$f":"Q945","v":0},0,0,"x","x",0,"x","x",0,"x"]
[null,null,null,{"$f":"D945","v":0},null,null,null,"5.  Sub-surface soils conditions i.e. muck, rock formations, buried trash and debris, etc.",null,null,null,null,null,null,null,null,{"$f":"Q945","v":0},0,0,"x","x",0,"x","x",0,"x"]
[null,null,null,{"$f":"D945","v":0},null,null,null,null,null,null,null,null,null,null,null,null,{"$f":"Q945","v":0},0,0,"x","x",0,"x","x",0,"x"]
[null,null,"P",{"$f":"D944","v":0},null,null,"The BUILDER is not responsible for the cost of any additional work caused by pre-existing conditions concealed",null,null,null,null,null,null,null,null,null,{"$f":"Q944","v":0},0,0,"x","x",0,"x","x",0,"x"]
[null,null,null,{"$f":"D954","v":0},null,null,"by existing constructions and not anticipated by the BUILDER or revealed in the plans or specifications given to",null,null,null,null,null,null,null,null,null,{"$f":"Q954","v":0},0,0,"x","x",0,"x","x",0,"x"]
[null,null,null,{"$f":"D954","v":0},null,null,"the BUILDER prior to the execution of this contract unless specifically addressed in the Contract Documents.",null,null,null,null,null,null,null,null,null,{"$f":"Q954","v":0},0,0,"x","x",0,"x","x",0,"x"]
[]
[null,"BUILDER not resposible for HAZARDOUS MATERIALS"]
[null,null,"S",null,null,"HAZARDOUS MATERIALS",null,null,null,null,null,null,null,null,null,null,null,"x","x","x","x","x","x","x",null,"x"]
[null,null,"P",{"$f":"D959","v":0},null,null,"This contract specifically does not require or include any investigation, abatement or removal of any existing",null,null,null,null,null,null,null,null,null,{"$f":"Q959","v":0},"x","x","x","x","x","x","x",0,"x"]
[null,null,null,{"$f":"D960","v":0},null,null,"existing hazardous materials on the project site, including but not limited to radon gas, asbestos in any form,",null,null,null,null,null,null,null,null,null,0,"x","x","x","x","x","x","x",0,"x"]
[null,null,null,{"$f":"D960","v":0},null,null,"lead based paints and/or chemical or petroleum contaminations of any kind.",null,null,null,null,null,null,null,null,null,{"$f":"Q960","v":0},"x","x","x","x","x","x","x",0,"x"]
[null,null,"P",{"$f":"D959","v":0},null,null,"To the fullest extent permitted by law, the OWNER shall indemnify and hold the BUILDER harmless from and",null,null,null,null,null,null,null,null,null,{"$f":"Q959","v":0},"x","x","x","x","x","x","x",0,"x"]
[null,null,null,{"$f":"D963","v":0},null,null,"against all claims, costs, losses, damages and expenses, including attorney's fees, arising from or involving",null,null,null,null,null,null,null,null,null,{"$f":"Q963","v":0},"x","x","x","x","x","x","x",0,"x"]
[null,null,null,{"$f":"D963","v":0},null,null,"any such hazardous materials.",null,null,null,null,null,null,null,null,null,{"$f":"Q963","v":0},"x","x","x","x","x","x","x",0,"x"]
[null,null,"P",null,null,null,"If in the course of construction the BUILDER encounters materials reasonably believed to be hazardous or toxic",null,null,null,null,null,null,null,null,null,null,null,null,null,null,null,null,null,null,"x"]
[null,null,null,{"$f":"D966","v":0},null,null,"which have not been rendered harmless, the BUILDER may suspend the performance of the work until a",null,null,null,null,null,null,null,null,null,{"$f":"Q966","v":0},0,0,0,0,0,0,0,0,"x"]
[null,null,null,{"$f":"D966","v":0},null,null,"licensed EPA approved contractor abates or corrects said problem and renders the work area free of such",null,null,null,null,null,null,null,null,null,{"$f":"Q966","v":0},0,0,0,0,0,0,0,0,"x"]
[null,null,null,{"$f":"D966","v":0},null,null,"hazard.",null,null,null,null,null,null,null,null,null,{"$f":"Q966","v":0},0,0,0,0,0,0,0,0,"x"]
[null,null,"P",null,null,null,"In the event the OWNER elects not to proceed with the project because of the discovery of any hazardous",null,null,null,null,null,null,null,null,null,null,null,null,null,null,null,null,null,null,"x"]
[null,null,null,{"$f":"D970","v":0},null,null,"materials or any other environmental health hazard, the BUILDER shall be entitled to terminate this contract and",null,null,null,null,null,null,null,null,null,{"$f":"Q970","v":0},0,0,0,0,0,0,0,0,"x"]
[null,null,null,{"$f":"D970","v":0},null,null,"shall be entitled to be paid for all unpaid costs, fees and expenses, including the prorated cost of overhead",null,null,null,null,null,null,null,null,null,{"$f":"Q970","v":0},0,0,0,0,0,0,0,0,"x"]
[null,null,null,{"$f":"D970","v":0},null,null,"expenses earned at the time of termination, as well as a prorated percentage of the BUILDER's total anticipated",null,null,null,null,null,null,null,null,null,{"$f":"Q970","v":0},0,0,0,0,0,0,0,0,"x"]
[null,null,null,{"$f":"D970","v":0},null,null,"profits.",null,null,null,null,null,null,null,null,null,{"$f":"Q970","v":0},0,0,0,0,0,0,0,0,"x"]
[]
[null,"TIME of COMPLETION"]
[null,null,"S",null,null,"TIME of COMPLETION",null,null,null,null,null,null,null,null,null,null,null,null,null,null,null,null,null,null,null,"x"]
[null,null,"P",{"$f":"D977","v":0},null,null,"The project shall constructed in accordance with the schedule contained herein.",null,null,null,null,null,null,null,null,null,{"$f":"Q977","v":0},0,0,0,0,0,0,0,0,"x"]
[null,null,"P",{"$f":"D977","v":0},null,null,"The BUILDER agrees that he shall apply for the building permit within five working days of the occurrence of",null,null,null,null,null,null,null,null,null,{"$f":"Q977","v":0},0,0,0,0,0,0,0,0,"x"]
[null,null,null,{"$f":"D979","v":0},null,null,"all of the following:",null,null,null,null,null,null,null,null,null,{"$f":"Q979","v":0},0,0,0,0,0,0,0,0,"x"]
[null,null,null,{"$f":"D979","v":0},null,null,null,"a)  The signing of this agreement.",null,null,null,null,null,null,null,null,{"$f":"Q979","v":0},0,0,0,0,0,0,0,0,"x"]
[null,null,null,{"$f":"D979","v":0},null,null,null,"b)  The receipt of the contract deposit described herein.",null,null,null,null,null,null,null,null,{"$f":"Q979","v":0},0,0,0,0,0,0,0,0,"x"]
[null,null,null,{"$f":"D979","v":0},null,null,null,"c)  The receipt of the final construction plans from the Designer.",null,null,null,null,null,null,null,null,{"$f":"Q979","v":0},0,0,0,0,0,0,0,0,"x"]
[null,null,null,{"$f":"D979","v":0},null,null,null,"d)  The OWNER's delivery of the jobsite to the BUILDER.",null,null,null,null,null,null,null,null,{"$f":"Q979","v":0},0,0,0,0,0,0,0,0,"x"]
[null,null,null,{"$f":"D979","v":0},null,null,null,null,null,null,null,null,null,null,null,null,{"$f":"Q979","v":0},0,0,0,0,0,0,0,0,"x"]
[null,null,"P",{"$f":"D977","v":0},null,null,"The BUILDER agrees that he shall commence construction within ten working days of the issuance of the",null,null,null,null,null,null,null,null,null,{"$f":"Q977","v":0},0,0,0,0,0,0,0,0,"x"]
[null,null,null,{"$f":"D986","v":0},null,null,"Building permit.",null,null,null,null,null,null,null,null,null,{"$f":"Q986","v":0},0,0,0,0,0,0,0,0,"x"]
[null,null,"P",{"$f":"D977","v":0},null,null,"The BUILDER agrees that he shall be substantially complete with the construction work described herein within",null,null,null,null,null,null,null,null,null,{"$f":"Q977","v":0},0,0,0,0,0,0,0,0,"x"]
[null,null,null,{"$f":"D988","v":0},null,null,"_________   calendar days of the issuance of a building permit. ",null,null,null,null,null,null,null,null,null,{"$f":"Q988","v":0},0,0,0,0,0,0,0,0,"x"]
[null,null,"P",null,null,null,"The BUILDER agrees that in the event that he is not substantially complete with the work within the proscribed",null,null,null,null,null,null,null,null,null,null,null,null,null,null,null,null,null,null,"x"]
[null,null,null,{"$f":"D990","v":0},null,null,"period he shall allow the OWNER to deduct an amount equal to  $100.00  per calendar day until he is substan-",null,null,null,null,null,null,null,null,null,{"$f":"Q990","v":0},0,0,0,0,0,0,0,0,"x"]
[null,null,null,{"$f":"D990","v":0},null,null,"tially complete with his work, said amount to be deducted from the BUILDER's final payment from the OWNER.",null,null,null,null,null,null,null,null,null,{"$f":"Q990","v":0},0,0,0,0,0,0,0,0,"x"]
[null,null,"P",null,null,null,"The BUILDER shall not suffer any actual or liquidated damages by the OWNER for failing to complete the project",null,null,null,null,null,null,null,null,null,null,null,null,null,null,null,null,null,null,"x"]
[null,null,null,{"$f":"D993","v":0},null,null,"within the proscribed period.",null,null,null,null,null,null,null,null,null,{"$f":"Q993","v":0},0,0,0,0,0,0,0,0,"x"]
[null,null,"P",{"$f":"D977","v":0},null,null,"The BUILDER agrees that in the event that the work is not substantially complete within ____________ calendar",null,null,null,null,null,null,null,null,null,{"$f":"Q977","v":0},0,0,0,0,0,0,0,0,"x"]
[null,null,null,{"$f":"D995","v":0},null,null,"days of the issuance of the building permit, the OWNER shall be entitled to assume control of the construction",null,null,null,null,null,null,null,null,null,{"$f":"Q995","v":0},0,0,0,0,0,0,0,0,"x"]
[null,null,null,{"$f":"D995","v":0},null,null,"process and take whatever actions or measures he shall deem necessary, including purchasing materials",null,null,null,null,null,null,null,null,null,{"$f":"Q995","v":0},0,0,0,0,0,0,0,0,"x"]
[null,null,null,{"$f":"D995","v":0},null,null,"and hiring subcontractors to complete the project.",null,null,null,null,null,null,null,null,null,{"$f":"Q995","v":0},0,0,0,0,0,0,0,0,"x"]
[null,null,"P",{"$f":"D977","v":0},null,null,"Both parties agree that the definition of \"Substantial Completion\" shall be as follows:",null,null,null,null,null,null,null,null,null,{"$f":"Q977","v":0},0,0,0,0,0,0,0,0,"x"]
[null,null,null,{"$f":"D977","v":0},null,null,"\"SUBSTANTIAL COMPLETION\"  The date when the construction is sufficiently complete so that the OWNER",null,null,null,null,null,null,null,null,null,{"$f":"Q977","v":0},0,0,0,0,0,0,0,0,"x"]
[null,null,null,{"$f":"D999","v":0},null,null,"can occupy or utilize the improvement for the purpose intended.  SUBSTANTIAL COMPLETION is not",null,null,null,null,null,null,null,null,null,{"$f":"Q999","v":0},0,0,0,0,0,0,0,0,"x"]
[null,null,null,{"$f":"D999","v":0},null,null,"specifically related to the receipt of a final inspection by the local building official.",null,null,null,null,null,null,null,null,null,{"$f":"Q999","v":0},0,0,0,0,0,0,0,0,"x"]
[null,null,"P",{"$f":"D977","v":0},null,null,"The Time of Completion shall be extended accordingly for all changes and other work ordered by the OWNER.",null,null,null,null,null,null,null,null,null,{"$f":"Q977","v":0},0,0,0,0,0,0,0,0,"x"]
[null,null,"P",{"$f":"D977","v":0},null,null,"Both parties agree that the time of completion shall be extended accordingly in the event that the BUILDER is",null,null,null,null,null,null,null,null,null,{"$f":"Q977","v":0},0,0,0,0,0,0,0,0,"x"]
[null,null,null,{"$f":"D1004","v":0},null,null,"delayed by governmental rules or regulations, shortages of labor or material, any act of neglect of the OWNER",null,null,null,null,null,null,null,null,null,{"$f":"Q1004","v":0},0,0,0,0,0,0,0,0,"x"]
[null,null,null,{"$f":"D1004","v":0},null,null,"or his agents by changes ordered by the OWNER or any governmental authority, by strikes, fire, unavoidable",null,null,null,null,null,null,null,null,null,{"$f":"Q1004","v":0},0,0,0,0,0,0,0,0,"x"]
[null,null,null,{"$f":"D1004","v":0},null,null,"casualties or any causes beyond the BUILDER's control.",null,null,null,null,null,null,null,null,null,{"$f":"Q1004","v":0},0,0,0,0,0,0,0,0,"x"]
[]
[null,"DELAYS"]
[null,null,"S",null,null,"DELAY",null,null,null,null,null,null,null,null,null,null,"x","x","x","x","x","x","x","x",null,"x"]
[null,null,"P",{"$f":"D1010","v":0},null,null,"The BUILDER shall be excused for any delay beyond his reasonable control.  These delays may include but are",null,null,null,null,null,null,null,null,null,{"$f":"Q1010","v":"x"},"x","x","x","x","x","x","x",0,"x"]
[null,null,null,{"$f":"D1011","v":0},null,null,"not limited to Acts of God, labor disputes, inclement weather, acts of public authority, acts of OWNER, or other",null,null,null,null,null,null,null,null,null,"x","x","x","x","x","x","x","x",0,"x"]
[null,null,null,{"$f":"D1011","v":0},null,null,"unforeseen contingencies.",null,null,null,null,null,null,null,null,null,{"$f":"Q1011","v":"x"},"x","x","x","x","x","x","x",0,"x"]
[]
[null,"DEFINATION of WHEN COMPLETE"]
[null,null,"S",null,null,"WHEN COMPLETE",null,null,null,null,null,null,null,null,null,null,"x","x","x",null,null,null,"x","x",null,"x"]
[null,null,"P",{"$f":"D1016","v":0},null,null,"The BUILDER shall be entitled to receive the Final Inspection Draw when the project has received the Final",null,null,null,null,null,null,null,null,null,{"$f":"Q1016","v":"x"},"x","x",0,0,0,"x","x",0,"x"]
[null,null,null,{"$f":"D1017","v":0},null,null,"Inspection from the local building official or department.",null,null,null,null,null,null,null,null,null,"x","x","x",0,0,0,"x","x",0,"x"]
[null,null,"P",{"$f":"D1016","v":0},null,null,"In the event that the BUILDER cannot obtain a Final Inspection or a Certificate of Occupancy or otherwise",null,null,null,null,null,null,null,null,null,{"$f":"Q1016","v":"x"},"x","x",0,0,0,"x","x",0,"x"]
[null,null,null,{"$f":"D1019","v":0},null,null,"complete the project because of actions or inaction's of the OWNER or subcontractors or suppliers directly",null,null,null,null,null,null,null,null,null,{"$f":"Q1019","v":"x"},"x","x",0,0,0,"x","x",0,"x"]
[null,null,null,{"$f":"D1019","v":0},null,null,"hired by the OWNER, the BUILDER shall be entitled to receive the Final Inspection Draw when all the mechanical",null,null,null,null,null,null,null,null,null,{"$f":"Q1019","v":"x"},"x","x",0,0,0,"x","x",0,"x"]
[null,null,null,{"$f":"D1019","v":0},null,null,"systems installed by the BUILDER are operable and the only remaining punchlist work is cosmetic.",null,null,null,null,null,null,null,null,null,{"$f":"Q1019","v":"x"},"x","x",0,0,0,"x","x",0,"x"]
[null,null,"P",{"$f":"D1016","v":0},null,null,"Project shall be considered complete for the purposes of any time of completion dates or other such deadlines",null,null,null,null,null,null,null,null,null,{"$f":"Q1016","v":"x"},"x","x",0,0,0,"x","x",0,"x"]
[null,null,null,{"$f":"D1023","v":0},null,null,"when the BUILDER has qualified for the Final Inspection Draw.",null,null,null,null,null,null,null,null,null,{"$f":"Q1023","v":"x"},"x","x",0,0,0,"x","x",0,"x"]
[]
[null,"FINAL PUNCHLIST"]
[null,null,"S",null,null,"FINAL PUNCHLIST",null,null,null,null,null,null,null,null,null,null,"x","x","x",null,null,null,"x","x",null,"x"]
[null,null,"P",{"$f":"D1027","v":0},null,null,"After the payment of the Final Inspection Draw, the BUILDER and the OWNER shall jointly inspect the project and",null,null,null,null,null,null,null,null,null,{"$f":"Q1027","v":"x"},"x","x",0,0,0,"x","x",0,"x"]
[null,null,null,{"$f":"D1028","v":0},null,null,"write the Final Punchlist, which shall include all the remaining items the OWNER and the BUILDER agree need to",null,null,null,null,null,null,null,null,null,"x","x","x",0,0,0,"x","x",0,"x"]
[null,null,null,{"$f":"D1028","v":0},null,null,"be finished.",null,null,null,null,null,null,null,null,null,{"$f":"Q1028","v":"x"},"x","x",0,0,0,"x","x",0,"x"]
[null,null,"P",{"$f":"D1027","v":0},null,null,"Upon completion of all the items on the Final Punchlist, the OWNER will pay the BUILDER the Punchlist Draw.",null,null,null,null,null,null,null,null,null,{"$f":"Q1027","v":"x"},"x","x",0,0,0,"x","x",0,"x"]
[null,null,"P",{"$f":"D1027","v":0},null,null,"Any deficiencies that are discovered after the development of the Final Punchlist shall be performed in",null,null,null,null,null,null,null,null,null,{"$f":"Q1027","v":"x"},"x","x",0,0,0,"x","x",0,"x"]
[null,null,null,{"$f":"D1032","v":0},null,null,"accordance with the BUILDER's Warranty procedures.",null,null,null,null,null,null,null,null,null,{"$f":"Q1032","v":"x"},"x","x",0,0,0,"x","x",0,"x"]
[null,null,"P",{"$f":"D1027","v":0},null,null,"In the event the OWNER is unable or unwilling to participate in the inspection of the Project and the develop-",null,null,null,null,null,null,null,null,null,{"$f":"Q1027","v":"x"},"x","x",0,0,0,"x","x",0,"x"]
[null,null,null,{"$f":"D1034","v":0},null,null,"ment of the Final Punchlist, the BUILDER shall perform said inspection and develop the Final Punchlist alone and",null,null,null,null,null,null,null,null,null,{"$f":"Q1034","v":"x"},"x","x",0,0,0,"x","x",0,"x"]
[null,null,null,{"$f":"D1034","v":0},null,null,"shall forward a copy of the list to the OWNER.",null,null,null,null,null,null,null,null,null,{"$f":"Q1034","v":"x"},"x","x",0,0,0,"x","x",0,"x"]
[]
[null,"DEFAULT by BUILDER"]
[null,null,"S",null,null,"DEFAULT by BUILDER",null,null,null,null,null,null,null,null,null,null,"x","x","x","x","x","x","x","x",null,"x"]
[null,null,"P",{"$f":"D1039","v":0},null,null,"The BUILDER shall be in default under this contract if he shall abandon work on the project or otherwise",null,null,null,null,null,null,null,null,null,{"$f":"Q1039","v":"x"},"x","x","x","x","x","x","x",0,"x"]
[null,null,null,{"$f":"D1040","v":0},null,null,"refuses to carry out his obligations under his contract, unless such abandonment or refusal is based upon a",null,null,null,null,null,null,null,null,null,"x","x","x","x","x","x","x","x",0,"x"]
[null,null,null,{"$f":"D1040","v":0},null,null,"prior default by the OWNER which the OWNER has refused to cure after notice thereof.",null,null,null,null,null,null,null,null,null,{"$f":"Q1040","v":"x"},"x","x","x","x","x","x","x",0,"x"]
[null,null,"P",{"$f":"D1039","v":0},null,null,"The BUILDER shall be deemed to be in default under this contract if he or any subcontractor shall fail to perform",null,null,null,null,null,null,null,null,null,{"$f":"Q1039","v":"x"},"x","x","x","x","x","x","x",0,"x"]
[null,null,null,{"$f":"D1043","v":0},null,null,"any work on the project for 21 consecutive days, unless such failure is the result of any force majeure.",null,null,null,null,null,null,null,null,null,{"$f":"Q1043","v":"x"},"x","x","x","x","x","x","x",0,"x"]
[]
[null,"DEFAULT by OWNER"]
[null,null,"S",null,null,"DEFAULT by OWNER",null,null,null,null,null,null,null,null,null,null,"x","x","x","x","x","x","x","x",null,"x"]
[null,null,"P",{"$f":"D1047","v":0},null,null,"The OWNER shall be in default under this contract in the event they refuse to allow the BUILDER to complete the ",null,null,null,null,null,null,null,null,null,{"$f":"Q1047","v":"x"},"x","x","x","x","x","x","x",0,"x"]
[null,null,null,{"$f":"D1048","v":0},null,null,"performance of the work, fail to pay any amounts hereunder when due, or otherwise refuse to carry out the",null,null,null,null,null,null,null,null,null,"x","x","x","x","x","x","x","x",0,"x"]
[null,null,null,{"$f":"D1048","v":0},null,null,"obligations of the OWNER of this contract, unless such refusal or non-payment is based on a prior default by",null,null,null,null,null,null,null,null,null,{"$f":"Q1048","v":"x"},"x","x","x","x","x","x","x",0,"x"]
[null,null,null,{"$f":"D1048","v":0},null,null,"the BUILDER which he has failed to cure after notice thereof.",null,null,null,null,null,null,null,null,null,{"$f":"Q1048","v":"x"},"x","x","x","x","x","x","x",0,"x"]
[]
[null,"SENDING NOTICE of DEFAULT"]
[null,null,"S",null,null,"NOTICE of DEFAULT",null,null,null,null,null,null,null,null,null,null,"x","x","x","x","x","x","x","x",null,"x"]
[null,null,"P",{"$f":"D1054","v":0},null,null,"In the event of a default, the other party shall give the defaulting party written notice by certified mail return",null,null,null,null,null,null,null,null,null,{"$f":"Q1054","v":"x"},"x","x","x","x","x","x","x",0,"x"]
[null,null,null,{"$f":"D1055","v":0},null,null,"receipt requested or by hand delivery, said notice to detail the default.",null,null,null,null,null,null,null,null,null,"x","x","x","x","x","x","x","x",0,"x"]
[null,null,"P",{"$f":"D1054","v":0},null,null,"The defaulting party shall have ten (10) calendar days from the receipt of the notice in which to begin the",null,null,null,null,null,null,null,null,null,{"$f":"Q1054","v":"x"},"x","x","x","x","x","x","x",0,"x"]
[null,null,null,{"$f":"D1057","v":0},null,null,"curing of the default, which actions shall be continuously pursued and completed within a reasonable time in",null,null,null,null,null,null,null,null,null,{"$f":"Q1057","v":"x"},"x","x","x","x","x","x","x",0,"x"]
[null,null,null,{"$f":"D1057","v":0},null,null,"light of the nature of the default, provided however that the cure of any default shall be limited to ten (10)",null,null,null,null,null,null,null,null,null,{"$f":"Q1057","v":"x"},"x","x","x","x","x","x","x",0,"x"]
[null,null,null,{"$f":"D1057","v":0},null,null,"days of the date of the notice of the default.",null,null,null,null,null,null,null,null,null,{"$f":"Q1057","v":"x"},"x","x","x","x","x","x","x",0,"x"]
[null,null,"P",{"$f":"D1054","v":0},null,null,"If such default is cured within the time specified, each party agrees that this contract shall remain in full force",null,null,null,null,null,null,null,null,null,{"$f":"Q1054","v":"x"},"x","x","x","x","x","x","x",0,"x"]
[null,null,null,{"$f":"D1061","v":0},null,null,"and effect and neither party may assert any claims as a result of such default.",null,null,null,null,null,null,null,null,null,{"$f":"Q1061","v":"x"},"x","x","x","x","x","x","x",0,"x"]
[]
[null,"REMEDIES AFTER DEFAULT"]
[null,null,"S",null,null,"REMEDIES AFTER DEFAULT",null,null,null,null,null,null,null,null,null,null,"x","x","x","x","x","x","x","x",null,"x"]
[null,null,"P",{"$f":"D1065","v":0},null,null,"In the event of a default by either party which is not cured within the time specified, the non-defaulting party",null,null,null,null,null,null,null,null,null,{"$f":"Q1065","v":"x"},"x","x","x","x","x","x","x",0,"x"]
[null,null,null,{"$f":"D1066","v":0},null,null,"may seek specific performance, or declare the contract terminated and seek damages for breach of contract",null,null,null,null,null,null,null,null,null,"x","x","x","x","x","x","x","x",0,"x"]
[null,null,null,{"$f":"D1066","v":0},null,null,"from the defaulting party.",null,null,null,null,null,null,null,null,null,{"$f":"Q1066","v":"x"},"x","x","x","x","x","x","x",0,"x"]
[null,null,"P",{"$f":"D1065","v":0},null,null,"In the event of a default by the OWNER, the BUILDER shall be entitled to all progress payments and other add-",null,null,null,null,null,null,null,null,null,{"$f":"Q1065","v":"x"},"x","x","x","x","x","x","x",0,"x"]
[null,null,null,{"$f":"D1069","v":0},null,null,"itional costs generated to date, plus damages in an amount equal to 20% of the total contract price, without",null,null,null,null,null,null,null,null,null,{"$f":"Q1069","v":"x"},"x","x","x","x","x","x","x",0,"x"]
[null,null,null,{"$f":"D1069","v":0},null,null,"regard to the stage of completion.",null,null,null,null,null,null,null,null,null,{"$f":"Q1069","v":"x"},"x","x","x","x","x","x","x",0,"x"]
[]
[null,"MEDIATION"]
[null,null,"S",null,null,"MEDIATION",null,null,null,null,null,null,null,null,null,null,null,null,null,null,null,null,null,null,null,"x"]
[null,null,"P",{"$f":"D1074","v":0},null,null,"Any dispute, controversy, claim or other matter in question between the OWNER and the BUILDER arising out of",null,null,null,null,null,null,null,null,null,{"$f":"Q1074","v":0},0,0,0,0,0,0,0,0,"x"]
[null,null,null,{"$f":"D1075","v":0},null,null,"or related to this agreement shall be first referred for settlement by mediation in accordance with the",null,null,null,null,null,null,null,null,null,0,0,0,0,0,0,0,0,0,"x"]
[null,null,null,{"$f":"D1075","v":0},null,null,"Construction Industry Mediation Rules of the American Arbitration Association then in effect unless otherwise",null,null,null,null,null,null,null,null,null,{"$f":"Q1075","v":0},0,0,0,0,0,0,0,0,"x"]
[null,null,null,{"$f":"D1075","v":0},null,null,"mutually agreed to by both parties in writing.",null,null,null,null,null,null,null,null,null,{"$f":"Q1075","v":0},0,0,0,0,0,0,0,0,"x"]
[null,null,"P",{"$f":"D1074","v":0},null,null,"Any party may invoke this dispute resolution procedure by written notice to the other party, said notice to",null,null,null,null,null,null,null,null,null,{"$f":"Q1074","v":0},0,0,0,0,0,0,0,0,"x"]
[null,null,null,{"$f":"D1079","v":0},null,null,"briefly describe the dispute or disagreement.",null,null,null,null,null,null,null,null,null,{"$f":"Q1079","v":0},0,0,0,0,0,0,0,0,"x"]
[null,null,"P",{"$f":"D1074","v":0},null,null,"A mediator shall be selected by the mutual agreement of the parties and the parties will participate in the ",null,null,null,null,null,null,null,null,null,{"$f":"Q1074","v":0},0,0,0,0,0,0,0,0,"x"]
[null,null,null,{"$f":"D1081","v":0},null,null,"mediation on good faith to it's conclusion.",null,null,null,null,null,null,null,null,null,{"$f":"Q1081","v":0},0,0,0,0,0,0,0,0,"x"]
[null,null,"P",{"$f":"D1074","v":0},null,null,"The costs of mediation, including fees and expenses, shall be paid equally by both parties.",null,null,null,null,null,null,null,null,null,{"$f":"Q1074","v":0},0,0,0,0,0,0,0,0,"x"]
[]
[null,"ARBITRATION"]
[null,null,"S",null,null,"ARBITRATION",null,null,null,null,null,null,null,null,null,null,null,null,null,null,null,null,null,null,null,"x"]
[null,null,"P",{"$f":"D1086","v":0},null,null,"Any claim not settled by mediation shall be settled by arbitration in accordance with the Construction Industry ",null,null,null,null,null,null,null,null,null,{"$f":"Q1086","v":0},0,0,0,0,0,0,0,0,"x"]
[null,null,null,{"$f":"D1087","v":0},null,null,"Arbitration Rules of the American Arbitration Association in effect.",null,null,null,null,null,null,null,null,null,0,0,0,0,0,0,0,0,0,"x"]
[null,null,"P",{"$f":"D1086","v":0},null,null,"Notice of demand for arbitration shall be filed in writing with the other party to the is contract and with the ",null,null,null,null,null,null,null,null,null,{"$f":"Q1086","v":0},0,0,0,0,0,0,0,0,"x"]
[null,null,null,{"$f":"D1089","v":0},null,null,"American Arbitration Association.",null,null,null,null,null,null,null,null,null,{"$f":"Q1089","v":0},0,0,0,0,0,0,0,0,"x"]
[null,null,"P",{"$f":"D1086","v":0},null,null,"All demands for arbitration shall be made within a reasonable time after the claim has arisen.",null,null,null,null,null,null,null,null,null,{"$f":"Q1086","v":0},0,0,0,0,0,0,0,0,"x"]
[null,null,"P",{"$f":"D1086","v":0},null,null,"No arbitration hereunder shall include by consolidation, joinder or in any other manner, any person or entity",null,null,null,null,null,null,null,null,null,{"$f":"Q1086","v":0},0,0,0,0,0,0,0,0,"x"]
[null,null,null,{"$f":"D1092","v":0},null,null,"other than the OWNER and the BUILDER, unless it is shown at the time of demand for arbitration is filed that (1) ",null,null,null,null,null,null,null,null,null,{"$f":"Q1092","v":0},0,0,0,0,0,0,0,0,"x"]
[null,null,null,{"$f":"D1092","v":0},null,null,"such person or entity is substantially involved in a common question of fact or law, (2) the presence of such",null,null,null,null,null,null,null,null,null,{"$f":"Q1092","v":0},0,0,0,0,0,0,0,0,"x"]
[null,null,null,{"$f":"D1092","v":0},null,null,"persons or entity is required if complete relief is to be accorded in the arbitration, and (3) the interest or",null,null,null,null,null,null,null,null,null,{"$f":"Q1092","v":0},0,0,0,0,0,0,0,0,"x"]
[null,null,null,{"$f":"D1092","v":0},null,null,"responsibility of such person or entity is not insubstantial.",null,null,null,null,null,null,null,null,null,{"$f":"Q1092","v":0},0,0,0,0,0,0,0,0,"x"]
[null,null,"P",{"$f":"D1086","v":0},null,null,"A party who files a notice of demand for arbitration must assert in the demand all claims then known to that",null,null,null,null,null,null,null,null,null,{"$f":"Q1086","v":0},0,0,0,0,0,0,0,0,"x"]
[null,null,null,{"$f":"D1097","v":0},null,null,"party.  When a party fails to include a claim through oversight, inadvertence or excusable neglect, or when a",null,null,null,null,null,null,null,null,null,{"$f":"Q1097","v":0},0,0,0,0,0,0,0,0,"x"]
[null,null,null,{"$f":"D1097","v":0},null,null,"claim has matured or been acquired subsequently, the arbitrator may permit amendment,",null,null,null,null,null,null,null,null,null,{"$f":"Q1097","v":0},0,0,0,0,0,0,0,0,"x"]
[null,null,"P",{"$f":"D1086","v":0},null,null,"This agreement to arbitrate contained herein shall be specifically enforceable under applicable law in any",null,null,null,null,null,null,null,null,null,{"$f":"Q1086","v":0},0,0,0,0,0,0,0,0,"x"]
[null,null,null,{"$f":"D1100","v":0},null,null,"court having jurisdiction thereof.",null,null,null,null,null,null,null,null,null,{"$f":"Q1100","v":0},0,0,0,0,0,0,0,0,"x"]
[null,null,"P",{"$f":"D1086","v":0},null,null,"The award rendered by the arbitrator shall be final, and judgment may be entered upon in accordance with",null,null,null,null,null,null,null,null,null,{"$f":"Q1086","v":0},0,0,0,0,0,0,0,0,"x"]
[null,null,null,{"$f":"D1102","v":0},null,null,"applicable law in any court having jurisdiction thereof.",null,null,null,null,null,null,null,null,null,{"$f":"Q1102","v":0},0,0,0,0,0,0,0,0,"x"]
[]
[null,"CONFLICT"]
[null,null,"S",null,null,"CONFLICT",null,null,null,null,null,null,null,null,null,null,"x","x","x","x","x","x","x","x",null,"x"]
[null,null,"P",{"$f":"D1106","v":0},null,null,"In the event the parties become involved in litigation arising out of this Contract, the court shall award costs",null,null,null,null,null,null,null,null,null,{"$f":"Q1106","v":"x"},"x","x","x","x","x","x","x",0,"x"]
[null,null,null,{"$f":"D1107","v":0},null,null,"and expenses, including attorney's fees, to the party justly entitled to them.",null,null,null,null,null,null,null,null,null,"x","x","x","x","x","x","x","x",0,"x"]
[null,null,"P",{"$f":"D1106","v":0},null,null,"In the event that the BUILDER's work is judged to be deficient, the BUILDER shall have the right to repair, replace",null,null,null,null,null,null,null,null,null,{"$f":"Q1106","v":"x"},"x","x","x","x","x","x","x",0,"x"]
[null,null,null,{"$f":"D1109","v":0},null,null,"or pay reasonable sums to effect repairs.",null,null,null,null,null,null,null,null,null,{"$f":"Q1109","v":"x"},"x","x","x","x","x","x","x",0,"x"]
[null,null,"P",{"$f":"D1106","v":0},null,null,"In any event, no party may institute a claim against the other party after one year after the completion of the",null,null,null,null,null,null,null,null,null,{"$f":"Q1106","v":"x"},"x","x","x","x","x","x","x",0,"x"]
[null,null,null,{"$f":"D1111","v":0},null,null,"project.",null,null,null,null,null,null,null,null,null,{"$f":"Q1111","v":"x"},"x","x","x","x","x","x","x",0,"x"]
[]
[null,"LIMITED WARRANTY"]
[null,null,"S",null,null,"BUILDER'S LIMITED WARRANTY",null,null,null,null,null,null,null,null,null,null,"x","x","x","x","x","x","x","x",null,"x"]
[null,null,"P",{"$f":"D1115","v":0},null,null,"The BUILDER hereby guarantees all of the work performed and materials supplied by him, his subcontractors",null,null,null,null,null,null,null,null,null,{"$f":"Q1115","v":"x"},"x","x","x","x","x","x","x",0,"x"]
[null,null,null,{"$f":"D1116","v":0},null,null,"and his suppliers, for a period of ONE YEAR from the date of completion of the work.",null,null,null,null,null,null,null,null,null,"x","x","x","x","x","x","x","x",0,"x"]
[null,null,"P",{"$f":"D1115","v":0},null,null,"The BUILDER does not guarantee, and shall not be required to administrate any warranty situations that may",null,null,null,null,null,null,null,null,null,{"$f":"Q1115","v":"x"},"x","x","x","x","x","x","x",0,"x"]
[null,null,null,{"$f":"D1118","v":0},null,null,"arise from, any work performed or materials supplied by the OWNER or subcontractors hired by the OWNER.",null,null,null,null,null,null,null,null,null,{"$f":"Q1118","v":"x"},"x","x","x","x","x","x","x",0,"x"]
[]
[null,"WARRANTY COMMENCEMENT"]
[null,null,"S",null,null,"WARRANTY PERIOD COMMENCEMENT",null,null,null,null,null,null,null,null,null,null,"x","x","x","x","x",null,"x","x",null,"x"]
[null,null,"P",null,null,null,"The BUILDER's warranty period shall begin on the date of the receipt of the Final Inspection from the local",null,null,null,null,null,null,null,null,null,"x","x","x","x","x",null,"x","x",null,"x"]
[null,null,null,{"$f":"D1123","v":0},null,null,"Building Department.",null,null,null,null,null,null,null,null,null,{"$f":"Q1123","v":"x"},"x","x","x","x",0,"x","x",0,"x"]
[null,null,"P",null,null,null,"The BUILDER's warranty period shall commence upon the receipt of the Rough Framing Inspection.",null,null,null,null,null,null,null,null,null,null,null,null,null,null,null,null,null,null,"x"]
[null,null,null,{"$f":"D1125","v":0},null,null,"(shell additions or projects partially-completed by OWNER)",null,null,null,null,null,null,null,null,null,{"$f":"Q1125","v":0},0,0,0,0,0,0,0,0,"x"]
[null,null,"P",null,null,null,"The BUILDER's warranty period shall commence upon the receipt of the Insulation/Close-In period.",null,null,null,null,null,null,null,null,null,null,null,null,null,null,null,null,null,null,"x"]
[null,null,"P",null,null,null,"The BUILDER's warranty period shall commence upon the date of drywall subcontractor's bill for the installation",null,null,null,null,null,null,null,null,null,null,null,null,null,null,null,null,null,null,"x"]
[null,null,null,{"$f":"D1128","v":0},null,null,"and texturing of the drywall.",null,null,null,null,null,null,null,null,null,{"$f":"Q1128","v":0},0,0,0,0,0,0,0,0,"x"]
[null,null,"P",{"$f":"D1122","v":0},null,null,"In the event the BUILDER cannot obtain a Final Inspection, or any other inspections described above, due in any",null,null,null,null,null,null,null,null,null,{"$f":"Q1122","v":"x"},"x","x","x","x",0,"x","x",0,"x"]
[null,null,null,{"$f":"D1130","v":0},null,null,"part to actions or inaction's by the OWNER, including but not limited to OWNER's failure to complete some portion",null,null,null,null,null,null,null,null,null,{"$f":"Q1130","v":"x"},"x","x","x","x",0,"x","x",0,"x"]
[null,null,null,{"$f":"D1130","v":0},null,null,"of the work or perform some task that was not the responsibility of the BUILDER, the warranty period shall",null,null,null,null,null,null,null,null,null,{"$f":"Q1130","v":"x"},"x","x","x","x",0,"x","x",0,"x"]
[null,null,null,{"$f":"D1130","v":0},null,null,"commence on the day of said failed inspection.",null,null,null,null,null,null,null,null,null,{"$f":"Q1130","v":"x"},"x","x","x","x",0,"x","x",0,"x"]
[]
[null,"WARRANTY COVERAGE"]
[null,null,"S",null,null,"WARRANTY COVERAGE",null,null,null,null,null,null,null,null,null,null,"x","x","x","x","x",null,"x","x",null,"x"]
[null,null,"P",{"$f":"D1136","v":0},null,null,"This limited warranty covers the following items:",null,null,null,null,null,null,null,null,null,{"$f":"Q1136","v":"x"},"x","x","x","x",0,"x","x",0,"x"]
[null,null,"P",{"$f":"D1136","v":0},null,null,"All installations and applications of materials, devices and equipment performed by the BUILDER and his",null,null,null,null,null,null,null,null,null,{"$f":"Q1136","v":"x"},"x","x","x","x",0,"x","x",0,"x"]
[null,null,null,{"$f":"D1138","v":0},null,null,"subcontractors.",null,null,null,null,null,null,null,null,null,{"$f":"Q1138","v":"x"},"x","x","x","x",0,"x","x",0,"x"]
[null,null,"P",{"$f":"D1136","v":0},null,null,"All materials purchased and supplied by the BUILDER and his subcontractors except as noted herein.",null,null,null,null,null,null,null,null,null,{"$f":"Q1136","v":"x"},"x","x","x","x",0,"x","x",0,"x"]
[null,null,"P",{"$f":"D1136","v":0},null,null,"The installation of consumer products only to the extent that they are installed in accordance with the",null,null,null,null,null,null,null,null,null,{"$f":"Q1136","v":"x"},"x","x","x","x",0,"x","x",0,"x"]
[null,null,null,{"$f":"D1141","v":0},null,null,"manufacturer's instructions.",null,null,null,null,null,null,null,null,null,{"$f":"Q1141","v":"x"},"x","x","x","x",0,"x","x",0,"x"]
[]
[null,"WARRANTY EXCLUSIONS"]
[null,null,"S",null,null,"WARRANTY EXCLUSIONS",null,null,null,null,null,null,null,null,null,null,"x","x","x","x","x",null,"x","x",null,"x"]
[null,null,"P",{"$f":"D1145","v":0},null,null,"This limited warranty does not cover the following:",null,null,null,null,null,null,null,null,null,{"$f":"Q1145","v":"x"},"x","x","x","x",0,"x","x",0,"x"]
[null,null,"P",{"$f":"D1145","v":0},null,null,"Damage resulting from fires, floods, storms, electrical malfunctions from outside the home, accidents, nor",null,null,null,null,null,null,null,null,null,{"$f":"Q1145","v":"x"},"x","x","x","x",0,"x","x",0,"x"]
[null,null,null,{"$f":"D1147","v":0},null,null,"acts of God.",null,null,null,null,null,null,null,null,null,{"$f":"Q1147","v":"x"},"x","x","x","x",0,"x","x",0,"x"]
[null,null,"P",{"$f":"D1145","v":0},null,null,"Damage from misuse, abuse, neglect, alteration, or accidents to the covered items, unless such acts were",null,null,null,null,null,null,null,null,null,{"$f":"Q1145","v":"x"},"x","x","x","x",0,"x","x",0,"x"]
[null,null,null,{"$f":"D1149","v":0},null,null,"performed by the BUILDER or his agents or subcontractors.",null,null,null,null,null,null,null,null,null,{"$f":"Q1149","v":"x"},"x","x","x","x",0,"x","x",0,"x"]
[null,null,"P",{"$f":"D1145","v":0},null,null,"Damage resulting from the OWNER's failure to read or follow equipment operating instructions or damage ",null,null,null,null,null,null,null,null,null,{"$f":"Q1145","v":"x"},"x","x","x","x",0,"x","x",0,"x"]
[null,null,null,{"$f":"D1151","v":0},null,null,"resulting from lack of proper maintenance. ",null,null,null,null,null,null,null,null,null,{"$f":"Q1151","v":"x"},"x","x","x","x",0,"x","x",0,"x"]
[null,null,"P",{"$f":"D1145","v":0},null,null,"Damage resulting from malfunctioning equipment, lines or other service delivery systems installed by any",null,null,null,null,null,null,null,null,null,{"$f":"Q1145","v":"x"},"x","x","x","x",0,"x","x",0,"x"]
[null,null,null,{"$f":"D1153","v":0},null,null,"telephone, gas, electrical power, water or any other utility provider.",null,null,null,null,null,null,null,null,null,{"$f":"Q1153","v":"x"},"x","x","x","x",0,"x","x",0,"x"]
[null,null,"P",{"$f":"D1145","v":0},null,null,"Damage resulting from allowing sprinkler heads to spray onto exterior building components, including doors,",null,null,null,null,null,null,null,null,null,{"$f":"Q1145","v":"x"},"x","x","x","x",0,"x","x",0,"x"]
[null,null,null,{"$f":"D1155","v":0},null,null,"windows and painted surfaces.",null,null,null,null,null,null,null,null,null,{"$f":"Q1155","v":"x"},"x","x","x","x",0,"x","x",0,"x"]
[null,null,"P",{"$f":"D1145","v":0},null,null,"Damage resulting from the OWNER's failure to prevent water pipes from freezing, including the OWNER's failure",null,null,null,null,null,null,null,null,null,{"$f":"Q1145","v":"x"},"x","x","x","x",0,"x","x",0,"x"]
[null,null,null,{"$f":"D1157","v":0},null,null,"to shut off the water supply system and drain water from system in the event of a heating system failure.",null,null,null,null,null,null,null,null,null,{"$f":"Q1157","v":"x"},"x","x","x","x",0,"x","x",0,"x"]
[null,null,"P",{"$f":"D1145","v":0},null,null,"Any item purchased, furnished or installed by the OWNER or his agents.",null,null,null,null,null,null,null,null,null,{"$f":"Q1145","v":"x"},"x","x","x","x",0,"x","x",0,"x"]
[null,null,"P",{"$f":"D1145","v":0},null,null,"Any used item, equipment, fixture, appliance or similar device that was originally installed or otherwise on the",null,null,null,null,null,null,null,null,null,{"$f":"Q1145","v":"x"},"x","x","x","x",0,"x","x",0,"x"]
[null,null,null,{"$f":"D1160","v":0},null,null,"jobsite prior to the commencement of construction, and subsequently reinstalled by the BUILDER at the OWNER's",null,null,null,null,null,null,null,null,null,{"$f":"Q1160","v":"x"},"x","x","x","x",0,"x","x",0,"x"]
[null,null,null,{"$f":"D1160","v":0},null,null,"request.",null,null,null,null,null,null,null,null,null,{"$f":"Q1160","v":"x"},"x","x","x","x",0,"x","x",0,"x"]
[null,null,"P",{"$f":"D1145","v":0},null,null,"Repairs performed by anyone other than the BUILDER, his employees or subcontractors.",null,null,null,null,null,null,null,null,null,{"$f":"Q1145","v":"x"},"x","x","x","x",0,"x","x",0,"x"]
[null,null,"P",{"$f":"D1145","v":0},null,null,"Any work for which the BUILDER elected not to charge the OWNER.",null,null,null,null,null,null,null,null,null,{"$f":"Q1145","v":"x"},"x","x","x","x",0,"x","x",0,"x"]
[null,null,"P",{"$f":"D1145","v":0},null,null,"Work for which the BUILDER has not peen paid, including extra work orders, change orders, and other such",null,null,null,null,null,null,null,null,null,{"$f":"Q1145","v":"x"},"x","x","x","x",0,"x","x",0,"x"]
[null,null,null,{"$f":"D1165","v":0},null,null,"work performed by the BUILDER for which there remains an outstanding unpaid balance.",null,null,null,null,null,null,null,null,null,{"$f":"Q1165","v":"x"},"x","x","x","x",0,"x","x",0,"x"]
[null,null,"P",{"$f":"D1145","v":0},null,null,"Any condition that does not result in actual physical damage to the remodeled portion of the home, including",null,null,null,null,null,null,null,null,null,{"$f":"Q1145","v":"x"},"x","x","x","x",0,"x","x",0,"x"]
[null,null,null,{"$f":"D1167","v":0},null,null,"but not limited to uninhabitability or health risk due to the presence or consequence of unacceptable levels of",null,null,null,null,null,null,null,null,null,{"$f":"Q1167","v":"x"},"x","x","x","x",0,"x","x",0,"x"]
[null,null,null,{"$f":"D1167","v":0},null,null,"radon gas, asbestos, lead contaminates, formaldehyde or other pollutants, or the presence of hazardous or",null,null,null,null,null,null,null,null,null,{"$f":"Q1167","v":"x"},"x","x","x","x",0,"x","x",0,"x"]
[null,null,null,{"$f":"D1167","v":0},null,null,"toxic materials on the property during construction.",null,null,null,null,null,null,null,null,null,{"$f":"Q1167","v":"x"},"x","x","x","x",0,"x","x",0,"x"]
[null,null,"P",{"$f":"D1145","v":0},null,null,"Any appliance, equipment, item or other product that is classified as a \"consumer product\" in accordance with",null,null,null,null,null,null,null,null,null,{"$f":"Q1145","v":"x"},"x","x","x","x",0,"x","x",0,"x"]
[null,null,null,{"$f":"D1171","v":0},null,null,"the Magnuson-Moss 'Warranty Act (15 U.S.C. Sec. 2301 - 2311) that is installed or included in the Project.",null,null,null,null,null,null,null,null,null,{"$f":"Q1171","v":"x"},"x","x","x","x",0,"x","x",0,"x"]
[]
[null,"PASS-THRU WARRANTIES"]
[null,null,"S",null,null,"PASS-THRU WARRANTIES",null,null,null,null,null,null,null,null,null,null,"x","x","x","x","x",null,"x","x",null,"x"]
[null,null,"P",{"$f":"D1175","v":0},null,null,"The following is a partial list of products classified as \"consumer products\" by the Magnuson-Moss Warranty",null,null,null,null,null,null,null,null,null,{"$f":"Q1175","v":"x"},"x","x","x","x",0,"x","x",0,"x"]
[null,null,null,{"$f":"D1176","v":0},null,null,"Act.",null,null,null,null,null,null,null,null,null,"x","x","x","x","x",0,"x","x",0,"x"]
[null,null,null,{"$f":"D1176","v":0},null,null,"   Kitchen Appliances","               Lighting Fixtures                Water Pump","Doors & Windows",null,null,null,null,null,null,null,{"$f":"Q1176","v":"x"},"x","x","x","x",0,"x","x",0,"x"]
[null,null,null,{"$f":"D1176","v":0},null,null,"   Roofing Materials","               Plumbing Fixtures              Water Meter","Heating Equipment",null,null,null,null,null,null,null,{"$f":"Q1176","v":"x"},"x","x","x","x",0,"x","x",0,"x"]
[null,null,null,{"$f":"D1176","v":0},null,null,"   Brick Products","               Refrigerators                      Pool Equipment","Cooling Equipment",null,null,null,null,null,null,null,{"$f":"Q1176","v":"x"},"x","x","x","x",0,"x","x",0,"x"]
[null,null,null,{"$f":"D1176","v":0},null,null,"   Siding Products","               Microwave Ovens              Garage Door Opener","Fire Extinguisher",null,null,null,null,null,null,null,{"$f":"Q1176","v":"x"},"x","x","x","x",0,"x","x",0,"x"]
[null,null,null,{"$f":"D1176","v":0},null,null,"   Whirlpool Tub","               Stoves and Ovens             Sump Pump","Fire/Smoke Alarm",null,null,null,null,null,null,null,{"$f":"Q1176","v":"x"},"x","x","x","x",0,"x","x",0,"x"]
[null,null,null,{"$f":"D1176","v":0},null,null,"   Light Bulbs","               Garbage Disposal              Humidifer","Floor Coverings",null,null,null,null,null,null,null,{"$f":"Q1176","v":"x"},"x","x","x","x",0,"x","x",0,"x"]
[null,null,null,{"$f":"D1176","v":0},null,null,"   Water Heaters","               Security Systems               Solar Equipment","Intercom Systems",null,null,null,null,null,null,null,{"$f":"Q1176","v":"x"},"x","x","x","x",0,"x","x",0,"x"]
[null,null,"P",{"$f":"D1175","v":0},null,null,"The BUILDER assigns and passes through to the OWNER, and the OWNER agrees to accept, the manufacturer's",null,null,null,null,null,null,null,null,null,{"$f":"Q1175","v":"x"},"x","x","x","x",0,"x","x",0,"x"]
[null,null,null,{"$f":"D1185","v":0},null,null,"warranties for these items.  The only warranty on these products themselves are those that the manufacturer",null,null,null,null,null,null,null,null,null,{"$f":"Q1185","v":"x"},"x","x","x","x",0,"x","x",0,"x"]
[null,null,null,{"$f":"D1185","v":0},null,null,"provides to the OWNER, and the BUILDER's warranty on these items is limited solely to their being installed in",null,null,null,null,null,null,null,null,null,{"$f":"Q1185","v":"x"},"x","x","x","x",0,"x","x",0,"x"]
[null,null,null,{"$f":"D1185","v":0},null,null,"accordance with the manufacturer's instructions.",null,null,null,null,null,null,null,null,null,{"$f":"Q1185","v":"x"},"x","x","x","x",0,"x","x",0,"x"]
[]
[null,"WARRANTY SERVICE"]
[null,null,"S",null,null,"WARRANTY SERVICE",null,null,null,null,null,null,null,null,null,null,"x","x","x","x","x",null,"x","x",null,"x"]
[null,null,"P",{"$f":"D1191","v":0},null,null,"Requests for warranty service and the service itself shall be performed as described herein.",null,null,null,null,null,null,null,null,null,{"$f":"Q1191","v":"x"},"x","x","x","x",0,"x","x",0,"x"]
[null,null,"P",{"$f":"D1191","v":0},null,null,"In the event the OWNER discovers a defect in any item covered by this warranty, the OWNER will notify the",null,null,null,null,null,null,null,null,null,{"$f":"Q1191","v":"x"},"x","x","x","x",0,"x","x",0,"x"]
[null,null,null,{"$f":"D1193","v":0},null,null,"BUILDER of said defect in writing within ten days of it's discovery.",null,null,null,null,null,null,null,null,null,{"$f":"Q1193","v":"x"},"x","x","x","x",0,"x","x",0,"x"]
[null,null,"P",{"$f":"D1191","v":0},null,null,"Said notice shall include the OWNER's name, address and telephone number(s) and a description of the defect,",null,null,null,null,null,null,null,null,null,{"$f":"Q1191","v":"x"},"x","x","x","x",0,"x","x",0,"x"]
[null,null,null,{"$f":"D1195","v":0},null,null,"and shall be faxed, mailed or delivered to the BUILDER at the address listed upon the Contract or to any other",null,null,null,null,null,null,null,null,null,{"$f":"Q1195","v":"x"},"x","x","x","x",0,"x","x",0,"x"]
[null,null,null,{"$f":"D1195","v":0},null,null,"address as may be designated by the BUILDER in writing in advance.",null,null,null,null,null,null,null,null,null,{"$f":"Q1195","v":"x"},"x","x","x","x",0,"x","x",0,"x"]
[null,null,"P",{"$f":"D1191","v":0},null,null,"The BUILDER shall contact the OWNER within 10 working days of the receipt of the notification and shall investi-",null,null,null,null,null,null,null,null,null,{"$f":"Q1191","v":"x"},"x","x","x","x",0,"x","x",0,"x"]
[null,null,null,{"$f":"D1198","v":0},null,null,"gate the nature of the defect as soon thereafter as is possible.  This investigation will determine if the suspect",null,null,null,null,null,null,null,null,null,{"$f":"Q1198","v":"x"},"x","x","x","x",0,"x","x",0,"x"]
[null,null,null,{"$f":"D1198","v":0},null,null,"defect fails to meet the minimum standards set forth in the National Association of Home BUILDERs publication",null,null,null,null,null,null,null,null,null,{"$f":"Q1198","v":"x"},"x","x","x","x",0,"x","x",0,"x"]
[null,null,null,{"$f":"D1198","v":0},null,null,"Residential Construction Performance Guidelines\".",null,null,null,null,null,null,null,null,null,{"$f":"Q1198","v":"x"},"x","x","x","x",0,"x","x",0,"x"]
[null,null,"P",{"$f":"D1191","v":0},null,null,"Upon determining the validly of the complaint, the BUILDER shall have 20 working days to effect the necessary",null,null,null,null,null,null,null,null,null,{"$f":"Q1191","v":"x"},"x","x","x","x",0,"x","x",0,"x"]
[null,null,null,{"$f":"D1202","v":0},null,null,"repairs, corrections or modifications to correct the defect.",null,null,null,null,null,null,null,null,null,{"$f":"Q1202","v":"x"},"x","x","x","x",0,"x","x",0,"x"]
[null,null,"P",{"$f":"D1191","v":0},null,null,"Repair work shall be performed during the BUILDER's normal working hours (8 am to 5 pm, Monday through",null,null,null,null,null,null,null,null,null,{"$f":"Q1191","v":"x"},"x","x","x","x",0,"x","x",0,"x"]
[null,null,null,{"$f":"D1204","v":0},null,null,"Friday).",null,null,null,null,null,null,null,null,null,{"$f":"Q1204","v":"x"},"x","x","x","x",0,"x","x",0,"x"]
[null,null,"P",{"$f":"D1191","v":0},null,null,"The OWNER agrees to provide the BUILDER or his agents access to the house and agrees to provide a respon-",null,null,null,null,null,null,null,null,null,{"$f":"Q1191","v":"x"},"x","x","x","x",0,"x","x",0,"x"]
[null,null,null,{"$f":"D1206","v":0},null,null,"sible adult to be present during the time the warranty work is being performed with the authority to approve",null,null,null,null,null,null,null,null,null,{"$f":"Q1206","v":"x"},"x","x","x","x",0,"x","x",0,"x"]
[null,null,null,{"$f":"D1206","v":0},null,null,"and accept the repairs upon completion.",null,null,null,null,null,null,null,null,null,{"$f":"Q1206","v":"x"},"x","x","x","x",0,"x","x",0,"x"]
[null,null,"P",{"$f":"D1191","v":0},null,null,"In the event the alleged defect involves plumbing, electrical, HVAC or roofing systems and appears to require",null,null,null,null,null,null,null,null,null,{"$f":"Q1191","v":"x"},"x","x","x","x",0,"x","x",0,"x"]
[null,null,null,{"$f":"D1209","v":0},null,null,"immediate service, the OWNER agrees to contact the effected subcontractor directly, via telephone numbers ",null,null,null,null,null,null,null,null,null,{"$f":"Q1209","v":"x"},"x","x","x","x",0,"x","x",0,"x"]
[null,null,null,{"$f":"D1209","v":0},null,null,"provided by the BUILDER, to schedule the service call.",null,null,null,null,null,null,null,null,null,{"$f":"Q1209","v":"x"},"x","x","x","x",0,"x","x",0,"x"]
[]
[null,"WARRANTY LIMITATIONS"]
[null,null,"S",null,null,"WARRANTY LIMITATIONS",null,null,null,null,null,null,null,null,null,null,"x","x","x","x","x",null,"x","x",null,"x"]
[null,null,"P",{"$f":"D1214","v":0},null,null,"This limited warranty is subject to limitations and restrictions, as follows:",null,null,null,null,null,null,null,null,null,{"$f":"Q1214","v":"x"},"x","x","x","x",0,"x","x",0,"x"]
[null,null,"P",{"$f":"D1214","v":0},null,null,"This warranty is extended to the original OWNER and cannot be transferred in the event the property is sold or",null,null,null,null,null,null,null,null,null,{"$f":"Q1214","v":"x"},"x","x","x","x",0,"x","x",0,"x"]
[null,null,null,{"$f":"D1216","v":0},null,null,"otherwise transferred.",null,null,null,null,null,null,null,null,null,{"$f":"Q1216","v":"x"},"x","x","x","x",0,"x","x",0,"x"]
[null,null,"P",{"$f":"D1214","v":0},null,null,"The BUILDER shall not be held liable by this warranty for personal or property damage for whatever reason,",null,null,null,null,null,null,null,null,null,{"$f":"Q1214","v":"x"},"x","x","x","x",0,"x","x",0,"x"]
[null,null,null,{"$f":"D1218","v":0},null,null,"whether direct, indirect, special or secondary, arising from the use or inability to use the property because of",null,null,null,null,null,null,null,null,null,{"$f":"Q1218","v":"x"},"x","x","x","x",0,"x","x",0,"x"]
[null,null,null,{"$f":"D1218","v":0},null,null,"a construction defect.",null,null,null,null,null,null,null,null,null,{"$f":"Q1218","v":"x"},"x","x","x","x",0,"x","x",0,"x"]
[null,null,"P",{"$f":"D1214","v":0},null,null,"This warranty does not cover consequential damages unless such exclusion is prohibited by law.",null,null,null,null,null,null,null,null,null,{"$f":"Q1214","v":"x"},"x","x","x","x",0,"x","x",0,"x"]
[null,null,"P",{"$f":"D1214","v":0},null,null,"This limited warranty is not to be interpreted as an implied warranty.",null,null,null,null,null,null,null,null,null,{"$f":"Q1214","v":"x"},"x","x","x","x",0,"x","x",0,"x"]
[null,null,"P",{"$f":"D1214","v":0},null,null,"The BUILDER disclaims any implied warranties, including, but not limited to, warranties of habitability and fitness",null,null,null,null,null,null,null,null,null,{"$f":"Q1214","v":"x"},"x","x","x","x",0,"x","x",0,"x"]
[null,null,null,{"$f":"D1223","v":0},null,null,"of purpose, to the extent allowed by law.",null,null,null,null,null,null,null,null,null,{"$f":"Q1223","v":"x"},"x","x","x","x",0,"x","x",0,"x"]
[null,null,"P",{"$f":"D1214","v":0},null,null,"The OWNER shall give the BUILDER the first opportunity to inspect alleged defects and to effect the repair or",null,null,null,null,null,null,null,null,null,{"$f":"Q1214","v":"x"},"x","x","x","x",0,"x","x",0,"x"]
[null,null,null,{"$f":"D1225","v":0},null,null,"replacement or to pay reasonable sums to effect repairs.",null,null,null,null,null,null,null,null,null,{"$f":"Q1225","v":"x"},"x","x","x","x",0,"x","x",0,"x"]
[null,null,"P",{"$f":"D1214","v":0},null,null,"This warranty shall be void in the event the BUILDER has not been paid in full as provided in the contract",null,null,null,null,null,null,null,null,null,{"$f":"Q1214","v":"x"},"x","x","x","x",0,"x","x",0,"x"]
[null,null,null,{"$f":"D1227","v":0},null,null,"documents.",null,null,null,null,null,null,null,null,null,{"$f":"Q1227","v":"x"},"x","x","x","x",0,"x","x",0,"x"]
[]
[null,"MAINTENANCE by OWNER"]
[null,null,"S",null,null,"MAINTENANCE by OWNER",null,null,null,null,null,null,null,null,null,null,"x","x","x","x","x",null,"x","x",null,"x"]
[null,null,"P",{"$f":"D1231","v":0},null,null,"The OWNER understands that a home requires more care and maintenance than most products because it is",null,null,null,null,null,null,null,null,null,{"$f":"Q1231","v":"x"},"x","x","x","x",0,"x","x",0,"x"]
[null,null,null,{"$f":"D1232","v":0},null,null,"made of many different components, each with it's own special characteristics.",null,null,null,null,null,null,null,null,null,"x","x","x","x","x",0,"x","x",0,"x"]
[null,null,"P",{"$f":"D1231","v":0},null,null,"The OWNER understands that the OWNER has not contracted with the BUILDER to perform routine maintenance.",null,null,null,null,null,null,null,null,null,{"$f":"Q1231","v":"x"},"x","x","x","x",0,"x","x",0,"x"]
[null,null,"P",{"$f":"D1231","v":0},null,null,"The OWNER is responsible for performing standard routine maintenance.",null,null,null,null,null,null,null,null,null,{"$f":"Q1231","v":"x"},"x","x","x","x",0,"x","x",0,"x"]
[null,null,"P",{"$f":"D1231","v":0},null,null,"This section is intended to alert the OWNER to certain types of routine maintenance that are the OWNER's",null,null,null,null,null,null,null,null,null,{"$f":"Q1231","v":"x"},"x","x","x","x",0,"x","x",0,"x"]
[null,null,null,{"$f":"D1236","v":0},null,null,"responsibility and that could lead to problems if neglected, including but not limited to the following:",null,null,null,null,null,null,null,null,null,{"$f":"Q1236","v":"x"},"x","x","x","x",0,"x","x",0,"x"]
[null,null,"P",{"$f":"D1231","v":0},null,null,"CAULKING:","Interior caulking, specifically around bathtubs, shower stalls and ceramic tile surfaces",null,null,null,null,null,null,null,null,{"$f":"Q1231","v":"x"},"x","x","x","x",0,"x","x",0,"x"]
[null,null,null,{"$f":"D1238","v":0},null,null,null,"will crack somewhat after installation.  Exterior caulking, especially around window",null,null,null,null,null,null,null,null,{"$f":"Q1238","v":"x"},"x","x","x","x",0,"x","x",0,"x"]
[null,null,null,{"$f":"D1238","v":0},null,null,null,"frames will shrink as the window appears to pull away from the exterior finishes.",null,null,null,null,null,null,null,null,{"$f":"Q1238","v":"x"},"x","x","x","x",0,"x","x",0,"x"]
[null,null,null,{"$f":"D1238","v":0},null,null,null,"These conditions are normal and are not considered a construction defect.  Application",null,null,null,null,null,null,null,null,{"$f":"Q1238","v":"x"},"x","x","x","x",0,"x","x",0,"x"]
[null,null,null,{"$f":"D1238","v":0},null,null,null,"of additional caluking is part of routine maintenance.",null,null,null,null,null,null,null,null,{"$f":"Q1238","v":"x"},"x","x","x","x",0,"x","x",0,"x"]
[null,null,"P",{"$f":"D1231","v":0},null,null,"A/C FILTERS:","Heating, ventilating and air-conditioning systems have dust filters that need to be kept",null,null,null,null,null,null,null,null,{"$f":"Q1231","v":"x"},"x","x","x","x",0,"x","x",0,"x"]
[null,null,null,{"$f":"D1243","v":0},null,null,null,"clean and changed every 30 days.  Failure to change filters may void the manufacturers",null,null,null,null,null,null,null,null,{"$f":"Q1243","v":"x"},"x","x","x","x",0,"x","x",0,"x"]
[null,null,null,{"$f":"D1243","v":0},null,null,null,"warranty.",null,null,null,null,null,null,null,null,{"$f":"Q1243","v":"x"},"x","x","x","x",0,"x","x",0,"x"]
[null,null,"P",{"$f":"D1231","v":0},null,null,"GUTTERS:","Rain gutters and downspout systems require periodic removal of leaves and other fallen",null,null,null,null,null,null,null,null,{"$f":"Q1231","v":"x"},"x","x","x","x",0,"x","x",0,"x"]
[null,null,null,{"$f":"D1246","v":0},null,null,null,"debris to function properly.  The OWNER is responsible for this routine maintenance.",null,null,null,null,null,null,null,null,{"$f":"Q1246","v":"x"},"x","x","x","x",0,"x","x",0,"x"]
[null,null,"P",{"$f":"D1231","v":0},null,null,"SITE GRADING:","To the extent that it is included in the BUILDER's scope of work, the BUILDER has contoured",null,null,null,null,null,null,null,null,{"$f":"Q1231","v":"x"},"x","x","x","x",0,"x","x",0,"x"]
[null,null,null,{"$f":"D1248","v":0},null,null,null,"and otherwise graded the lot to provide proper drainage of rain water away from the",null,null,null,null,null,null,null,null,{"$f":"Q1248","v":"x"},"x","x","x","x",0,"x","x",0,"x"]
[null,null,null,{"$f":"D1248","v":0},null,null,null,"house.  It is the OWNER's responsibility to maintain these grades.",null,null,null,null,null,null,null,null,{"$f":"Q1248","v":"x"},"x","x","x","x",0,"x","x",0,"x"]
[]
[null,"NON-WARRANTABLE CONDITIONS"]
[null,null,"S",null,null,"NON-WARRANTABLE CONDITIONS",null,null,null,null,null,null,null,null,null,null,"x","x","x","x","x",null,"x","x",null,"x"]
[null,null,"P",{"$f":"D1253","v":0},null,null,"Certain construction conditions are not warrantable, as follows:",null,null,null,null,null,null,null,null,null,{"$f":"Q1253","v":"x"},"x","x","x","x",0,"x","x",0,"x"]
[null,null,"P",{"$f":"D1253","v":0},null,null,"Concrete foundations, walks, drives, patios and stucco finishes can develop hairline cracks that do not affect",null,null,null,null,null,null,null,null,null,{"$f":"Q1253","v":"x"},"x","x","x","x",0,"x","x",0,"x"]
[null,null,null,{"$f":"D1255","v":0},null,null,"the structural integrity of the building.  These cracks are caused by characteristics of expansion and",null,null,null,null,null,null,null,null,null,{"$f":"Q1255","v":"x"},"x","x","x","x",0,"x","x",0,"x"]
[null,null,null,{"$f":"D1255","v":0},null,null,"contraction.  No method of elimination these cracks exists, and the existence of such cracks does not",null,null,null,null,null,null,null,null,null,{"$f":"Q1255","v":"x"},"x","x","x","x",0,"x","x",0,"x"]
[null,null,null,{"$f":"D1255","v":0},null,null,"constitute a construction defect.",null,null,null,null,null,null,null,null,null,{"$f":"Q1255","v":"x"},"x","x","x","x",0,"x","x",0,"x"]
[null,null,"P",{"$f":"D1253","v":0},null,null,"Lawn and Shrubs require maintenance of proper ground cover and consistent watering.  BUILDER does not",null,null,null,null,null,null,null,null,null,{"$f":"Q1253","v":"x"},"x","x","x","x",0,"x","x",0,"x"]
[null,null,null,{"$f":"D1259","v":0},null,null,"warranty the future growth of any specific landscape plantings.  BUILDER's warranty on landscaping is limited",null,null,null,null,null,null,null,null,null,{"$f":"Q1259","v":"x"},"x","x","x","x",0,"x","x",0,"x"]
[null,null,null,{"$f":"D1259","v":0},null,null,"to replacement of landscape plantings that are observed to be diseased during the formulation of the Final",null,null,null,null,null,null,null,null,null,{"$f":"Q1259","v":"x"},"x","x","x","x",0,"x","x",0,"x"]
[null,null,null,{"$f":"D1259","v":0},null,null,"Punchlist.",null,null,null,null,null,null,null,null,null,{"$f":"Q1259","v":"x"},"x","x","x","x",0,"x","x",0,"x"]
[null,null,"P",{"$f":"D1253","v":0},null,null,"Drywall will sometimes develop nail pops or settlement cracks as a normal part of the drying out process.",null,null,null,null,null,null,null,null,null,{"$f":"Q1253","v":"x"},"x","x","x","x",0,"x","x",0,"x"]
[null,null,null,{"$f":"D1263","v":0},null,null,"These items are considered normal maintenance and can be easily remedied by the OWNER with spackling",null,null,null,null,null,null,null,null,null,{"$f":"Q1263","v":"x"},"x","x","x","x",0,"x","x",0,"x"]
[null,null,null,{"$f":"D1263","v":0},null,null,"during normal redecorating.",null,null,null,null,null,null,null,null,null,{"$f":"Q1263","v":"x"},"x","x","x","x",0,"x","x",0,"x"]
[]
[null,"WARRANTY REMEDIES"]
[null,null,"S",null,null,"WARRANTY REMEDIES",null,null,null,null,null,null,null,null,null,null,"x","x","x","x","x",null,"x","x",null,"x"]
[null,null,"P",{"$f":"D1268","v":0},null,null,"In the event the parties cannot agree as to the validity of any alleged defect or as to the acceptable correction",null,null,null,null,null,null,null,null,null,{"$f":"Q1268","v":"x"},"x","x","x","x",0,"x","x",0,"x"]
[null,null,null,{"$f":"D1269","v":0},null,null,"of any specific defect, the parties agree to the following remedies:",null,null,null,null,null,null,null,null,null,"x","x","x","x","x",0,"x","x",0,"x"]
[null,null,"P",{"$f":"D1268","v":0},null,null,"In the event the OWNER disagrees with the BUILDER regarding the categorization of an alleged defect, or",null,null,null,null,null,null,null,null,null,{"$f":"Q1268","v":"x"},"x","x","x","x",0,"x","x",0,"x"]
[null,null,null,{"$f":"D1271","v":0},null,null,"disagrees with the BUILDER's repair of any defect, the OWNER agrees to bring suit against the BUILDER in any",null,null,null,null,null,null,null,null,null,{"$f":"Q1271","v":"x"},"x","x","x","x",0,"x","x",0,"x"]
[null,null,null,{"$f":"D1271","v":0},null,null,"court of competent jurisdiction.  In this event, both parties agree to participate fully in any court-ordered",null,null,null,null,null,null,null,null,null,{"$f":"Q1271","v":"x"},"x","x","x","x",0,"x","x",0,"x"]
[null,null,null,{"$f":"D1271","v":0},null,null,"mediation and further agrees to abide by the decision of any such court.",null,null,null,null,null,null,null,null,null,{"$f":"Q1271","v":"x"},"x","x","x","x",0,"x","x",0,"x"]
[null,null,"P",{"$f":"D1268","v":0},null,null,"In the event the OWNER's complaint involves work performed by subcontractors who are separately licensed",null,null,null,null,null,null,null,null,null,{"$f":"Q1268","v":"x"},"x","x","x","x",0,"x","x",0,"x"]
[null,null,null,{"$f":"D1275","v":0},null,null,"by the State of Florida, including licensed Electrical, HVAC, Plumbing and Roofing Contractors, and the OWNER",null,null,null,null,null,null,null,null,null,{"$f":"Q1275","v":"x"},"x","x","x","x",0,"x","x",0,"x"]
[null,null,null,{"$f":"D1275","v":0},null,null,"elects to bring suit against the BUILDER for such defects and/or make formal complaints to the local Building",null,null,null,null,null,null,null,null,null,{"$f":"Q1275","v":"x"},"x","x","x","x",0,"x","x",0,"x"]
[null,null,null,{"$f":"D1275","v":0},null,null,"Official and/or the Construction Industry Licensing Board, the OWNER agrees in all such occasions to bring",null,null,null,null,null,null,null,null,null,{"$f":"Q1275","v":"x"},"x","x","x","x",0,"x","x",0,"x"]
[null,null,null,{"$f":"D1275","v":0},null,null,"simultaneous suits and/or complaints against the specific subcontractor, including naming them as co-",null,null,null,null,null,null,null,null,null,{"$f":"Q1275","v":"x"},"x","x","x","x",0,"x","x",0,"x"]
[null,null,null,{"$f":"D1275","v":0},null,null,"defendants and/or filing additional separate complaints if necessary.",null,null,null,null,null,null,null,null,null,{"$f":"Q1275","v":"x"},"x","x","x","x",0,"x","x",0,"x"]
[null,null,"P",{"$f":"D1268","v":0},null,null,"In the event the BUILDER's work or materials is judged by the court to be deficient, the BUILDER shall retain the",null,null,null,null,null,null,null,null,null,{"$f":"Q1268","v":"x"},"x","x","x","x",0,"x","x",0,"x"]
[null,null,null,{"$f":"D1281","v":0},null,null,"right to repair or replace the defective work or to pay reasonable sums to effect said repairs, said decision to",null,null,null,null,null,null,null,null,null,{"$f":"Q1281","v":"x"},"x","x","x","x",0,"x","x",0,"x"]
[null,null,null,{"$f":"D1281","v":0},null,null,"be at the sole option of the BUILDER.",null,null,null,null,null,null,null,null,null,{"$f":"Q1281","v":"x"},"x","x","x","x",0,"x","x",0,"x"]
[]
[null,"WARRANTY DISCLAIMER"]
[null,null,"S",null,null,"WARRANTY DISCLAIMER",null,null,null,null,null,null,null,null,null,null,"x","x","x","x","x",null,"x","x",null,"x"]
[null,null,"P",{"$f":"D1286","v":0},null,null,"This limited warranty is the only express warranty extended to the OWNER by the BUILDER.",null,null,null,null,null,null,null,null,null,{"$f":"Q1286","v":"x"},"x","x","x","x",0,"x","x",0,"x"]
[null,null,"P",{"$f":"D1286","v":0},null,null,"Any items and conditions not specifically covered by this warranty are excluded from coverage and are the ",null,null,null,null,null,null,null,null,null,{"$f":"Q1286","v":"x"},"x","x","x","x",0,"x","x",0,"x"]
[null,null,null,{"$f":"D1288","v":0},null,null,"responsibility of the OWNER.",null,null,null,null,null,null,null,null,null,{"$f":"Q1288","v":"x"},"x","x","x","x",0,"x","x",0,"x"]
[null,null,"P",{"$f":"D1286","v":0},null,null,"It is expressly understood that this limited warranty is in lieu of any and all other warranties, expressed or",null,null,null,null,null,null,null,null,null,{"$f":"Q1286","v":"x"},"x","x","x","x",0,"x","x",0,"x"]
[null,null,null,{"$f":"D1290","v":0},null,null,"implied, including but not limited to any warranty of merchantability, fitness for a particular purpose, and",null,null,null,null,null,null,null,null,null,{"$f":"Q1290","v":"x"},"x","x","x","x",0,"x","x",0,"x"]
[null,null,null,{"$f":"D1290","v":0},null,null,"habitability.",null,null,null,null,null,null,null,null,null,{"$f":"Q1290","v":"x"},"x","x","x","x",0,"x","x",0,"x"]
[null,null,"P",{"$f":"D1286","v":0},null,null,"Under no circumstances shall the BUILDER be liable for any damages (consequential or otherwise) arising from",null,null,null,null,null,null,null,null,null,{"$f":"Q1286","v":"x"},"x","x","x","x",0,"x","x",0,"x"]
[null,null,null,{"$f":"D1293","v":0},null,null,"any defect in any item covered hereunder.",null,null,null,null,null,null,null,null,null,{"$f":"Q1293","v":"x"},"x","x","x","x",0,"x","x",0,"x"]
[null,null,"P",{"$f":"D1286","v":0},null,null,"This Warranty gives you specific legal rights, and you may have other rights which vary from state to state.",null,null,null,null,null,null,null,null,null,{"$f":"Q1286","v":"x"},"x","x","x","x",0,"x","x",0,"x"]
[]
[null,"RIGHT of RESCISSION and RIGHT of CANCELLATION"]
[null,null,"S",null,null,"RIGHT of RESCISSION and RIGHT of CANCELLATION",null,null,null,null,null,null,null,null,null,null,null,"x","x","x","x","x","x","x",null,"x"]
[null,null,"P",{"$f":"D1298","v":0},null,null,"The 1968 Truth in Lending Act and the 1969 Federal Reserve Board Regulation Z rules under the Consumer",null,null,null,null,null,null,null,null,null,{"$f":"Q1298","v":0},"x","x","x","x","x","x","x",0,"x"]
[null,null,null,{"$f":"D1299","v":0},null,null,"Credit Protection Act gives property OWNERs a three day cancellation/rescission right.",null,null,null,null,null,null,null,null,null,0,"x","x","x","x","x","x","x",0,"x"]
[null,null,"P",{"$f":"D1298","v":0},null,null,"You, the Buyer, may cancel this transaction at any time prior to midnight of the third business day after the ",null,null,null,null,null,null,null,null,null,{"$f":"Q1298","v":0},"x","x","x","x","x","x","x",0,"x"]
[null,null,null,{"$f":"D1301","v":0},null,null,"date of this transaction.  See the separate Notice of Cancellation for an explanation of this right.",null,null,null,null,null,null,null,null,null,{"$f":"Q1301","v":0},"x","x","x","x","x","x","x",0,"x"]
[null,null,"P",{"$f":"D1298","v":0},null,null,"The OWNER has the unconditional right to cancel this Contract, without penalty or obligation, until midnight of",null,null,null,null,null,null,null,null,null,{"$f":"Q1298","v":0},"x","x","x","x","x","x","x",0,"x"]
[null,null,null,{"$f":"D1303","v":0},null,null,"the third business day after the Contract was signed.  This Cancellation must be made in writing.",null,null,null,null,null,null,null,null,null,{"$f":"Q1303","v":0},"x","x","x","x","x","x","x",0,"x"]
[null,null,"P",{"$f":"D1298","v":0},null,null,"Upon such cancellation, any payments made under this agreement and any negotiable instrument executed",null,null,null,null,null,null,null,null,null,{"$f":"Q1298","v":0},"x","x","x","x","x","x","x",0,"x"]
[null,null,null,{"$f":"D1305","v":0},null,null,"will be returned within ten (10)  business days following receipt of the cancellation notice.",null,null,null,null,null,null,null,null,null,{"$f":"Q1305","v":0},"x","x","x","x","x","x","x",0,"x"]
[null,null,"P",{"$f":"D1298","v":0},null,null,"Federal law requires that each OWNER be given two copies of the Notice of Cancellation and further must be ",null,null,null,null,null,null,null,null,null,{"$f":"Q1298","v":0},"x","x","x","x","x","x","x",0,"x"]
[null,null,null,{"$f":"D1307","v":0},null,null,"verbally informed of the rights included therein.  Please initial here acknowledging receipt of two copies of",null,null,null,null,null,null,null,null,null,{"$f":"Q1307","v":0},"x","x","x","x","x","x","x",0,"x"]
[null,null,null,{"$f":"D1307","v":0},null,null,"the Notice of Cancellation.",null,null,null,null,null,null,null,null,null,{"$f":"Q1307","v":0},"x","x","x","x","x","x","x",0,"x"]
[null,null,null,{"$f":"D1307","v":0},null,null,null,"                         OWNER initials: _____________   ______________",null,null,null,null,null,null,null,null,{"$f":"Q1307","v":0},"x","x","x","x","x","x","x",0,"x"]
[]
[null,"CANCELLATION"]
[null,null,"S",null,null,"CANCELLATION",null,null,null,null,null,null,null,null,null,null,null,null,null,null,null,null,null,null,null,"x"]
[null,null,"P",{"$f":"D1313","v":0},null,null,"In the event the OWNER elects to cancel this agreement within the first three days of it's execution, the BUILDER",null,null,null,null,null,null,null,null,null,{"$f":"Q1313","v":0},0,0,0,0,0,0,0,0,"x"]
[null,null,null,{"$f":"D1314","v":0},null,null,"will cancel this agreement and promptly refund 100% of any contract deposit paid by the OWNER.",null,null,null,null,null,null,null,null,null,0,0,0,0,0,0,0,0,0,"x"]
[null,null,"P",{"$f":"D1313","v":0},null,null,"In the event that the OWNER elects to cancel this agreement after the three day cancellation period, and before",null,null,null,null,null,null,null,null,null,{"$f":"Q1313","v":0},0,0,0,0,0,0,0,0,"x"]
[null,null,null,{"$f":"D1316","v":0},null,null,"any work is begun, the OWNER shall be responsible for any cost incurred by the BUILDER such as permit fees,",null,null,null,null,null,null,null,null,null,{"$f":"Q1316","v":0},0,0,0,0,0,0,0,0,"x"]
[null,null,null,{"$f":"D1316","v":0},null,null,"design costs, deposits paid to suppliers, and for the costs of materials that may have been ordered and are",null,null,null,null,null,null,null,null,null,{"$f":"Q1316","v":0},0,0,0,0,0,0,0,0,"x"]
[null,null,null,{"$f":"D1316","v":0},null,null,"not returnable, said sum to be a minimum of 50% of the contract deposit.",null,null,null,null,null,null,null,null,null,{"$f":"Q1316","v":0},0,0,0,0,0,0,0,0,"x"]
[]
[null,"ESCROW NOTICE required by the State of Florida"]
[null,null,"S",null,null,"ESCROW DEPOSIT NOTICE",null,null,null,null,null,null,null,null,null,null,null,null,null,null,null,null,null,null,null,"x"]
[null,null,"P",{"$f":"D1322","v":0},null,null,"THE OWNER OF A ONE-FAMILY OR TWO-FAMILY RESIDENTIAL DWELLING UNIT HAS THE RIGHT TO HAVE",null,null,null,null,null,null,null,null,null,{"$f":"Q1322","v":0},0,0,0,0,0,0,0,0,"x"]
[null,null,null,{"$f":"D1322","v":0},null,null,"ALL DEPOSIT FUNDS (UP TO TEN PERCENT OF THE PURCHASE PRICE) DEPOSITED IN AN ESCROW",null,null,null,null,null,null,null,null,null,{"$f":"Q1322","v":0},0,0,0,0,0,0,0,0,"x"]
[null,null,null,{"$f":"D1322","v":0},null,null,"ACCOUNT.  THIS RIGHT MAY BE WAIVED, IN WRITING, BY THE OWNER.",null,null,null,null,null,null,null,null,null,{"$f":"Q1322","v":0},0,0,0,0,0,0,0,0,"x"]
[]
[null,"ESCROW WAIVER"]
[null,null,"S",null,null,"ESCROW WAIVER",null,null,null,null,null,null,null,null,null,null,null,null,null,null,null,null,null,null,null,"x"]
[null,null,"P",{"$f":"D1328","v":0},null,null,"I hereby agree to waive the escrow requirement described above and agree that the BUILDER may deposit my",null,null,null,null,null,null,null,null,null,{"$f":"Q1328","v":0},0,0,0,0,0,0,0,0,"x"]
[null,null,null,{"$f":"D1329","v":0},null,null,"my sales deposit funds in a general operating account to be utilized in paying the normal expenses incurred",null,null,null,null,null,null,null,null,null,0,0,0,0,0,0,0,0,0,"x"]
[null,null,null,{"$f":"D1329","v":0},null,null,"in the construction of my house.",null,null,null,null,null,null,null,null,null,{"$f":"Q1329","v":0},0,0,0,0,0,0,0,0,"x"]
[null,null,null,{"$f":"D1329","v":0},null,null,null,null,null,null,null,null,null,null,null,null,{"$f":"Q1329","v":0},0,0,0,0,0,0,0,0,"x"]
[null,null,null,{"$f":"D1329","v":0},null,null,"           Buyer: __________________________          Buyer: ____________________________",null,null,null,null,null,null,null,null,null,{"$f":"Q1329","v":0},0,0,0,0,0,0,0,0,"x"]
[]
[null,"CONSTRUCTION INDUSTRIES RECOVERY FUND NOTICE required by the State of Florida"]
[null,null,"S",null,null,"CONSTRUCTION INDUSTRIES RECOVERY FUND",null,null,null,null,null,null,null,null,null,null,"x","x","x","x","x","x","x","x",null,"x"]
[null,null,"P",{"$f":"D1336","v":0},null,null,"PAYMENT MAY BE AVAILABLE FROM THE CONSTRUCTION INDUSTRIES RECOVERY FUND IF YOU LOSE",null,null,null,null,null,null,null,null,null,{"$f":"Q1336","v":"x"},"x","x","x","x","x","x","x",0,"x"]
[null,null,null,{"$f":"D1336","v":0},null,null,"MONEY ON A PROJECT PERFORMED UNDER CONTRACT WHERE THE LOSS RESULTS FROM SPECIFIED",null,null,null,null,null,null,null,null,null,{"$f":"Q1336","v":"x"},"x","x","x","x","x","x","x",0,"x"]
[null,null,null,{"$f":"D1336","v":0},null,null,"VIOLATIONS OF FLORIDA LAW BY A STATE LICENSED CONTRACTOR.  FOR INFORMATION ABOUT THE",null,null,null,null,null,null,null,null,null,{"$f":"Q1336","v":"x"},"x","x","x","x","x","x","x",0,"x"]
[null,null,null,{"$f":"D1336","v":0},null,null,"RECOVERY FUND AND FILING A CLAIM, CONTACT THE FLORIDA CONSTRUCTION LICENSING BOARD AT",null,null,null,null,null,null,null,null,null,{"$f":"Q1336","v":"x"},"x","x","x","x","x","x","x",0,"x"]
[null,null,null,{"$f":"D1336","v":0},null,null,"7960 ARLINGTON EXPRESSWAY, JACKSONVILLE, FLORIDA  32211-7467; (904) 727-6530.",null,null,null,null,null,null,null,null,null,{"$f":"Q1336","v":"x"},"x","x","x","x","x","x","x",0,"x"]
[]
[null,"FLORIDA RIGHT to CURE NOTICE required by the State of Florida"]
[null,null,"S",null,null,"FLORIDA RIGHT to CURE",null,null,null,null,null,null,null,null,null,null,"x","x","x","x","x","x","x","x",null,"x"]
[null,null,"P",null,null,null,"FLORIDA LAW CONTAINS IMPORTANT REQUIREMENTS YOU MUST FOLLOW BEFORE YOU MAY FILE A",null,null,null,null,null,null,null,null,null,{"$f":"Q1344","v":"x"},"x","x","x","x","x","x","x",null,{"$f":"Z1344","v":"x"}]
[null,null,null,null,null,null,"LAWSUIT FOR DEFECTIVE CONSTRUCTION AGAINST A CONTRACTOR, SUBCONTRACTOR, SUPPLIER,",null,null,null,null,null,null,null,null,null,{"$f":"Q1344","v":"x"},"x","x","x","x","x","x","x",null,{"$f":"Z1344","v":"x"}]
[null,null,null,null,null,null,"OR DESIGN PROFESSIONAL FOR AN ALLEGED CONSTRUCTION DEFECT IN YOUR HOME. SIXTY DAYS",null,null,null,null,null,null,null,null,null,{"$f":"Q1344","v":"x"},"x","x","x","x","x","x","x",null,{"$f":"Z1344","v":"x"}]
[null,null,null,null,null,null,"BEFORE YOU FILE YOUR LAWSUIT, YOU MUST DELIVER TO THE CONTRACTOR, SUBCONTRACTOR,",null,null,null,null,null,null,null,null,null,{"$f":"Q1344","v":"x"},"x","x","x","x","x","x","x",null,{"$f":"Z1344","v":"x"}]
[null,null,null,null,null,null,"SUPPLIER OR DESIGN PROFESSIONAL A WRITTEN NOTICE OF ANY CONSTRUCTION CONDITIONS YOU",null,null,null,null,null,null,null,null,null,{"$f":"Q1344","v":"x"},"x","x","x","x","x","x","x",null,{"$f":"Z1344","v":"x"}]
[null,null,null,null,null,null,"ALLEGE ARE DEFECTIVE AND PROVIDE YOUR CONTRACTOR AND ANY SUBCONTRACTORS, SUPPLIERS,",null,null,null,null,null,null,null,null,null,{"$f":"Q1344","v":"x"},"x","x","x","x","x","x","x",null,{"$f":"Z1344","v":"x"}]
[null,null,null,null,null,null,"OR PROVIDE YOUR CONTRACTOR AND ANY SUBCONTRACTORS, SUPPLIERS, OR DESIGN PRO-",null,null,null,null,null,null,null,null,null,{"$f":"Q1344","v":"x"},"x","x","x","x","x","x","x",null,{"$f":"Z1344","v":"x"}]
[null,null,null,null,null,null,"FESSIONALS THE OPPORTUNITY TO INSPECT THE ALLEGED CONSTRUCTION DEFECTS AND MAKE AN",null,null,null,null,null,null,null,null,null,{"$f":"Q1344","v":"x"},"x","x","x","x","x","x","x",null,{"$f":"Z1344","v":"x"}]
[null,null,null,null,null,null,"OFFER TO REPAIR OR PAY FOR THE ALLEGED CONSTRUCTION DEFECTS. YOU ARE NOT OBLIGATED TO",null,null,null,null,null,null,null,null,null,{"$f":"Q1344","v":"x"},"x","x","x","x","x","x","x",null,{"$f":"Z1344","v":"x"}]
[null,null,null,null,null,null,"ACCEPT ANY OFFER MADE BY THE CONTRACTOR OR ANY SUBCONTRACTORS, SUPPLIERS, OR DESIGN",null,null,null,null,null,null,null,null,null,{"$f":"Q1344","v":"x"},"x","x","x","x","x","x","x",null,{"$f":"Z1344","v":"x"}]
[null,null,null,null,null,null,"PROFESSIONALS.  THERE ARE STRICT DEADLINES AND PROCEDURES UNDER FLORIDA LAW.",null,null,null,null,null,null,null,null,null,{"$f":"Q1344","v":"x"},"x","x","x","x","x","x","x",null,{"$f":"Z1344","v":"x"}]
[]
[null,"GENERAL CONTRACT PROVISIONS"]
[null,null,"S",null,null,"GENERAL CONTRACT PROVISIONS",null,null,null,null,null,null,null,null,null,null,"x","x","x","x","x","x","x","x",null,"x"]
[null,null,"P",{"$f":"D1358","v":0},null,null,"COMPLIANCE:","The work will be completed in compliance with all laws, ordinances, rules, regulations",null,null,null,null,null,null,null,null,{"$f":"Q1358","v":"x"},"x","x","x","x","x","x","x",0,"x"]
[null,null,null,{"$f":"D1359","v":0},null,null,null,"and building codes of the applicable government authorities.",null,null,null,null,null,null,null,null,"x","x","x","x","x","x","x","x",0,"x"]
[null,null,"P",{"$f":"D1358","v":0},null,null,"NOTICE:","Any notice required or permitted under this Agreement may be given by certified or",null,null,null,null,null,null,null,null,{"$f":"Q1358","v":"x"},"x","x","x","x","x","x","x",0,"x"]
[null,null,null,{"$f":"D1361","v":0},null,null,null,"registered mail at the addresses contained in this Agreement.",null,null,null,null,null,null,null,null,{"$f":"Q1361","v":"x"},"x","x","x","x","x","x","x",0,"x"]
[null,null,"P",{"$f":"D1358","v":0},null,null,"GOVERNANCE:","This Agreement shall be construed in accordance with and governed by the laws of",null,null,null,null,null,null,null,null,{"$f":"Q1358","v":"x"},"x","x","x","x","x","x","x",0,"x"]
[null,null,null,{"$f":"D1363","v":0},null,null,null,"the state in which the project was performed.",null,null,null,null,null,null,null,null,{"$f":"Q1363","v":"x"},"x","x","x","x","x","x","x",0,"x"]
[null,null,"P",{"$f":"D1358","v":0},null,null,"GENDER:","Gender references utilized herein are intended to be neutral.  All such references shall",null,null,null,null,null,null,null,null,{"$f":"Q1358","v":"x"},"x","x","x","x","x","x","x",0,"x"]
[null,null,null,{"$f":"D1365","v":0},null,null,null,"be considered general and shall not be construed to have any specific gender reference.",null,null,null,null,null,null,null,null,{"$f":"Q1365","v":"x"},"x","x","x","x","x","x","x",0,"x"]
[null,null,"P",{"$f":"D1358","v":0},null,null,"PLURALITY:","All references to any entity that are made in the singular or plural shall be construed",null,null,null,null,null,null,null,null,{"$f":"Q1358","v":"x"},"x","x","x","x","x","x","x",0,"x"]
[null,null,null,{"$f":"D1367","v":0},null,null,null,"in either manner.",null,null,null,null,null,null,null,null,{"$f":"Q1367","v":"x"},"x","x","x","x","x","x","x",0,"x"]
[null,null,"P",{"$f":"D1358","v":0},null,null,"HEADINGS:","Section and/or paragraph headings are provided for reference only as a convenience to",null,null,null,null,null,null,null,null,{"$f":"Q1358","v":"x"},"x","x","x","x","x","x","x",0,"x"]
[null,null,null,{"$f":"D1369","v":0},null,null,null,"the parties and are not to be construed to alter or amend any provision of this agreement.",null,null,null,null,null,null,null,null,{"$f":"Q1369","v":"x"},"x","x","x","x","x","x","x",0,"x"]
[null,null,"P",{"$f":"D1358","v":0},null,null,"ASSIGNMENT:","This Agreement cannot be assigned by either of the parties without the expressed",null,null,null,null,null,null,null,null,{"$f":"Q1358","v":"x"},"x","x","x","x","x","x","x",0,"x"]
[null,null,null,{"$f":"D1371","v":0},null,null,null,"written consent of the other party. ",null,null,null,null,null,null,null,null,{"$f":"Q1371","v":"x"},"x","x","x","x","x","x","x",0,"x"]
[null,null,"P",{"$f":"D1358","v":0},null,null,"SUCCESSORS:","This Agreement shall be binding upon and shall inure to the benefit of the respective",null,null,null,null,null,null,null,null,{"$f":"Q1358","v":"x"},"x","x","x","x","x","x","x",0,"x"]
[null,null,null,{"$f":"D1373","v":0},null,null,null,"parties, their heirs, successors and assigns.",null,null,null,null,null,null,null,null,{"$f":"Q1373","v":"x"},"x","x","x","x","x","x","x",0,"x"]
[]
[null,"FORCE MAJEURE"]
[null,null,"S",null,null,"FORCE MAJEURE",null,null,null,null,null,null,null,null,null,null,null,null,null,null,null,null,null,null,null,"x"]
[null,null,"P",{"$f":"D1377","v":0},null,null,"The BUILDER shall not be liable to the OWNER for any loss, cost of damage resulting from or arising out of a",null,null,null,null,null,null,null,null,null,{"$f":"Q1377","v":0},0,0,0,0,0,0,0,0,"x"]
[null,null,null,{"$f":"D1377","v":0},null,null,"delay or inability to perform this contract caused by any force majeure occurrence such as: Acts of God,",null,null,null,null,null,null,null,null,null,{"$f":"Q1377","v":0},0,0,0,0,0,0,0,0,"x"]
[null,null,null,{"$f":"D1377","v":0},null,null,"declaration of war, fire, flooding, strikes, accidents or other similar events.",null,null,null,null,null,null,null,null,null,{"$f":"Q1377","v":0},0,0,0,0,0,0,0,0,"x"]
[]
[null,"CONTRACT DEFINATIONS"]
[null,null,"S",null,null,"DEFINITIONS",null,null,null,null,null,null,null,null,null,null,"x","x","x","x","x","x","x","x",null,"x"]
[null,null,"P",{"$f":"D1383","v":0},null,null,"The phrases and words used in the Construction Documents shall have the following meanings:",null,null,null,null,null,null,null,null,null,{"$f":"Q1383","v":"x"},"x","x","x","x","x","x","x",0,"x"]
[null,null,"P",{"$f":"D1383","v":0},null,null,"\"OWNER\"","Shall refer to the OWNER or OWNERs, their agents, their employees, subcontractors and/or",null,null,null,null,null,null,null,null,{"$f":"Q1383","v":"x"},"x","x","x","x","x","x","x",0,"x"]
[null,null,null,{"$f":"D1385","v":0},null,null,null,"suppliers hired and/or contracted with by the OWNER or their agents, and their employees.",null,null,null,null,null,null,null,null,{"$f":"Q1385","v":"x"},"x","x","x","x","x","x","x",0,"x"]
[null,null,"P",{"$f":"D1383","v":0},null,null,"\"BUILDER\"","Shall refer to the BUILDER, his agents, employees, license qualifier (if any), subcontractors",null,null,null,null,null,null,null,null,{"$f":"Q1383","v":"x"},"x","x","x","x","x","x","x",0,"x"]
[null,null,null,{"$f":"D1387","v":0},null,null,null,"and/or suppliers hired and/or contracted with by the BUILDER or his agents, and their employ-",null,null,null,null,null,null,null,null,{"$f":"Q1387","v":"x"},"x","x","x","x","x","x","x",0,"x"]
[null,null,null,{"$f":"D1387","v":0},null,null,null,"ees providing however that this definition applies only to those individuals only while they",null,null,null,null,null,null,null,null,{"$f":"Q1387","v":"x"},"x","x","x","x","x","x","x",0,"x"]
[null,null,null,{"$f":"D1387","v":0},null,null,null,"are acting under the scope and authority of the BUILDER and not in any other capacity.",null,null,null,null,null,null,null,null,{"$f":"Q1387","v":"x"},"x","x","x","x","x","x","x",0,"x"]
[null,null,"P",{"$f":"D1383","v":0},null,null,"\"BANK\"","Shall refer to any and all banks, savings and loan or other financial institution, or any other",null,null,null,null,null,null,null,null,{"$f":"Q1383","v":"x"},"x","x","x","x","x","x","x",0,"x"]
[null,null,null,{"$f":"D1391","v":0},null,null,null,"source of some or all of the funds being provided to pay for the construction of the Project.",null,null,null,null,null,null,null,null,{"$f":"Q1391","v":"x"},"x","x","x","x","x","x","x",0,"x"]
[null,null,"P",{"$f":"D1383","v":0},null,null,"\"FIND\"","Shall mean to research, investigate, identify, interview and qualify potential suppliers of",null,null,null,null,null,null,null,null,{"$f":"Q1383","v":"x"},"x","x","x","x","x","x","x",0,"x"]
[null,null,null,{"$f":"D1393","v":0},null,null,null,"the specific product or service required.",null,null,null,null,null,null,null,null,{"$f":"Q1393","v":"x"},"x","x","x","x","x","x","x",0,"x"]
[null,null,"P",{"$f":"D1383","v":0},null,null,"\"VISIT\"","Shall mean to arrange and physically travel to the location of the source of the specific",null,null,null,null,null,null,null,null,{"$f":"Q1383","v":"x"},"x","x","x","x","x","x","x",0,"x"]
[null,null,null,{"$f":"D1395","v":0},null,null,null,"product or service provider needed.",null,null,null,null,null,null,null,null,{"$f":"Q1395","v":"x"},"x","x","x","x","x","x","x",0,"x"]
[null,null,"P",{"$f":"D1383","v":0},null,null,"\"SELECT\"","Shall mean to make the actual choice of the specific product or service provider needed.",null,null,null,null,null,null,null,null,{"$f":"Q1383","v":"x"},"x","x","x","x","x","x","x",0,"x"]
[null,null,"P",{"$f":"D1383","v":0},null,null,"\"MATCH\"","Shall mean to accept the responsibility of identifying both the existing product and the",null,null,null,null,null,null,null,null,{"$f":"Q1383","v":"x"},"x","x","x","x","x","x","x",0,"x"]
[null,null,null,{"$f":"D1398","v":0},null,null,null,"source and description of it's duplicate to be utilized in the project.",null,null,null,null,null,null,null,null,{"$f":"Q1398","v":"x"},"x","x","x","x","x","x","x",0,"x"]
[null,null,"P",{"$f":"D1383","v":0},null,null,"\"TO MATCH\"","Shall mean to match an existing item, product or finish as reasonably as possible utilizing",null,null,null,null,null,null,null,null,{"$f":"Q1383","v":"x"},"x","x","x","x","x","x","x",0,"x"]
[null,null,null,{"$f":"D1400","v":0},null,null,null,"locally available stock materials and standard construction processes.",null,null,null,null,null,null,null,null,{"$f":"Q1400","v":"x"},"x","x","x","x","x","x","x",0,"x"]
[null,null,"P",{"$f":"D1383","v":0},null,null,"\"PURCHASE\"","Shall mean to order, schedule and directly pay the supplier or service provider needed,",null,null,null,null,null,null,null,null,{"$f":"Q1383","v":"x"},"x","x","x","x","x","x","x",0,"x"]
[null,null,null,{"$f":"D1402","v":0},null,null,null,"including paying any sales tax or any ancillary charges associated with the product or",null,null,null,null,null,null,null,null,{"$f":"Q1402","v":"x"},"x","x","x","x","x","x","x",0,"x"]
[null,null,null,{"$f":"D1402","v":0},null,null,null,"service needed.",null,null,null,null,null,null,null,null,{"$f":"Q1402","v":"x"},"x","x","x","x","x","x","x",0,"x"]
[null,null,"P",{"$f":"D1383","v":0},null,null,"\"DELIVER\"","Shall mean to schedule, arrange and personally deliver and/or personally receive delivery",null,null,null,null,null,null,null,null,{"$f":"Q1383","v":"x"},"x","x","x","x","x","x","x",0,"x"]
[null,null,null,{"$f":"D1405","v":0},null,null,null,"of the products or service needed to the jobsite, including the inspection and inventorying",null,null,null,null,null,null,null,null,{"$f":"Q1405","v":"x"},"x","x","x","x","x","x","x",0,"x"]
[null,null,null,{"$f":"D1405","v":0},null,null,null,"of said products and paying for any delivery or shipping charges arising therein.",null,null,null,null,null,null,null,null,{"$f":"Q1405","v":"x"},"x","x","x","x","x","x","x",0,"x"]
[null,null,"P",{"$f":"D1383","v":0},null,null,"\"INSTALL\" or","Shall mean to cut, fashion, place, fit, attach, hookup and otherwise permanently secure",null,null,null,null,null,null,null,null,{"$f":"Q1383","v":"x"},"x","x","x","x","x","x","x",0,"x"]
[null,null,null,{"$f":"D1408","v":0},null,null,"\"APPLY\"","the product described and to perform all the functions necessary to properly finish this ",null,null,null,null,null,null,null,null,{"$f":"Q1408","v":"x"},"x","x","x","x","x","x","x",0,"x"]
[null,null,null,{"$f":"D1408","v":0},null,null,null,"portion of the work.",null,null,null,null,null,null,null,null,{"$f":"Q1408","v":"x"},"x","x","x","x","x","x","x",0,"x"]
[null,null,"P",{"$f":"D1383","v":0},null,null,"\"PROVIDE\"","Shall mean to find, select, match, purchase and deliver (not install) the specific product or",null,null,null,null,null,null,null,null,{"$f":"Q1383","v":"x"},"x","x","x","x","x","x","x",0,"x"]
[null,null,null,{"$f":"D1411","v":0},null,null,null,"service described, as each of these words are defined herein.",null,null,null,null,null,null,null,null,{"$f":"Q1411","v":"x"},"x","x","x","x","x","x","x",0,"x"]
[null,null,"P",{"$f":"D1383","v":0},null,null,"\"PERFORM\"","Shall mean to purchase, deliver and install the specific product and/or service described,",null,null,null,null,null,null,null,null,{"$f":"Q1383","v":"x"},"x","x","x","x","x","x","x",0,"x"]
[null,null,null,{"$f":"D1413","v":0},null,null,null,"as each of these words are individually defined herein.",null,null,null,null,null,null,null,null,{"$f":"Q1413","v":"x"},"x","x","x","x","x","x","x",0,"x"]
[null,null,"P",{"$f":"D1383","v":0},null,null,"\"# INCLUDED\"","Shall be the number of the specific items described that the BUILDER shall be required to",null,null,null,null,null,null,null,null,{"$f":"Q1383","v":"x"},"x","x","x","x","x","x","x",0,"x"]
[null,null,null,{"$f":"D1415","v":0},null,null,null,"include in the project, regardless of the number of said items depicted or described in the",null,null,null,null,null,null,null,null,{"$f":"Q1415","v":"x"},"x","x","x","x","x","x","x",0,"x"]
[null,null,null,{"$f":"D1415","v":0},null,null,null,"construction plans.",null,null,null,null,null,null,null,null,{"$f":"Q1415","v":"x"},"x","x","x","x","x","x","x",0,"x"]
[]
[null,"HANDWRITTEN CHANGES to the Contract are Binding"]
[null,null,"S",null,null,"HANDWRITTEN CHANGES",null,null,null,null,null,null,null,null,null,null,null,null,null,"x","x",null,"x","x",null,"x"]
[null,null,"P",{"$f":"D1420","v":0},null,null,"Handwritten changes to the printed documents that are properly initialed by both parties shall supersede all",null,null,null,null,null,null,null,null,null,{"$f":"Q1420","v":0},0,0,"x","x",0,"x","x",0,"x"]
[null,null,null,{"$f":"D1421","v":0},null,null,"printed provisions.",null,null,null,null,null,null,null,null,null,0,0,0,"x","x",0,"x","x",0,"x"]
[]
[null,"ENTIRE AGREEMENT"]
[null,null,"S",null,null,"ENTIRE AGREEMENT",null,null,null,null,null,null,null,null,null,null,"x","x","x","x","x","x","x","x",null,"x"]
[null,null,"P",{"$f":"D1425","v":0},null,null,"This agreement, including the Contract Documents enumerated herein, constitutes the entire agreement",null,null,null,null,null,null,null,null,null,{"$f":"Q1425","v":"x"},"x","x","x","x","x","x","x",0,"x"]
[null,null,null,{"$f":"D1426","v":0},null,null,"between the parties, and supersedes any prior understandings, agreements or representations between the",null,null,null,null,null,null,null,null,null,"x","x","x","x","x","x","x","x",0,"x"]
[null,null,null,{"$f":"D1426","v":0},null,null,"parties.",null,null,null,null,null,null,null,null,null,{"$f":"Q1426","v":"x"},"x","x","x","x","x","x","x",0,"x"]
[null,null,"P",null,null,null,"No other agreement exists, and any statement, arrangement or understanding, expressed or implied not",null,null,null,null,null,null,null,null,null,null,null,null,null,null,null,null,null,null,"x"]
[null,null,null,{"$f":"D1429","v":0},null,null,"contained herein will be recognized.",null,null,null,null,null,null,null,null,null,{"$f":"Q1429","v":0},0,0,0,0,0,0,0,0,"x"]
[null,null,"P",null,null,null,"Agreements made with mechanics or subcontractors on the job are specifically not recognized.",null,null,null,null,null,null,null,null,null,null,null,null,null,null,null,null,null,null,"x"]
[null,null,"P",null,null,null,"This Contract can be modified only by written agreement signed by both parties.",null,null,null,null,null,null,null,null,null,null,null,null,null,null,null,null,null,null,"x"]
[]
[null,"WARNING to OWNER"]
[null,null,"S",null,null,"IMPORTANT NOTICE",null,null,null,null,null,null,null,null,null,null,null,null,null,null,null,null,null,null,null,"x"]
[null,null,"P",{"$f":"D1435","v":0},null,null,"YOU AND THE BUILDER ARE RESPONSIBLE FOR MEETING THE TERMS AND CONDITIONS OF THIS",null,null,null,null,null,null,null,null,null,{"$f":"Q1435","v":0},0,0,0,0,0,0,0,0,"x"]
[null,null,null,{"$f":"D1436","v":0},null,null,"CONTRACT.  IF YOU SIGN THIS CONTRACT ANY YOU FAIL TO MEET THE TERMS AND CONDITIONS",null,null,null,null,null,null,null,null,null,0,0,0,0,0,0,0,0,0,"x"]
[null,null,null,{"$f":"D1436","v":0},null,null,"OF THIS CONTRACT YOU MAY LOOSE YOUR LEGAL OWNERSHIP RIGHTS IN YOUR HOME.  KNOW",null,null,null,null,null,null,null,null,null,{"$f":"Q1436","v":0},0,0,0,0,0,0,0,0,"x"]
[null,null,null,{"$f":"D1436","v":0},null,null,"YOUR RIGHTS AND RESPONSIBILITIES UNDER THE LAW.",null,null,null,null,null,null,null,null,null,{"$f":"Q1436","v":0},0,0,0,0,0,0,0,0,"x"]
[null,null,"P",{"$f":"D1435","v":0},null,null,"THIS CONTRACT HAS IMPORTANT LEGAL CONSEQUENCES AND SHOULD BE READ THOROUGHLY",null,null,null,null,null,null,null,null,null,{"$f":"Q1435","v":0},0,0,0,0,0,0,0,0,"x"]
[null,null,null,{"$f":"D1440","v":0},null,null,"AND UNDERSTOOD PRIOR TO SIGNING.  IF YOU HAVE ANY QUESTIONS ABOUT YOUR RIGHTS AND",null,null,null,null,null,null,null,null,null,{"$f":"Q1440","v":0},0,0,0,0,0,0,0,0,"x"]
[null,null,null,{"$f":"D1440","v":0},null,null,"RESPONSIBILITIES UNDER THIS CONTRACT, YOU ARE ENCOURAGED TO CONSULT AN ATTORNEY.",null,null,null,null,null,null,null,null,null,{"$f":"Q1440","v":0},0,0,0,0,0,0,0,0,"x"]
[]
[null,"SIGNATURES"]
[null,null,"S",null,null,"SIGNATURES",null,null,null,null,null,null,null,null,null,null,"x","x","x","x","x","x","x","x",null,"x"]
[null,null,"G",{"$f":"D1445","v":0},null,"IN AGREEMENT WHEREOF, we hereby affix our hand(s) and seal(s) this day and date written below.",null,null,null,null,null,null,null,null,null,null,{"$f":"Q1445","v":"x"},"x","x","x","x","x","x","x",0,"x"]
[null,null,"G",{"$f":"D1445","v":0},null,null,null,null,null,null,null,null,null,null,null,null,{"$f":"Q1445","v":"x"},"x","x","x","x","x","x","x",0,"x"]
[null,null,"G",{"$f":"D1445","v":0},null,"BUILDER                                                                                       OWNER(S)",null,null,null,null,null,null,null,null,null,null,{"$f":"Q1445","v":"x"},"x","x","x","x","x","x","x",0,"x"]
[null,null,"G",{"$f":"D1445","v":0},null,null,null,null,null,null,null,null,null,null,null,null,{"$f":"Q1445","v":"x"},"x","x","x","x","x","x","x",0,"x"]
[null,null,"G",{"$f":"D1445","v":0},null,"_________________________________________                     _________________________________________",null,null,null,null,null,null,null,null,null,null,{"$f":"Q1445","v":"x"},"x","x","x","x","x","x","x",0,"x"]
[null,null,"G",{"$f":"D1445","v":0},null,"SIGNATURE                                         DATE                             SIGNATURE                                        DATE",null,null,null,null,null,null,null,null,null,null,{"$f":"Q1445","v":"x"},"x","x","x","x","x","x","x",0,"x"]
[null,null,"G",{"$f":"D1445","v":0},null,null,null,null,null,null,null,null,null,null,null,null,{"$f":"Q1445","v":"x"},"x","x","x","x","x","x","x",0,"x"]
[null,null,"G",{"$f":"D1445","v":0},null,"_________________________________________                     _________________________________________",null,null,null,null,null,null,null,null,null,null,{"$f":"Q1445","v":"x"},"x","x","x","x","x","x","x",0,"x"]
[null,null,"G",{"$f":"D1445","v":0},null,"BY                                                                                               SIGNATURE                                       DATE",null,null,null,null,null,null,null,null,null,null,{"$f":"Q1445","v":"x"},"x","x","x","x","x","x","x",0,"x"]
[]
[null,"WITNESSES"]
[null,null,"S",null,null,"WITNESSES",null,null,null,null,null,null,null,null,null,null,null,null,null,null,null,null,null,null,null,"x"]
[null,null,"G",{"$f":"D1457","v":0},null,"THE EXECUTION of this agreement was witnessed by:",null,null,null,null,null,null,null,null,null,null,{"$f":"Q1457","v":0},0,0,0,0,0,0,0,0,"x"]
[null,null,"G",{"$f":"D1457","v":0},null,null,null,null,null,null,null,null,null,null,null,null,{"$f":"Q1457","v":0},0,0,0,0,0,0,0,0,"x"]
[null,null,"G",{"$f":"D1457","v":0},null,"WITNESS                                                                                           WITNESS",null,null,null,null,null,null,null,null,null,null,{"$f":"Q1457","v":0},0,0,0,0,0,0,0,0,"x"]
[null,null,"G",{"$f":"D1457","v":0},null,null,null,null,null,null,null,null,null,null,null,null,{"$f":"Q1457","v":0},0,0,0,0,0,0,0,0,"x"]
[null,null,"G",{"$f":"D1457","v":0},null,"_________________________________________                    _________________________________________",null,null,null,null,null,null,null,null,null,null,{"$f":"Q1457","v":0},0,0,0,0,0,0,0,0,"x"]
[null,null,"G",{"$f":"D1457","v":0},null,"SIGNATURE                                         DATE                                   SIGNATURE                                      DATE",null,null,null,null,null,null,null,null,null,null,{"$f":"Q1457","v":0},0,0,0,0,0,0,0,0,"x"]
[null,null,"G",{"$f":"D1457","v":0},null,null,null,null,null,null,null,null,null,null,null,null,{"$f":"Q1457","v":0},0,0,0,0,0,0,0,0,"x"]
[null,null,"G",{"$f":"D1457","v":0},null,"_________________________________________                    _________________________________________",null,null,null,null,null,null,null,null,null,null,{"$f":"Q1457","v":0},0,0,0,0,0,0,0,0,"x"]
[null,null,"G",{"$f":"D1457","v":0},null,"WITNESS PRINTED NAME                                                                WITNESS  PRINTED NAME",null,null,null,null,null,null,null,null,null,null,{"$f":"Q1457","v":0},0,0,0,0,0,0,0,0,"x"]
[]
[null,"NOTARY CERTIFICATE"]
[null,null,"S",null,null,"NOTARY CERTIFICATE",null,null,null,null,null,null,null,null,null,null,null,null,null,null,null,null,null,null,null,"x"]
[null,null,"G",{"$f":"D1469","v":0},null,"NOTARY for BUILDER                                                                NOTARY For OWNER",null,null,null,null,null,null,null,null,null,null,{"$f":"Q1469","v":0},0,0,0,0,0,0,0,0,"x"]
[null,null,"G",{"$f":"D1469","v":0},null,"On this day and date written herein did appear before",null,null,null,null,null,null,null,null,null,null,{"$f":"Q1469","v":0},0,0,0,0,0,0,0,0,"x"]
[null,null,"G",{"$f":"D1469","v":0},null,"me the individual named above who acknowledged",null,null,null,null,null,null,null,null,null,null,{"$f":"Q1469","v":0},0,0,0,0,0,0,0,0,"x"]
[null,null,"G",{"$f":"D1469","v":0},null,"that he/she did execute this document.",null,null,null,null,null,null,null,null,null,null,{"$f":"Q1469","v":0},0,0,0,0,0,0,0,0,"x"]
[null,null,"G",{"$f":"D1469","v":0},null,"I have relied upon the following identification:",null,null,null,null,null,null,null,null,null,null,{"$f":"Q1469","v":0},0,0,0,0,0,0,0,0,"x"]
[null,null,"G",{"$f":"D1469","v":0},null,"_________________________________________         _________________________________________",null,null,null,null,null,null,null,null,null,null,{"$f":"Q1469","v":0},0,0,0,0,0,0,0,0,"x"]
[null,null,"G",{"$f":"D1469","v":0},null,null,null,null,null,null,null,null,null,null,null,null,{"$f":"Q1469","v":0},0,0,0,0,0,0,0,0,"x"]
[null,null,"G",{"$f":"D1469","v":0},null,"Signed before me this ____ day of _______, 19 ___       Signed before me this ____ day of ________, 19 ___",null,null,null,null,null,null,null,null,null,null,{"$f":"Q1469","v":0},0,0,0,0,0,0,0,0,"x"]
[null,null,"G",{"$f":"D1469","v":0},null,null,null,null,null,null,null,null,null,null,null,null,{"$f":"Q1469","v":0},0,0,0,0,0,0,0,0,"x"]
[null,null,"G",{"$f":"D1469","v":0},null,"_________________________________________         ___________________________________________",null,null,null,null,null,null,null,null,null,null,{"$f":"Q1469","v":0},0,0,0,0,0,0,0,0,"x"]
[null,null,"G",{"$f":"D1469","v":0},null,"Notary Signature                                                                         Notary Signature",null,null,null,null,null,null,null,null,null,null,{"$f":"Q1469","v":0},0,0,0,0,0,0,0,0,"x"]
[null,null,"G",{"$f":"D1469","v":0},null,null,null,null,null,null,null,null,null,null,null,null,{"$f":"Q1469","v":0},0,0,0,0,0,0,0,0,"x"]
[null,null,"G",{"$f":"D1469","v":0},null,"_________________________________________         ___________________________________________",null,null,null,null,null,null,null,null,null,null,{"$f":"Q1469","v":0},0,0,0,0,0,0,0,0,"x"]
[null,null,"G",{"$f":"D1469","v":0},null,"Notary Printed Name                                                               Notary Printed Name",null,null,null,null,null,null,null,null,null,null,{"$f":"Q1469","v":0},0,0,0,0,0,0,0,0,"x"]
[null,null,"G",{"$f":"D1469","v":0},null,null,null,null,null,null,null,null,null,null,null,null,{"$f":"Q1469","v":0},0,0,0,0,0,0,0,0,"x"]
[null,null,"G",{"$f":"D1469","v":0},null,null,null,null,null,null,null,null,null,null,null,null,{"$f":"Q1469","v":0},0,0,0,0,0,0,0,0,"x"]
[null,null,"G",{"$f":"D1469","v":0},null,null,null,null,null,null,null,null,null,null,null,null,{"$f":"Q1469","v":0},0,0,0,0,0,0,0,0,"x"]
[null,null,"G",{"$f":"D1469","v":0},null,null,null,null,null,null,null,null,null,null,null,null,{"$f":"Q1469","v":0},0,0,0,0,0,0,0,0,"x"]
[null,null,"G",{"$f":"D1469","v":0},null,null,null,null,null,null,null,null,null,null,null,null,{"$f":"Q1469","v":0},0,0,0,0,0,0,0,0,"x"]
[]
[null,"END OF CHECKLIST"]

{"sheet":"Cover","index":3,"n_rows":42,"n_cols":4,"rows_kept":42,"cut":false,"hidden":true,"merged":[]}
[]
[null,"COVER SHEET"]
[]
[null,"This is a coversheet you might wish to use with your contract."]
[null,"You may also print just the lettering in the center of the form on your own letterhead."]
[]
[]
[]
[]
[]
[]
[]
[]
[]
[]
[]
[null,null,null,"CONSTRUCTION AGREEMENT"]
[]
[]
[]
[]
[]
[]
[null,null,null,"PROJECT"]
[null,null,null,{"$f":"CheckList!H41","v":"Project Name"}]
[null,null,null,{"$f":"CheckList!H42","v":"Project Address"}]
[null,null,null,{"$f":"CheckList!H43","v":"City, State, Zip Code"}]
[]
[]
[]
[null,null,null,"OWNER"]
[null,null,null,{"$f":"CheckList!H53","v":"OWNER Name"}]
[null,null,null,{"$f":"CheckList!H55","v":"OWNER Address"}]
[null,null,null,{"$f":"CheckList!H56","v":"OWNER City,  State, Zip"}]
[null,null,null,{"$f":"CheckList!H57","v":"OWNER Home Phone"}]
[]
[]
[null,null,null,"BUILDER"]
[null,null,null,{"$f":"CheckList!H63","v":"Contractor Business Name"}]
[null,null,null,{"$f":"CheckList!H65","v":"Contractor Mailing Address"}]
[null,null,null,{"$f":"CheckList!H66","v":"Contractor City, St, Zip"}]
[null,null,null,{"$f":"CheckList!H67","v":"Contractor Phone"}]

{"sheet":"Contract","index":4,"n_rows":9,"n_cols":2,"rows_kept":9,"cut":false,"hidden":true,"merged":[]}
[]
[null,"MAIN CONTRACT"]
[]
[null,"These are the items you selected in the checklist.  Please examine them carefully."]
[null,"If you need to change the terms, conditions or the wording, please use the Checklist."]
[null,"You may also use the Settings menu to decide if the Draws, Allowances and/or Warranty"]
[null,"are contained in this document or in separate addemdums."]
[]
[null,"CONSTRUCTION AGREEMENT"]

{"sheet":"Draws","index":5,"n_rows":8,"n_cols":2,"rows_kept":8,"cut":false,"hidden":true,"merged":[]}
[]
[null,"DRAW SCHEDULE"]
[]
[null,"These are the draw schedule items you selected in the checklist.  Please examine them carefully."]
[null,"If you need to change the draw descriptions, percentages or amounts, please use the Checklist."]
[null,"You may also use the Settings menu to have the draw schedule included within the Main Contract."]
[]
[null,"DRAW SCHEDULE ADDENDUM"]

{"sheet":"Allowances","index":6,"n_rows":8,"n_cols":2,"rows_kept":8,"cut":false,"hidden":true,"merged":[]}
[]
[null,"ALLOWANCE SCHEDULE"]
[]
[null,"These are the allowance schedule items you selected in the checklist.  Please examine them carefully."]
[null,"If you need to change the descriptions or amounts, please use the Checklist."]
[null,"You may also use the Settings menu to have the allowances included within the Main Contract."]
[]
[null,"ALLOWANCE SCHEDULE"]

{"sheet":"Warranty","index":7,"n_rows":8,"n_cols":2,"rows_kept":8,"cut":false,"hidden":true,"merged":[]}
[]
[null,"WARRANTY"]
[]
[null,"These are the Warranty items you selected in the checklist.  Please examine them carefully."]
[null,"If you need to change the descriptions, please use the Checklist."]
[null,"You may also use the Settings menu to have the warranty included within the Main Contract."]
[]
[null,"BUILDER'S LIMITED WARRANTY"]

{"sheet":"Right of Rescission","index":8,"n_rows":58,"n_cols":5,"rows_kept":58,"cut":false,"hidden":true,"merged":[]}
[]
[null,"RIGHT of RESCISSION"]
[]
[null,"This document complies with the Federal Right of Cancellation & Right of Rescission statutes."]
[null,"This document should be given to each signer (two copies each) of your contract in any situation where"]
[null,"the contract could possibly result in an encumbrance (AKA a Lien) being placed against the property."]
[]
[]
[null,"NOTICE of RIGHT of CANCELLATION"]
[null,"and RIGHT of RESCISSION"]
[]
[null,"1.  ","You have entered into an agreement on (date) ___________________  that could result"]
[null,null,"in a security interest (lien) against your property."]
[]
[null,"2.  ","You may cancel this transaction, without penalty or obligation, within three business"]
[null,null,"daysof the above date."]
[]
[null,"3.  ","This Cancellation must be made in writing."]
[]
[null,"4.  ","Federal Law requires that you be provided with prepared forms for exercising your rights"]
[null,null,"under these laws and that you be verbally informed of your rights."]
[]
[null,"5.  ","If you cancel, any property traded in, and any payments made by you under the contract or"]
[null,null,"sale, and any negotiable instrument executed by you will be returned in 10 business days"]
[null,null,"following receipt by the Seller of your cancellation notice, and any security interest arising"]
[null,null,"out of the transaction will be canceled."]
[]
[null,"6.  ","If you cancel, you must make available to the Seller at your residence, in substantially the "]
[null,null,"same condition as when you received, any goods delivered to you under this contract or"]
[null,null,"sale: or you may if you wish, comply with the instructions of the Seller regarding the return"]
[null,null,"shipment of the goods at the seller's expense and risk."]
[]
[null,"7.  ","If you do make the goods available to the Seller and the Seller does not pick them up within"]
[null,null,"20 days of the date of your notice of cancellation, you may retain or dispose of the goods"]
[null,null,"without any further obligation.  If you fail to make the goods available to the Seller, or if you"]
[null,null,"agree to return the goods to the Seller and fail to do so, then you remain liable for"]
[null,null,"performance of all obligations under the contract."]
[]
[null,"8.  ","To cancel this transaction, mail or deliver a signed and dated copy of this cancellation "]
[null,null,"notice or any other written notice, or send a telegram, to:"]
[]
[null,null,null,null,{"$f":"CheckList!H63","v":"Contractor Business Name"}]
[null,null,null,null,{"$f":"CheckList!H65","v":"Contractor Mailing Address"}]
[null,null,null,null,{"$f":"CheckList!H66","v":"Contractor City, St, Zip"}]
[]
[null,null,"not later than midnight of:"]
[]
[]
[null,"NOTICE of CANCELLATION"]
[]
[null,null,"To:",{"$f":"CheckList!H63","v":"Contractor Business Name"}]
[null,null,null,{"$f":"CheckList!H65","v":"Contractor Mailing Address"}]
[null,null,null,{"$f":"CheckList!H66","v":"Contractor City, St, Zip"}]
[]
[null,null,null,null,"I HEREBY CANCEL THIS TRANSACTION."]
[]
[]
[null,null,null,null,"SIGNATURE / DATE"]

{"sheet":"Legal Notices","index":9,"n_rows":38,"n_cols":3,"rows_kept":38,"cut":false,"hidden":true,"merged":[]}
[]
[null,"STATE and LOCAL NOTICES"]
[]
[null,"This page is provided for you to add any specific notices that your state and/or local government may"]
[null,"require on all construction contracts.   Simply enter the required language and save as a new master"]
[null,"file.  You may ignore this page if it does not apply to your area."]
[]
[null,"LEGAL NOTICES"]
[]
[null,null,"In accordance with Florida Law, any direct contract between an owner and a contractor, related to improvements"]
[null,null,"to real property consisting of single or multiple family dwellings up to and including four units, must contain the"]
[null,null,"following provision printed in no less than 18-point, capitalized, boldfaced type:"]
[]
[null,null,"ACCORDING TO FLORIDA'S CONSTRUCTION LIEN LAW"]
[null,null,"(SECTIONS 713.001-713.37, FLORIDA STATUTES),"]
[null,null,"THOSE WHO WORK ON YOUR PROPERTY OR PROVIDE"]
[null,null,"MATERIALS AND ARE NOT PAID IN FULL HAVE A RIGHT"]
[null,null,"TO ENFORCE THEIR CLAIM FOR PAYMENT AGAINST"]
[null,null,"YOUR PROPERTY. THIS CLAIM IS KNOWN AS A"]
[null,null,"CONSTRUCTION LIEN. IF YOUR CONTRACTOR OR A"]
[null,null,"SUBCONTRACTOR FAILS TO PAY SUBCONTRACTORS,"]
[null,null,"SUB-SUBCONTRACTORS, OR MATERIAL SUPPLIERS"]
[null,null,"OR NEGLECTS TO MAKE OTHER LEGALLY REQUIRED"]
[null,null,"PAYMENTS, THE PEOPLE WHO ARE OWED MONEY"]
[null,null,"MAY LOOK TO YOUR PROPERTY FOR PAYMENT, EVEN"]
[null,null,"IF YOU HAVE PAID YOUR CONTRACTOR IN FULL. IF"]
[null,null,"YOU FAIL TO PAY YOUR CONTRACTOR, YOUR"]
[null,null,"CONTRACTOR MAY ALSO HAVE A LIEN ON YOUR "]
[null,null,"PROPERTY. THIS MEANS IF A LIEN IS FILED YOUR"]
[null,null,"PROPERTY COULD BE SOLD AGAINST YOUR WILL TO"]
[null,null,"PAY FOR LABOR, MATERIALS, OR OTHER SERVICES"]
[null,null,"THAT YOUR CONTRACTOR OR A SUBCONTRACTOR"]
[null,null,"MAY HAVE FAILED TO PAY. FLORIDA'S CONSTRUCTION"]
[null,null,"LIEN LAW IS COMPLEX AND IT IS RECOMMENDED"]
[null,null,"THAT WHENEVER A SPECIFIC PROBLEM ARISES, YOU"]
[null,null,"CONSULT AN ATTORNEY."]
[]
[null,null,"Florida Statutes 713.015  (2003)"]

{"sheet":"Instructions","index":10,"n_rows":68,"n_cols":14,"rows_kept":68,"cut":false,"hidden":true,"merged":[]}
[]
[null,"CONFIRMATION of INSTRUCTIONS"]
[]
[null,"From",null,null,null,null,null,null,null,"To"]
[null,null,null,null,null,null,null,null,null,"BUILDER NAME HERE"]
[null,"Job Name or Address",null,null,null,null,null,null,null,"STREET ADDRESS"]
[null,null,null,null,null,null,null,null,null,"CITY, STATE, ZIP CODE"]
[]
[null,"General Description of Instruction",null,null,null,null,null,null,null,null,null,null,"C.I. Number"]
[]
[]
[null,null,"YOU ARE HEREBY INSTRUCTED AS FOLLOWS:"]
[]
[]
[]
[]
[]
[]
[]
[]
[]
[]
[]
[]
[]
[]
[null,null,"THESE INSTRUCTIONS CONSTITUTE:"]
[]
[null,null,null,"   A change from the original plans/specifications.",null,null,null,null,null,"   A request for additional work."]
[]
[null,null,null,"   A clarification of the plans/specifications.",null,null,null,null,null,"   The selection of a specific product(s)."]
[]
[null,null,null,"   A change in the building structure or mechanical systems.  ($50.00 change order charge applies)"]
[]
[null,null,null,"   A change in finish materials after original materials were ordered.  ($50.00 change order charge applies)"]
[]
[]
[null,null,"THE COST (if any) of IMPLEMENTING THESE INSTRUCTIONS:"]
[]
[null,null,null,"   Will increase the contract price.",null,null,null,null,null,"   Will be as indicated above."]
[]
[null,null,null,"   Will decrease the contract price.",null,null,null,null,null,"   Will be calculated at cost + 20%."]
[]
[null,null,null,"   Will create no additional cost.",null,null,null,null,null,"   Will be determined later (allowance schedule selections only)"]
[]
[]
[null,null,"THE COST (if any) or CREDIT INDICATED HEREIN WILL BE PAID (or credited) AS FOLLOWS:"]
[]
[null,null,null,"   Upon acceptance of these instructions.",null,null,null,null,null,"   Simultaneously with the  ______________________     draw."]
[]
[null,null,null,"   Upon completion of the work described herein.",null,null,null,null,null,"   At the completion of the Project.",null,null,null,"    Not Applicable"]
[]
[]
[null,null,null,"   These instructions will be automatically withdrawn if not signed by both parties within _________ days."]
[]
[null,null,null,"   These instructions will (indicate one)  increase / decrease / not effect the contract completion time by ________ days."]
[]
[]
[null,null,"THESE INSTRUCTIONS are ISSUED by:",null,null,null,null,null,null,"THESE INSTRUCTIONS are ACCEPTED by:"]
[]
[null,null,"Owner: _____________________________________",null,null,null,null,null,null,"Builder: _____________________________________"]
[null,null,null,null,null,"Date",null,null,null,null,null,null,null,"Date        "]
[]
[null,"ADMINISTRATIVE FOLLOWUP    (NOT PART of INSTRUCTIONS)"]
[null,"Job Number",null,null,"Final Costs   "]
[null,null,null,null,null,null,null,"   No Charge",null,null,null,"   Invoice Sent",null,"   Payment Received"]
[null,null,null,null,"$"]
[null,"Distribution:      White-Office       Yellow-Job Supervisor      Pink-Customer       "]